{"text_format":"1","workbook":"xlsx","n_sheets":6,"sheets":["Jetty","Dolphins","Mooring Points","Mooring Arrangements","Fenders","Gangway"],"not_rendered":{"charts":0,"images":1,"macros":1,"external_links":0,"defined_names":143,"comments":0,"pivot_tables":0},"unopened":[],"bounds":{"document_bytes":16777216,"sheet_cells":100000,"rows_first":2000,"rows_last":500,"rows_between":2000,"halvings":0,"cell_chars":16384,"cell_head_chars":4096},"cells_cut":0,"cells_raw":0,"read":"whole","date_system":"1900"}

{"sheet":"Jetty","index":0,"n_rows":99,"n_cols":13,"rows_kept":99,"cut":false,"hidden":false,"merged":[[35,3,39,5],[23,12,29,13],[0,0,0,5],[2,1,2,5],[17,12,17,15],[17,7,17,9],[19,7,19,9],[23,3,33,5],[1,0,1,5],[33,8,34,10]]}
["Berth High Level Details"]
["If you have a comment on the data quality for a given cell, select the cell and press Ctrl-Q.\nTo clear ALL data press Ctrl-Backspace."]
["Berth Name"]
[]
["Latitude",null,"°",null,"'",null,"''",null,null,"Degrees, Minutes and Seconds OR Degrees and Minutes with decimals "]
["Longitude",null,"°",null,"'",null,"''",null,null,"(e.g. 15° 21' 18'' N or 15° 21.3'    '' N)"]
["Orientation (° from True North)",null,"°"]
["(berth pointing left to right as seen from the ship)",null,null,null,null,null,null,null,"SHIPMOOR Data Entry workbook version",null,null,13]
["Berth Type"]
["Shape",null,null,null,null,null,null,null,null,"Last Edited on:    ",{"$f":"LastSavedTimeStamp()","v":"2020-06-12T15:59:15"}]
[]
["Permitted Side alongside"]
["Required mooring tail length (if applicable) (m)",null,"m"]
[]
["Controlled Depth (below vertical datum) (m)",null,"m"]
["Central jetty (with loading arms) length (m)",null,"m"]
["Central jetty height (m)",null,"m",null,null,null,null,"Vertical Datum",null,null,null,null,"Datum used by the terminal"]
["Distance from jetty centre to spotting line (m)\n(+ right seen from the ship)",null,"m",null,null,null,null,"Diff. (m) BA Chart Datum/Vertical Datum (+ for CD above)",null,null,null,"m","Difference (if any) between the terminal datum and the BA chart datum that is used for the tide"]
[null,null,null,null,null,null,null,"A.T.T. Port No",null,null,null,null,"Admiralty Tide Table Port No"]
[null,null,null,null,null,null,null,"Mean Sea Level above Chart Datum (m)",null,null,null,"m","Only if there is no tide"]
[]
["Berth full length incl. dolphins (m)",null,"m","Optional, used for validation only"]
[]
["Vessel limitations:",null,null,"Optional entry, limitations are used to validate ship/shore compatibility",null,null,null,"Loading Arms:",null,null,null,null,"Optional entry, used to visualise the berth."]
["Max. Draft (m)",null,"m",null,null,null,null,null,"No.","Type","Spotting Line?"]
["Max. Air Draft (m)",null,"m",null,null,null,null,null,1]
["Min. LOA (m)",null,"m",null,null,null,null,null,2]
["Max. LOA (m)",null,"m",null,null,null,null,null,3]
["Max. BOA (m)",null,"m",null,null,null,null,null,4]
["Max Displacement (t)",null,"t",null,null,null,null,null,5]
["Vessel Capacity:",null,null,null,null,null,null,null,6]
["Minimum",null,null,null,null,null,null,null,7]
["Maximum",null,null,null,null,null,null,null,8]
["Unit",null,null,null,null,null,null,null,{"$f":"IF(COUNTBLANK(Table10[Spotting Line?]) < 4,\"ERROR: there is only one spotting line\",\"\")","v":""}]
[]
["Max. Permissible:",null,null,"Optional entry, allow reporting excess movements"]
["Surge (m)",null,"m"]
["Sway (m)",null,"m"]
["Heave (m)",null,"m"]
["Yaw (°)",null,"°"]
[]
[]
[]
[]
[]
[]
[]
[]
[]
[]
[]
[]
[]
[]
[]
[]
[]
[]
[]
["Options for:"]
["Side alongside","Port"]
[null,"Starboard"]
[null,"Both"]
[]
["DirNS","N"]
[null,"S"]
["DirEW","E"]
[null,"W"]
["Berth Type","Open Pile Jetty"]
[null,"Solid Quay Wall"]
[null,"Buoy Mooring"]
[]
[]
["Berth Shape","T-Shaped"]
[null,"I-Shaped"]
[null,"Other"]
[]
["Capacity Unit","m³"]
[null,"GRT"]
[]
["Mooring tail length",11]
[null,22]
[]
[]
["Type of loading arm","Liquid"]
[null,"Vapour"]
[null,"Hybrid"]
[]
["Spotting Line","Aligned with this arm"]
[]
["Vertical Datum","LAT"]
[null,"MLLW"]
[null,"MSL"]
[null,"-----------"]
[null,"ISLW"]
[null,"NP"]
[null,"-----------"]
[null,"BA Chart"]
[null,"Unspecified"]

{"sheet":"Dolphins","index":1,"n_rows":62,"n_cols":8,"rows_kept":62,"cut":false,"hidden":false,"merged":[[0,0,0,7],[1,5,1,6],[2,5,2,6]]}
["Dolphins"]
["tBerthDolphin",null,null,null,null,"Approx. value if not known exactly"]
[null,null,null,null,null,"Both values will default 7.5m if left blank",null,"Leave blank if unknown"]
["Type","Name","X (m)\ncentre distance from spotting line\n(+ right of the spotting line\nseen from the ship)","Y (m)\ncentre distance from jetty face\n(+ shore-side, - sea-side)","Z (m)\nplatform height above vertical datum\n(+ above)","Length (m)\n(distance along the X-axis, \ni.e. along the jetty length) ","Width (m)\n(distance along the Y-axis,\ni.e. perpendicular to jetty) ","Dolphin structure\nSWL (t)"]
[]
[]
[]
[]
[]
[]
[]
[]
[]
[]
[]
[]
[]
[]
[]
[]
[]
[]
[]
[]
[]
[]
[]
[]
[]
[]
[]
[]
[]
[]
[]
[]
[]
[]
[]
[]
[]
[]
[]
[]
[]
[]
[]
[]
[]
[]
[]
[]
[]
[]
[]
[]
[]
[]
[]
["Options for:"]
["Dolphin type","Mooring Dolphin"]
[null,"Breasting Dolphin"]

{"sheet":"Mooring Points","index":2,"n_rows":93,"n_cols":13,"rows_kept":93,"cut":false,"hidden":false,"merged":[[3,7,3,9],[3,10,3,12],[0,0,0,12]]}
["Mooring Points"]
["tBerthMooring"]
[null,"Dolphin list as per",null,null,null,"For hooks: leave",null,"The location of the point of rotation of the set of hooks can be entered as an offset from the dolphin centre OR as an absolute position from the berth reference point."]
[null,"previous TAB",null,null,null,"blank or enter 1",null,"OFFSET",null,null,"ABSOLUTE"]
["Name","On Jetty or Dolphin","Type","SWL (t)\nper Hook","No\nof\nHooks","Max Lines for Mooring Point\n(1 for Hooks)","Offset\nor\nAbsolute","X (m)\nOFFSET from the dolphin centre or jetty spotting line (+ right seen from the ship)","Y (m)\nOFFSET from the dolphin centre or jetty face\n(+ shore-side)","Z (m)\nOFFSET from the dolphin height or jetty height Z\n(+)","X (m)\nABSOLUTE centre distance from jetty spotting line (+ right of the spotting line seen from the ship)","Y (m)\nABSOLUTE centre distance from jetty face\n(+ shore-side, - sea-side)","Z (m)\nABSOLUTE centre height above vertical datum\n(+ above)"]
[]
[]
[]
[]
[]
[]
[]
[]
[]
[]
[]
[]
[]
[]
[]
[]
[]
[]
[]
[]
[]
[]
[]
[]
[]
[]
[]
[]
[]
[]
[]
[]
[]
[]
[]
[]
[]
[]
[]
[]
[]
[]
[]
[]
[]
[]
[]
[]
[]
[]
[]
[]
[]
[]
[]
["Options for:"]
["Type",null,"Hook"]
[null,null,"Single Bitt Bollard"]
[null,null,"Winch (1 - Single)"]
["Jetty/Dolphin",null,"Jetty"]
[null,null,{"$f":"IFERROR(INDEX(ListDolphins,MATCH(SMALL(NOT(ListDolphins=\"\")*IF(ISNUMBER(ListDolphins),COUNTIF(ListDolphins,\"<=\"&ListDolphins),COUNTIF(ListDolphins,\"<=\"&ListDolphins)+SUM(--ISNUMBER(ListDolphins))),ROWS($C$65:C65)+SUM(--ISBLANK(ListDolphins))),NOT(ListDolphins=\"\")*IF(ISNUMBER(ListDolphins),COUNTIF(ListDolphins,\"<=\"&ListDolphins),COUNTIF(ListDolphins,\"<=\"&ListDolphins)+SUM(--ISNUMBER(ListDolphins))),0)),\"\")","v":""}]
[null,null,{"$f":"IFERROR(INDEX(ListDolphins,MATCH(SMALL(NOT(ListDolphins=\"\")*IF(ISNUMBER(ListDolphins),COUNTIF(ListDolphins,\"<=\"&ListDolphins),COUNTIF(ListDolphins,\"<=\"&ListDolphins)+SUM(--ISNUMBER(ListDolphins))),ROWS($C$65:C66)+SUM(--ISBLANK(ListDolphins))),NOT(ListDolphins=\"\")*IF(ISNUMBER(ListDolphins),COUNTIF(ListDolphins,\"<=\"&ListDolphins),COUNTIF(ListDolphins,\"<=\"&ListDolphins)+SUM(--ISNUMBER(ListDolphins))),0)),\"\")","v":""}]
[null,null,{"$f":"IFERROR(INDEX(ListDolphins,MATCH(SMALL(NOT(ListDolphins=\"\")*IF(ISNUMBER(ListDolphins),COUNTIF(ListDolphins,\"<=\"&ListDolphins),COUNTIF(ListDolphins,\"<=\"&ListDolphins)+SUM(--ISNUMBER(ListDolphins))),ROWS($C$65:C67)+SUM(--ISBLANK(ListDolphins))),NOT(ListDolphins=\"\")*IF(ISNUMBER(ListDolphins),COUNTIF(ListDolphins,\"<=\"&ListDolphins),COUNTIF(ListDolphins,\"<=\"&ListDolphins)+SUM(--ISNUMBER(ListDolphins))),0)),\"\")","v":""}]
[null,null,{"$f":"IFERROR(INDEX(ListDolphins,MATCH(SMALL(NOT(ListDolphins=\"\")*IF(ISNUMBER(ListDolphins),COUNTIF(ListDolphins,\"<=\"&ListDolphins),COUNTIF(ListDolphins,\"<=\"&ListDolphins)+SUM(--ISNUMBER(ListDolphins))),ROWS($C$65:C68)+SUM(--ISBLANK(ListDolphins))),NOT(ListDolphins=\"\")*IF(ISNUMBER(ListDolphins),COUNTIF(ListDolphins,\"<=\"&ListDolphins),COUNTIF(ListDolphins,\"<=\"&ListDolphins)+SUM(--ISNUMBER(ListDolphins))),0)),\"\")","v":""}]
[null,null,{"$f":"IFERROR(INDEX(ListDolphins,MATCH(SMALL(NOT(ListDolphins=\"\")*IF(ISNUMBER(ListDolphins),COUNTIF(ListDolphins,\"<=\"&ListDolphins),COUNTIF(ListDolphins,\"<=\"&ListDolphins)+SUM(--ISNUMBER(ListDolphins))),ROWS($C$65:C69)+SUM(--ISBLANK(ListDolphins))),NOT(ListDolphins=\"\")*IF(ISNUMBER(ListDolphins),COUNTIF(ListDolphins,\"<=\"&ListDolphins),COUNTIF(ListDolphins,\"<=\"&ListDolphins)+SUM(--ISNUMBER(ListDolphins))),0)),\"\")","v":""}]
[null,null,{"$f":"IFERROR(INDEX(ListDolphins,MATCH(SMALL(NOT(ListDolphins=\"\")*IF(ISNUMBER(ListDolphins),COUNTIF(ListDolphins,\"<=\"&ListDolphins),COUNTIF(ListDolphins,\"<=\"&ListDolphins)+SUM(--ISNUMBER(ListDolphins))),ROWS($C$65:C70)+SUM(--ISBLANK(ListDolphins))),NOT(ListDolphins=\"\")*IF(ISNUMBER(ListDolphins),COUNTIF(ListDolphins,\"<=\"&ListDolphins),COUNTIF(ListDolphins,\"<=\"&ListDolphins)+SUM(--ISNUMBER(ListDolphins))),0)),\"\")","v":""}]
[null,null,{"$f":"IFERROR(INDEX(ListDolphins,MATCH(SMALL(NOT(ListDolphins=\"\")*IF(ISNUMBER(ListDolphins),COUNTIF(ListDolphins,\"<=\"&ListDolphins),COUNTIF(ListDolphins,\"<=\"&ListDolphins)+SUM(--ISNUMBER(ListDolphins))),ROWS($C$65:C71)+SUM(--ISBLANK(ListDolphins))),NOT(ListDolphins=\"\")*IF(ISNUMBER(ListDolphins),COUNTIF(ListDolphins,\"<=\"&ListDolphins),COUNTIF(ListDolphins,\"<=\"&ListDolphins)+SUM(--ISNUMBER(ListDolphins))),0)),\"\")","v":""}]
[null,null,{"$f":"IFERROR(INDEX(ListDolphins,MATCH(SMALL(NOT(ListDolphins=\"\")*IF(ISNUMBER(ListDolphins),COUNTIF(ListDolphins,\"<=\"&ListDolphins),COUNTIF(ListDolphins,\"<=\"&ListDolphins)+SUM(--ISNUMBER(ListDolphins))),ROWS($C$65:C72)+SUM(--ISBLANK(ListDolphins))),NOT(ListDolphins=\"\")*IF(ISNUMBER(ListDolphins),COUNTIF(ListDolphins,\"<=\"&ListDolphins),COUNTIF(ListDolphins,\"<=\"&ListDolphins)+SUM(--ISNUMBER(ListDolphins))),0)),\"\")","v":""}]
[null,null,{"$f":"IFERROR(INDEX(ListDolphins,MATCH(SMALL(NOT(ListDolphins=\"\")*IF(ISNUMBER(ListDolphins),COUNTIF(ListDolphins,\"<=\"&ListDolphins),COUNTIF(ListDolphins,\"<=\"&ListDolphins)+SUM(--ISNUMBER(ListDolphins))),ROWS($C$65:C73)+SUM(--ISBLANK(ListDolphins))),NOT(ListDolphins=\"\")*IF(ISNUMBER(ListDolphins),COUNTIF(ListDolphins,\"<=\"&ListDolphins),COUNTIF(ListDolphins,\"<=\"&ListDolphins)+SUM(--ISNUMBER(ListDolphins))),0)),\"\")","v":""}]
[null,null,{"$f":"IFERROR(INDEX(ListDolphins,MATCH(SMALL(NOT(ListDolphins=\"\")*IF(ISNUMBER(ListDolphins),COUNTIF(ListDolphins,\"<=\"&ListDolphins),COUNTIF(ListDolphins,\"<=\"&ListDolphins)+SUM(--ISNUMBER(ListDolphins))),ROWS($C$65:C74)+SUM(--ISBLANK(ListDolphins))),NOT(ListDolphins=\"\")*IF(ISNUMBER(ListDolphins),COUNTIF(ListDolphins,\"<=\"&ListDolphins),COUNTIF(ListDolphins,\"<=\"&ListDolphins)+SUM(--ISNUMBER(ListDolphins))),0)),\"\")","v":""}]
[null,null,{"$f":"IFERROR(INDEX(ListDolphins,MATCH(SMALL(NOT(ListDolphins=\"\")*IF(ISNUMBER(ListDolphins),COUNTIF(ListDolphins,\"<=\"&ListDolphins),COUNTIF(ListDolphins,\"<=\"&ListDolphins)+SUM(--ISNUMBER(ListDolphins))),ROWS($C$65:C75)+SUM(--ISBLANK(ListDolphins))),NOT(ListDolphins=\"\")*IF(ISNUMBER(ListDolphins),COUNTIF(ListDolphins,\"<=\"&ListDolphins),COUNTIF(ListDolphins,\"<=\"&ListDolphins)+SUM(--ISNUMBER(ListDolphins))),0)),\"\")","v":""}]
[null,null,{"$f":"IFERROR(INDEX(ListDolphins,MATCH(SMALL(NOT(ListDolphins=\"\")*IF(ISNUMBER(ListDolphins),COUNTIF(ListDolphins,\"<=\"&ListDolphins),COUNTIF(ListDolphins,\"<=\"&ListDolphins)+SUM(--ISNUMBER(ListDolphins))),ROWS($C$65:C76)+SUM(--ISBLANK(ListDolphins))),NOT(ListDolphins=\"\")*IF(ISNUMBER(ListDolphins),COUNTIF(ListDolphins,\"<=\"&ListDolphins),COUNTIF(ListDolphins,\"<=\"&ListDolphins)+SUM(--ISNUMBER(ListDolphins))),0)),\"\")","v":""}]
[null,null,{"$f":"IFERROR(INDEX(ListDolphins,MATCH(SMALL(NOT(ListDolphins=\"\")*IF(ISNUMBER(ListDolphins),COUNTIF(ListDolphins,\"<=\"&ListDolphins),COUNTIF(ListDolphins,\"<=\"&ListDolphins)+SUM(--ISNUMBER(ListDolphins))),ROWS($C$65:C77)+SUM(--ISBLANK(ListDolphins))),NOT(ListDolphins=\"\")*IF(ISNUMBER(ListDolphins),COUNTIF(ListDolphins,\"<=\"&ListDolphins),COUNTIF(ListDolphins,\"<=\"&ListDolphins)+SUM(--ISNUMBER(ListDolphins))),0)),\"\")","v":""}]
[null,null,{"$f":"IFERROR(INDEX(ListDolphins,MATCH(SMALL(NOT(ListDolphins=\"\")*IF(ISNUMBER(ListDolphins),COUNTIF(ListDolphins,\"<=\"&ListDolphins),COUNTIF(ListDolphins,\"<=\"&ListDolphins)+SUM(--ISNUMBER(ListDolphins))),ROWS($C$65:C78)+SUM(--ISBLANK(ListDolphins))),NOT(ListDolphins=\"\")*IF(ISNUMBER(ListDolphins),COUNTIF(ListDolphins,\"<=\"&ListDolphins),COUNTIF(ListDolphins,\"<=\"&ListDolphins)+SUM(--ISNUMBER(ListDolphins))),0)),\"\")","v":""}]
[null,null,{"$f":"IFERROR(INDEX(ListDolphins,MATCH(SMALL(NOT(ListDolphins=\"\")*IF(ISNUMBER(ListDolphins),COUNTIF(ListDolphins,\"<=\"&ListDolphins),COUNTIF(ListDolphins,\"<=\"&ListDolphins)+SUM(--ISNUMBER(ListDolphins))),ROWS($C$65:C79)+SUM(--ISBLANK(ListDolphins))),NOT(ListDolphins=\"\")*IF(ISNUMBER(ListDolphins),COUNTIF(ListDolphins,\"<=\"&ListDolphins),COUNTIF(ListDolphins,\"<=\"&ListDolphins)+SUM(--ISNUMBER(ListDolphins))),0)),\"\")","v":""}]
[null,null,{"$f":"IFERROR(INDEX(ListDolphins,MATCH(SMALL(NOT(ListDolphins=\"\")*IF(ISNUMBER(ListDolphins),COUNTIF(ListDolphins,\"<=\"&ListDolphins),COUNTIF(ListDolphins,\"<=\"&ListDolphins)+SUM(--ISNUMBER(ListDolphins))),ROWS($C$65:C80)+SUM(--ISBLANK(ListDolphins))),NOT(ListDolphins=\"\")*IF(ISNUMBER(ListDolphins),COUNTIF(ListDolphins,\"<=\"&ListDolphins),COUNTIF(ListDolphins,\"<=\"&ListDolphins)+SUM(--ISNUMBER(ListDolphins))),0)),\"\")","v":""}]
[null,null,{"$f":"IFERROR(INDEX(ListDolphins,MATCH(SMALL(NOT(ListDolphins=\"\")*IF(ISNUMBER(ListDolphins),COUNTIF(ListDolphins,\"<=\"&ListDolphins),COUNTIF(ListDolphins,\"<=\"&ListDolphins)+SUM(--ISNUMBER(ListDolphins))),ROWS($C$65:C81)+SUM(--ISBLANK(ListDolphins))),NOT(ListDolphins=\"\")*IF(ISNUMBER(ListDolphins),COUNTIF(ListDolphins,\"<=\"&ListDolphins),COUNTIF(ListDolphins,\"<=\"&ListDolphins)+SUM(--ISNUMBER(ListDolphins))),0)),\"\")","v":""}]
[null,null,{"$f":"IFERROR(INDEX(ListDolphins,MATCH(SMALL(NOT(ListDolphins=\"\")*IF(ISNUMBER(ListDolphins),COUNTIF(ListDolphins,\"<=\"&ListDolphins),COUNTIF(ListDolphins,\"<=\"&ListDolphins)+SUM(--ISNUMBER(ListDolphins))),ROWS($C$65:C82)+SUM(--ISBLANK(ListDolphins))),NOT(ListDolphins=\"\")*IF(ISNUMBER(ListDolphins),COUNTIF(ListDolphins,\"<=\"&ListDolphins),COUNTIF(ListDolphins,\"<=\"&ListDolphins)+SUM(--ISNUMBER(ListDolphins))),0)),\"\")","v":""}]
[null,null,{"$f":"IFERROR(INDEX(ListDolphins,MATCH(SMALL(NOT(ListDolphins=\"\")*IF(ISNUMBER(ListDolphins),COUNTIF(ListDolphins,\"<=\"&ListDolphins),COUNTIF(ListDolphins,\"<=\"&ListDolphins)+SUM(--ISNUMBER(ListDolphins))),ROWS($C$65:C83)+SUM(--ISBLANK(ListDolphins))),NOT(ListDolphins=\"\")*IF(ISNUMBER(ListDolphins),COUNTIF(ListDolphins,\"<=\"&ListDolphins),COUNTIF(ListDolphins,\"<=\"&ListDolphins)+SUM(--ISNUMBER(ListDolphins))),0)),\"\")","v":""}]
[null,null,{"$f":"IFERROR(INDEX(ListDolphins,MATCH(SMALL(NOT(ListDolphins=\"\")*IF(ISNUMBER(ListDolphins),COUNTIF(ListDolphins,\"<=\"&ListDolphins),COUNTIF(ListDolphins,\"<=\"&ListDolphins)+SUM(--ISNUMBER(ListDolphins))),ROWS($C$65:C84)+SUM(--ISBLANK(ListDolphins))),NOT(ListDolphins=\"\")*IF(ISNUMBER(ListDolphins),COUNTIF(ListDolphins,\"<=\"&ListDolphins),COUNTIF(ListDolphins,\"<=\"&ListDolphins)+SUM(--ISNUMBER(ListDolphins))),0)),\"\")","v":""}]
[null,null,{"$f":"IFERROR(INDEX(ListDolphins,MATCH(SMALL(NOT(ListDolphins=\"\")*IF(ISNUMBER(ListDolphins),COUNTIF(ListDolphins,\"<=\"&ListDolphins),COUNTIF(ListDolphins,\"<=\"&ListDolphins)+SUM(--ISNUMBER(ListDolphins))),ROWS($C$65:C85)+SUM(--ISBLANK(ListDolphins))),NOT(ListDolphins=\"\")*IF(ISNUMBER(ListDolphins),COUNTIF(ListDolphins,\"<=\"&ListDolphins),COUNTIF(ListDolphins,\"<=\"&ListDolphins)+SUM(--ISNUMBER(ListDolphins))),0)),\"\")","v":""}]
[null,null,{"$f":"IFERROR(INDEX(ListDolphins,MATCH(SMALL(NOT(ListDolphins=\"\")*IF(ISNUMBER(ListDolphins),COUNTIF(ListDolphins,\"<=\"&ListDolphins),COUNTIF(ListDolphins,\"<=\"&ListDolphins)+SUM(--ISNUMBER(ListDolphins))),ROWS($C$65:C86)+SUM(--ISBLANK(ListDolphins))),NOT(ListDolphins=\"\")*IF(ISNUMBER(ListDolphins),COUNTIF(ListDolphins,\"<=\"&ListDolphins),COUNTIF(ListDolphins,\"<=\"&ListDolphins)+SUM(--ISNUMBER(ListDolphins))),0)),\"\")","v":""}]
[null,null,{"$f":"IFERROR(INDEX(ListDolphins,MATCH(SMALL(NOT(ListDolphins=\"\")*IF(ISNUMBER(ListDolphins),COUNTIF(ListDolphins,\"<=\"&ListDolphins),COUNTIF(ListDolphins,\"<=\"&ListDolphins)+SUM(--ISNUMBER(ListDolphins))),ROWS($C$65:C87)+SUM(--ISBLANK(ListDolphins))),NOT(ListDolphins=\"\")*IF(ISNUMBER(ListDolphins),COUNTIF(ListDolphins,\"<=\"&ListDolphins),COUNTIF(ListDolphins,\"<=\"&ListDolphins)+SUM(--ISNUMBER(ListDolphins))),0)),\"\")","v":""}]
[null,null,{"$f":"IFERROR(INDEX(ListDolphins,MATCH(SMALL(NOT(ListDolphins=\"\")*IF(ISNUMBER(ListDolphins),COUNTIF(ListDolphins,\"<=\"&ListDolphins),COUNTIF(ListDolphins,\"<=\"&ListDolphins)+SUM(--ISNUMBER(ListDolphins))),ROWS($C$65:C88)+SUM(--ISBLANK(ListDolphins))),NOT(ListDolphins=\"\")*IF(ISNUMBER(ListDolphins),COUNTIF(ListDolphins,\"<=\"&ListDolphins),COUNTIF(ListDolphins,\"<=\"&ListDolphins)+SUM(--ISNUMBER(ListDolphins))),0)),\"\")","v":""}]
[null,null,{"$f":"IFERROR(INDEX(ListDolphins,MATCH(SMALL(NOT(ListDolphins=\"\")*IF(ISNUMBER(ListDolphins),COUNTIF(ListDolphins,\"<=\"&ListDolphins),COUNTIF(ListDolphins,\"<=\"&ListDolphins)+SUM(--ISNUMBER(ListDolphins))),ROWS($C$65:C89)+SUM(--ISBLANK(ListDolphins))),NOT(ListDolphins=\"\")*IF(ISNUMBER(ListDolphins),COUNTIF(ListDolphins,\"<=\"&ListDolphins),COUNTIF(ListDolphins,\"<=\"&ListDolphins)+SUM(--ISNUMBER(ListDolphins))),0)),\"\")","v":""}]
[null,null,{"$f":"IFERROR(INDEX(ListDolphins,MATCH(SMALL(NOT(ListDolphins=\"\")*IF(ISNUMBER(ListDolphins),COUNTIF(ListDolphins,\"<=\"&ListDolphins),COUNTIF(ListDolphins,\"<=\"&ListDolphins)+SUM(--ISNUMBER(ListDolphins))),ROWS($C$65:C90)+SUM(--ISBLANK(ListDolphins))),NOT(ListDolphins=\"\")*IF(ISNUMBER(ListDolphins),COUNTIF(ListDolphins,\"<=\"&ListDolphins),COUNTIF(ListDolphins,\"<=\"&ListDolphins)+SUM(--ISNUMBER(ListDolphins))),0)),\"\")","v":""}]
["Location",null,"Absolute"]
[null,null,"Offset"]

{"sheet":"Mooring Arrangements","index":3,"n_rows":67,"n_cols":12,"rows_kept":67,"cut":false,"hidden":false,"merged":[[2,0,2,1],[2,2,2,3],[2,4,2,5],[0,0,0,11]]}
["Mooring Arrangement(s)"]
[]
["Enter a capacity limit",null,"OR enter a capacity range",null,"Then select (or type) the unit",null,null,null,null,null,null,"E.g. ship type"]
["Capacity","Limit","Capacity Range -\nFrom","Capacity Range -\nTo","Capacity\nUnit","Headlines","Fwd Breastlines","Fwd Springs","Aft Springs","Aft Breastlines","Sternlines","Comment"]
[]
[]
[]
[]
[]
[]
[]
[]
[]
[]
[]
[]
[]
[]
[]
[]
[]
[]
[]
[]
[]
[]
[]
[]
[]
[]
[]
[]
[]
[]
[]
[]
[]
[]
[]
[]
[]
[]
[]
[]
[]
[]
[]
[]
[]
[]
[]
[]
[]
[]
[]
[]
[]
[]
["Options for:"]
["Capacity limit","Less than"]
[null,"Less than or equal"]
[null,"Greater than or equal"]
[null,"Greater than  "]
[]
[]
["Capacity Unit","m³"]
[null,"GRT"]

{"sheet":"Fenders","index":4,"n_rows":906,"n_cols":30,"rows_kept":906,"cut":false,"hidden":false,"merged":[[2,0,7,3]]}
["Fenders"]
[null,null,null,null,null,null,null,null,null,null,null,null,null,null,null,null,null,null,null,"FE Element Fenders | FE 300 | G 2.5",null,null,null,null,null,null,null,null,null,"MV Elements | MV400-2000 | Compound A"]
["Fenders must be entered on the web portal where you can select fenders from manufacturer catalogue data",null,null,null,null,null,null,null,null,null,null,null,null,null,null,null,null,null,null,"FE Element Fenders | FE 300 | G 2.6",null,null,null,null,null,null,null,null,null,"MV Elements | MV400-1000 | Compound B"]
[null,null,null,null,null,null,null,null,null,null,null,null,null,null,null,null,null,null,null,"FE Element Fenders | FE 300 | G 2.7",null,null,null,null,null,null,null,null,null,"MV Elements | MV400-2500 | Compound B"]
[null,null,null,null,null,null,null,null,null,null,null,null,null,null,null,null,null,null,null,"FE Element Fenders | FE 300 | G 2.8",null,null,null,null,null,null,null,null,null,"MV Elements | MV400-1500 | Compound B"]
[null,null,null,null,null,null,null,null,null,null,null,null,null,null,null,null,null,null,null,"FE Element Fenders | FE 300 | G 2.9",null,null,null,null,null,null,null,null,null,"MV Elements | MV400-750 | Compound B"]
[null,null,null,null,null,null,null,null,null,null,null,null,null,null,null,null,null,null,null,"FE Element Fenders | FE 300 | G 3.0",null,null,null,null,null,null,null,null,null,"MV Elements | MV400-3000 | Compound B"]
[null,null,null,null,null,null,null,null,null,null,null,null,null,null,null,null,null,null,null,"FE Element Fenders | FE 300 | G 3.1",null,null,null,null,null,null,null,null,null,"MV Elements | MV400-2000 | Compound B"]
[null,null,null,null,null,null,null,null,null,null,null,null,null,null,null,null,null,null,null,"FE Element Fenders | FE 400 | G 0.9",null,null,null,null,null,null,null,null,null,"MV Elements | MV500-1000 | Compound A"]
[null,null,null,null,null,null,null,null,null,null,null,null,null,null,null,null,null,null,null,"FE Element Fenders | FE 400 | G 1.0",null,null,null,null,null,null,null,null,null,"MV Elements | MV500-1500 | Compound A"]
[null,null,null,null,null,null,null,null,null,null,null,null,null,null,null,null,null,null,null,"FE Element Fenders | FE 400 | G 1.1",null,null,null,null,null,null,null,null,null,"MV Elements | MV500-2000 | Compound A"]
[null,null,null,null,null,null,null,null,null,null,null,null,null,null,null,null,null,null,null,"FE Element Fenders | FE 400 | G 1.2",null,null,null,null,null,null,null,null,null,"MV Elements | MV500-750 | Compound A"]
[null,null,null,null,null,null,null,null,null,null,null,null,null,null,null,null,null,null,null,"FE Element Fenders | FE 400 | G 1.3",null,null,null,null,null,null,null,null,null,"MV Elements | MV500-750 | Compound B"]
[null,null,null,null,null,null,null,null,null,null,null,null,null,null,null,null,null,null,null,"FE Element Fenders | FE 400 | G 1.4",null,null,null,null,null,null,null,null,null,"MV Elements | MV500-2000 | Compound B"]
[null,null,null,null,null,null,null,null,null,null,null,null,null,null,null,null,null,null,null,"FE Element Fenders | FE 400 | G 1.5",null,null,null,null,null,null,null,null,null,"MV Elements | MV500-1000 | Compound B"]
[null,null,null,null,null,null,null,null,null,null,null,null,null,null,null,null,null,null,null,"FE Element Fenders | FE 400 | G 1.6",null,null,null,null,null,null,null,null,null,"MV Elements | MV500-1500 | Compound B"]
[null,null,null,null,null,null,null,null,null,null,null,null,null,null,null,null,null,null,null,"FE Element Fenders | FE 400 | G 1.7",null,null,null,null,null,null,null,null,null,"MV Elements | MV550-1500 | Compound A"]
[null,null,null,null,null,null,null,null,null,null,null,null,null,null,null,null,null,null,null,"FE Element Fenders | FE 400 | G 1.8",null,null,null,null,null,null,null,null,null,"MV Elements | MV550-750 | Compound A"]
[null,null,null,null,null,null,null,null,null,null,null,null,null,null,null,null,null,null,null,"FE Element Fenders | FE 400 | G 1.9",null,null,null,null,null,null,null,null,null,"MV Elements | MV550-1000 | Compound A"]
[null,null,null,null,null,null,null,null,null,null,null,null,null,null,null,null,null,null,null,"FE Element Fenders | FE 400 | G 2.0",null,null,null,null,null,null,null,null,null,"MV Elements | MV550-750 | Compound B"]
[null,null,null,null,null,null,null,null,null,null,null,null,null,null,null,null,null,null,null,"FE Element Fenders | FE 400 | G 2.1",null,null,null,null,null,null,null,null,null,"MV Elements | MV550-1500 | Compound B"]
[null,null,null,null,null,null,null,null,null,null,null,null,null,null,null,null,null,null,null,"FE Element Fenders | FE 400 | G 2.2",null,null,null,null,null,null,null,null,null,"MV Elements | MV550-1000 | Compound B"]
[null,null,null,null,null,null,null,null,null,null,null,null,null,null,null,null,null,null,null,"FE Element Fenders | FE 400 | G 2.3",null,null,null,null,null,null,null,null,null,"MV Elements | MV600-1500 | Compound A"]
[null,null,null,null,null,null,null,null,null,null,null,null,null,null,null,null,null,null,null,"FE Element Fenders | FE 400 | G 2.4",null,null,null,null,null,null,null,null,null,"MV Elements | MV600-1000 | Compound A"]
[null,null,null,null,null,null,null,null,null,null,null,null,null,null,null,null,null,null,null,"FE Element Fenders | FE 400 | G 2.5",null,null,null,null,null,null,null,null,null,"MV Elements | MV600-750 | Compound A"]
[null,null,null,null,null,null,null,null,null,null,null,null,null,null,null,null,null,null,null,"FE Element Fenders | FE 400 | G 2.6",null,null,null,null,null,null,null,null,null,"MV Elements | MV600-1000 | Compound B"]
[null,null,null,null,null,null,null,null,null,null,null,null,null,null,null,null,null,null,null,"FE Element Fenders | FE 400 | G 2.7",null,null,null,null,null,null,null,null,null,"MV Elements | MV600-1500 | Compound B"]
[null,null,null,null,null,null,null,null,null,null,null,null,null,null,null,null,null,null,null,"FE Element Fenders | FE 400 | G 2.8",null,null,null,null,null,null,null,null,null,"MV Elements | MV600-750 | Compound B"]
[null,null,null,null,null,null,null,null,null,null,null,null,null,null,null,null,null,null,null,"FE Element Fenders | FE 400 | G 2.9",null,null,null,null,null,null,null,null,null,"MV Elements | MV750-1000 | Compound A"]
[null,null,null,null,null,null,null,null,null,null,null,null,null,null,null,null,null,null,null,"FE Element Fenders | FE 400 | G 3.0",null,null,null,null,null,null,null,null,null,"MV Elements | MV750-1500 | Compound A"]
[null,null,null,null,null,null,null,null,null,null,null,null,null,null,null,null,null,null,null,"FE Element Fenders | FE 400 | G 3.1",null,null,null,null,null,null,null,null,null,"MV Elements | MV750-750 | Compound A"]
[null,null,null,null,null,null,null,null,null,null,null,null,null,null,null,null,null,null,null,"FE Element Fenders | FE 500 | G 0.9",null,null,null,null,null,null,null,null,null,"MV Elements | MV750-1000 | Compound B"]
[null,null,null,null,null,null,null,null,null,null,null,null,null,null,null,null,null,null,null,"FE Element Fenders | FE 500 | G 1.0",null,null,null,null,null,null,null,null,null,"MV Elements | MV750-750 | Compound B"]
[null,null,null,null,null,null,null,null,null,null,null,null,null,null,null,null,null,null,null,"FE Element Fenders | FE 500 | G 1.1",null,null,null,null,null,null,null,null,null,"MV Elements | MV750-1500 | Compound B"]
[null,null,null,null,null,null,null,null,null,null,null,null,null,null,null,null,null,null,null,"FE Element Fenders | FE 500 | G 1.2",null,null,null,null,null,null,null,null,null,"MV Elements | MV800-1500 | Compound A"]
[null,null,null,null,null,null,null,null,null,null,null,null,null,null,null,null,null,null,null,"FE Element Fenders | FE 500 | G 1.3",null,null,null,null,null,null,null,null,null,"MV Elements | MV800-800 | Compound A"]
[null,null,null,null,null,null,null,null,null,null,null,null,null,null,null,null,null,null,null,"FE Element Fenders | FE 500 | G 1.4",null,null,null,null,null,null,null,null,null,"MV Elements | MV800-1000 | Compound A"]
[null,null,null,null,null,null,null,null,null,null,null,null,null,null,null,null,null,null,null,"FE Element Fenders | FE 500 | G 1.5",null,null,null,null,null,null,null,null,null,"MV Elements | MV800-2000 | Compound A"]
[null,null,null,null,null,null,null,null,null,null,null,null,null,null,null,null,null,null,null,"FE Element Fenders | FE 500 | G 1.6",null,null,null,null,null,null,null,null,null,"MV Elements | MV800-1000 | Compound B"]
[null,null,null,null,null,null,null,null,null,null,null,null,null,null,null,null,null,null,null,"FE Element Fenders | FE 500 | G 1.7",null,null,null,null,null,null,null,null,null,"MV Elements | MV800-1500 | Compound B"]
[null,null,null,null,null,null,null,null,null,null,null,null,null,null,null,null,null,null,null,"FE Element Fenders | FE 500 | G 1.8",null,null,null,null,null,null,null,null,null,"MV Elements | MV800-800 | Compound B"]
[null,null,null,null,null,null,null,null,null,null,null,null,null,null,null,null,null,null,null,"FE Element Fenders | FE 500 | G 1.9",null,null,null,null,null,null,null,null,null,"MV Elements | MV800-2000 | Compound B"]
[null,null,null,null,null,null,null,null,null,null,null,null,null,null,null,null,null,null,null,"FE Element Fenders | FE 500 | G 2.0",null,null,null,null,null,null,null,null,null,"MV Elements | MV1000-1050 | Compound A"]
[null,null,null,null,null,null,null,null,null,null,null,null,null,null,null,null,null,null,null,"FE Element Fenders | FE 500 | G 2.1",null,null,null,null,null,null,null,null,null,"MV Elements | MV1000-1100 | Compound A"]
[null,null,null,null,null,null,null,null,null,null,null,null,null,null,null,null,null,null,null,"FE Element Fenders | FE 500 | G 2.2",null,null,null,null,null,null,null,null,null,"MV Elements | MV1000-800 | Compound A"]
[null,null,null,null,null,null,null,null,null,null,null,null,null,null,null,null,null,null,null,"FE Element Fenders | FE 500 | G 2.3",null,null,null,null,null,null,null,null,null,"MV Elements | MV1000-1200 | Compound A"]
[null,null,null,null,null,null,null,null,null,null,null,null,null,null,null,null,null,null,null,"FE Element Fenders | FE 500 | G 2.4",null,null,null,null,null,null,null,null,null,"MV Elements | MV1000-850 | Compound A"]
[null,null,null,null,null,null,null,null,null,null,null,null,null,null,null,null,null,null,null,"FE Element Fenders | FE 500 | G 2.5",null,null,null,null,null,null,null,null,null,"MV Elements | MV1000-900 | Compound A"]
[null,null,null,null,null,null,null,null,null,null,null,null,null,null,null,null,null,null,null,"FE Element Fenders | FE 500 | G 2.6",null,null,null,null,null,null,null,null,null,"MV Elements | MV1000-1150 | Compound A"]
[null,null,null,null,null,null,null,null,null,null,null,null,null,null,null,null,null,null,null,"FE Element Fenders | FE 500 | G 2.7",null,null,null,null,null,null,null,null,null,"MV Elements | MV1000-1000 | Compound A"]
[null,null,null,null,null,null,null,null,null,null,null,null,null,null,null,null,null,null,null,"FE Element Fenders | FE 500 | G 2.8",null,null,null,null,null,null,null,null,null,"MV Elements | MV1000-950 | Compound A"]
[null,null,null,null,null,null,null,null,null,null,null,null,null,null,null,null,null,null,null,"FE Element Fenders | FE 500 | G 2.9",null,null,null,null,null,null,null,null,null,"MV Elements | MV1000-1500 | Compound A"]
[null,null,null,null,null,null,null,null,null,null,null,null,null,null,null,null,null,null,null,"FE Element Fenders | FE 500 | G 3.0",null,null,null,null,null,null,null,null,null,"MV Elements | MV1000-2000 | Compound A"]
[null,null,null,null,null,null,null,null,null,null,null,null,null,null,null,null,null,null,null,"FE Element Fenders | FE 500 | G 3.1",null,null,null,null,null,null,null,null,null,"MV Elements | MV1000-1000 | Compound B"]
[null,null,null,null,null,null,null,null,null,null,null,null,null,null,null,null,null,null,null,"FE Element Fenders | FE 550 | G 0.9",null,null,null,null,null,null,null,null,null,"MV Elements | MV1000-850 | Compound B"]
[null,null,null,null,null,null,null,null,null,null,null,null,null,null,null,null,null,null,null,"FE Element Fenders | FE 550 | G 1.0",null,null,null,null,null,null,null,null,null,"MV Elements | MV1000-800 | Compound B"]
[null,null,null,null,null,null,null,null,null,null,null,null,null,null,null,null,null,null,null,"FE Element Fenders | FE 550 | G 1.1",null,null,null,null,null,null,null,null,null,"MV Elements | MV1000-1200 | Compound B"]
[null,null,null,null,null,null,null,null,null,null,null,null,null,null,null,null,null,null,null,"FE Element Fenders | FE 550 | G 1.2",null,null,null,null,null,null,null,null,null,"MV Elements | MV1000-1050 | Compound B"]
[null,null,null,null,null,null,null,null,null,null,null,null,null,null,null,null,null,null,null,"FE Element Fenders | FE 550 | G 1.3",null,null,null,null,null,null,null,null,null,"MV Elements | MV1000-1150 | Compound B"]
[null,null,null,null,null,null,null,null,null,null,null,null,null,null,null,null,null,null,null,"FE Element Fenders | FE 550 | G 1.4",null,null,null,null,null,null,null,null,null,"MV Elements | MV1000-1500 | Compound B"]
[null,null,null,null,null,null,null,null,null,null,null,null,null,null,null,null,null,null,null,"FE Element Fenders | FE 550 | G 1.5",null,null,null,null,null,null,null,null,null,"MV Elements | MV1000-900 | Compound B"]
[null,null,null,null,null,null,null,null,null,null,null,null,null,null,null,null,null,null,null,"FE Element Fenders | FE 550 | G 1.6",null,null,null,null,null,null,null,null,null,"MV Elements | MV1000-1100 | Compound B"]
[null,null,null,null,null,null,null,null,null,null,null,null,null,null,null,null,null,null,null,"FE Element Fenders | FE 550 | G 1.7",null,null,null,null,null,null,null,null,null,"MV Elements | MV1000-2000 | Compound B"]
[null,null,null,null,null,null,null,null,null,null,null,null,null,null,null,null,null,null,null,"FE Element Fenders | FE 550 | G 1.8",null,null,null,null,null,null,null,null,null,"MV Elements | MV1000-950 | Compound B"]
[null,null,null,null,null,null,null,null,null,null,null,null,null,null,null,null,null,null,null,"FE Element Fenders | FE 550 | G 1.9",null,null,null,null,null,null,null,null,null,"MV Elements | MV1250-1050 | Compound A"]
[null,null,null,null,null,null,null,null,null,null,null,null,null,null,null,null,null,null,null,"FE Element Fenders | FE 550 | G 2.0",null,null,null,null,null,null,null,null,null,"MV Elements | MV1250-1200 | Compound A"]
[null,null,null,null,null,null,null,null,null,null,null,null,null,null,null,null,null,null,null,"FE Element Fenders | FE 550 | G 2.1",null,null,null,null,null,null,null,null,null,"MV Elements | MV1250-800 | Compound A"]
[null,null,null,null,null,null,null,null,null,null,null,null,null,null,null,null,null,null,null,"FE Element Fenders | FE 550 | G 2.2",null,null,null,null,null,null,null,null,null,"MV Elements | MV1250-1100 | Compound A"]
[null,null,null,null,null,null,null,null,null,null,null,null,null,null,null,null,null,null,null,"FE Element Fenders | FE 550 | G 2.3",null,null,null,null,null,null,null,null,null,"MV Elements | MV1250-1250 | Compound A"]
[null,null,null,null,null,null,null,null,null,null,null,null,null,null,null,null,null,null,null,"FE Element Fenders | FE 550 | G 2.4",null,null,null,null,null,null,null,null,null,"MV Elements | MV1250-1150 | Compound A"]
[null,null,null,null,null,null,null,null,null,null,null,null,null,null,null,null,null,null,null,"FE Element Fenders | FE 550 | G 2.5",null,null,null,null,null,null,null,null,null,"MV Elements | MV1250-900 | Compound A"]
[null,null,null,null,null,null,null,null,null,null,null,null,null,null,null,null,null,null,null,"FE Element Fenders | FE 550 | G 2.6",null,null,null,null,null,null,null,null,null,"MV Elements | MV1250-1000 | Compound A"]
[null,null,null,null,null,null,null,null,null,null,null,null,null,null,null,null,null,null,null,"FE Element Fenders | FE 550 | G 2.7",null,null,null,null,null,null,null,null,null,"MV Elements | MV1250-850 | Compound A"]
[null,null,null,null,null,null,null,null,null,null,null,null,null,null,null,null,null,null,null,"FE Element Fenders | FE 550 | G 2.8",null,null,null,null,null,null,null,null,null,"MV Elements | MV1250-2000 | Compound A"]
[null,null,null,null,null,null,null,null,null,null,null,null,null,null,null,null,null,null,null,"FE Element Fenders | FE 550 | G 2.9",null,null,null,null,null,null,null,null,null,"MV Elements | MV1250-1500 | Compound A"]
[null,null,null,null,null,null,null,null,null,null,null,null,null,null,null,null,null,null,null,"FE Element Fenders | FE 550 | G 3.0",null,null,null,null,null,null,null,null,null,"MV Elements | MV1250-950 | Compound A"]
[null,null,null,null,null,null,null,null,null,null,null,null,null,null,null,null,null,null,null,"FE Element Fenders | FE 550 | G 3.1",null,null,null,null,null,null,null,null,null,"MV Elements | MV1250-1000 | Compound B"]
[null,null,null,null,null,null,null,null,null,null,null,null,null,null,null,null,null,null,null,"FE Element Fenders | FE 600 | G 0.9",null,null,null,null,null,null,null,null,null,"MV Elements | MV1250-950 | Compound B"]
[null,null,null,null,null,null,null,null,null,null,null,null,null,null,null,null,null,null,null,"FE Element Fenders | FE 600 | G 1.0",null,null,null,null,null,null,null,null,null,"MV Elements | MV1250-1100 | Compound B"]
[null,null,null,null,null,null,null,null,null,null,null,null,null,null,null,null,null,null,null,"FE Element Fenders | FE 600 | G 1.1",null,null,null,null,null,null,null,null,null,"MV Elements | MV1250-1500 | Compound B"]
[null,null,null,null,null,null,null,null,null,null,null,null,null,null,null,null,null,null,null,"FE Element Fenders | FE 600 | G 1.2",null,null,null,null,null,null,null,null,null,"MV Elements | MV1250-1050 | Compound B"]
[null,null,null,null,null,null,null,null,null,null,null,null,null,null,null,null,null,null,null,"FE Element Fenders | FE 600 | G 1.3",null,null,null,null,null,null,null,null,null,"MV Elements | MV1250-1200 | Compound B"]
[null,null,null,null,null,null,null,null,null,null,null,null,null,null,null,null,null,null,null,"FE Element Fenders | FE 600 | G 1.4",null,null,null,null,null,null,null,null,null,"MV Elements | MV1250-900 | Compound B"]
[null,null,null,null,null,null,null,null,null,null,null,null,null,null,null,null,null,null,null,"FE Element Fenders | FE 600 | G 1.5",null,null,null,null,null,null,null,null,null,"MV Elements | MV1250-1250 | Compound B"]
[null,null,null,null,null,null,null,null,null,null,null,null,null,null,null,null,null,null,null,"FE Element Fenders | FE 600 | G 1.6",null,null,null,null,null,null,null,null,null,"MV Elements | MV1250-800 | Compound B"]
[null,null,null,null,null,null,null,null,null,null,null,null,null,null,null,null,null,null,null,"FE Element Fenders | FE 600 | G 1.7",null,null,null,null,null,null,null,null,null,"MV Elements | MV1250-2000 | Compound B"]
[null,null,null,null,null,null,null,null,null,null,null,null,null,null,null,null,null,null,null,"FE Element Fenders | FE 600 | G 1.8",null,null,null,null,null,null,null,null,null,"MV Elements | MV1250-1150 | Compound B"]
[null,null,null,null,null,null,null,null,null,null,null,null,null,null,null,null,null,null,null,"FE Element Fenders | FE 600 | G 1.9",null,null,null,null,null,null,null,null,null,"MV Elements | MV1250-850 | Compound B"]
[null,null,null,null,null,null,null,null,null,null,null,null,null,null,null,null,null,null,null,"FE Element Fenders | FE 600 | G 2.0",null,null,null,null,null,null,null,null,null,"MV Elements | MV1450-1200 | Compound A"]
[null,null,null,null,null,null,null,null,null,null,null,null,null,null,null,null,null,null,null,"FE Element Fenders | FE 600 | G 2.1",null,null,null,null,null,null,null,null,null,"MV Elements | MV1450-1500 | Compound A"]
[null,null,null,null,null,null,null,null,null,null,null,null,null,null,null,null,null,null,null,"FE Element Fenders | FE 600 | G 2.2",null,null,null,null,null,null,null,null,null,"MV Elements | MV1450-900 | Compound A"]
[null,null,null,null,null,null,null,null,null,null,null,null,null,null,null,null,null,null,null,"FE Element Fenders | FE 600 | G 2.3",null,null,null,null,null,null,null,null,null,"MV Elements | MV1450-2000 | Compound A"]
[null,null,null,null,null,null,null,null,null,null,null,null,null,null,null,null,null,null,null,"FE Element Fenders | FE 600 | G 2.4",null,null,null,null,null,null,null,null,null,"MV Elements | MV1450-1100 | Compound A"]
[null,null,null,null,null,null,null,null,null,null,null,null,null,null,null,null,null,null,null,"FE Element Fenders | FE 600 | G 2.5",null,null,null,null,null,null,null,null,null,"MV Elements | MV1450-1000 | Compound A"]
[null,null,null,null,null,null,null,null,null,null,null,null,null,null,null,null,null,null,null,"FE Element Fenders | FE 600 | G 2.6",null,null,null,null,null,null,null,null,null,"MV Elements | MV1450-1100 | Compound B"]
[null,null,null,null,null,null,null,null,null,null,null,null,null,null,null,null,null,null,null,"FE Element Fenders | FE 600 | G 2.7",null,null,null,null,null,null,null,null,null,"MV Elements | MV1450-1000 | Compound B"]
[null,null,null,null,null,null,null,null,null,null,null,null,null,null,null,null,null,null,null,"FE Element Fenders | FE 600 | G 2.8",null,null,null,null,null,null,null,null,null,"MV Elements | MV1450-1500 | Compound B"]
[null,null,null,null,null,null,null,null,null,null,null,null,null,null,null,null,null,null,null,"FE Element Fenders | FE 600 | G 2.9",null,null,null,null,null,null,null,null,null,"MV Elements | MV1450-2000 | Compound B"]
[null,null,null,null,null,null,null,null,null,null,null,null,null,null,null,null,null,null,null,"FE Element Fenders | FE 600 | G 3.0",null,null,null,null,null,null,null,null,null,"MV Elements | MV1450-1200 | Compound B"]
[null,null,null,null,null,null,null,null,null,null,null,null,null,null,null,null,null,null,null,"FE Element Fenders | FE 600 | G 3.1",null,null,null,null,null,null,null,null,null,"MV Elements | MV1450-900 | Compound B"]
[null,null,null,null,null,null,null,null,null,null,null,null,null,null,null,null,null,null,null,"FE Element Fenders | FE 700 | G 0.9",null,null,null,null,null,null,null,null,null,"MV Elements | MV1600-2000 | Compound A"]
[null,null,null,null,null,null,null,null,null,null,null,null,null,null,null,null,null,null,null,"FE Element Fenders | FE 700 | G 1.0",null,null,null,null,null,null,null,null,null,"MV Elements | MV1600-1100 | Compound A"]
[null,null,null,null,null,null,null,null,null,null,null,null,null,null,null,null,null,null,null,"FE Element Fenders | FE 700 | G 1.1",null,null,null,null,null,null,null,null,null,"MV Elements | MV1600-1500 | Compound A"]
[null,null,null,null,null,null,null,null,null,null,null,null,null,null,null,null,null,null,null,"FE Element Fenders | FE 700 | G 1.2",null,null,null,null,null,null,null,null,null,"MV Elements | MV1600-1000 | Compound A"]
[null,null,null,null,null,null,null,null,null,null,null,null,null,null,null,null,null,null,null,"FE Element Fenders | FE 700 | G 1.3",null,null,null,null,null,null,null,null,null,"MV Elements | MV1600-1200 | Compound A"]
[null,null,null,null,null,null,null,null,null,null,null,null,null,null,null,null,null,null,null,"FE Element Fenders | FE 700 | G 1.4",null,null,null,null,null,null,null,null,null,"MV Elements | MV1600-1200 | Compound B"]
[null,null,null,null,null,null,null,null,null,null,null,null,null,null,null,null,null,null,null,"FE Element Fenders | FE 700 | G 1.5",null,null,null,null,null,null,null,null,null,"MV Elements | MV1600-1100 | Compound B"]
[null,null,null,null,null,null,null,null,null,null,null,null,null,null,null,null,null,null,null,"FE Element Fenders | FE 700 | G 1.6",null,null,null,null,null,null,null,null,null,"MV Elements | MV1600-1500 | Compound B"]
[null,null,null,null,null,null,null,null,null,null,null,null,null,null,null,null,null,null,null,"FE Element Fenders | FE 700 | G 1.7",null,null,null,null,null,null,null,null,null,"MV Elements | MV1600-1000 | Compound B"]
[null,null,null,null,null,null,null,null,null,null,null,null,null,null,null,null,null,null,null,"FE Element Fenders | FE 700 | G 1.8",null,null,null,null,null,null,null,null,null,"MV Elements | MV1600-2000 | Compound B"]
[null,null,null,null,null,null,null,null,null,null,null,null,null,null,null,null,null,null,null,"FE Element Fenders | FE 700 | G 1.9",null,null,null,null,null,null,null,null,null,"MV V-Fenders | MV300P | Compound A"]
[null,null,null,null,null,null,null,null,null,null,null,null,null,null,null,null,null,null,null,"FE Element Fenders | FE 700 | G 2.0",null,null,null,null,null,null,null,null,null,"MV V-Fenders | MV300P | Compound B"]
[null,null,null,null,null,null,null,null,null,null,null,null,null,null,null,null,null,null,null,"FE Element Fenders | FE 700 | G 2.1",null,null,null,null,null,null,null,null,null,"MV V-Fenders | MV400P | Compound A"]
[null,null,null,null,null,null,null,null,null,null,null,null,null,null,null,null,null,null,null,"FE Element Fenders | FE 700 | G 2.2",null,null,null,null,null,null,null,null,null,"MV V-Fenders | MV400P | Compound B"]
[null,null,null,null,null,null,null,null,null,null,null,null,null,null,null,null,null,null,null,"FE Element Fenders | FE 700 | G 2.3",null,null,null,null,null,null,null,null,null,"MV V-Fenders | MV500P | Compound A"]
[null,null,null,null,null,null,null,null,null,null,null,null,null,null,null,null,null,null,null,"FE Element Fenders | FE 700 | G 2.4",null,null,null,null,null,null,null,null,null,"MV V-Fenders | MV500P | Compound B"]
[null,null,null,null,null,null,null,null,null,null,null,null,null,null,null,null,null,null,null,"FE Element Fenders | FE 700 | G 2.5",null,null,null,null,null,null,null,null,null,"MV V-Fenders | MV550P | Compound A"]
[null,null,null,null,null,null,null,null,null,null,null,null,null,null,null,null,null,null,null,"FE Element Fenders | FE 700 | G 2.6",null,null,null,null,null,null,null,null,null,"MV V-Fenders | MV550P | Compound B"]
[null,null,null,null,null,null,null,null,null,null,null,null,null,null,null,null,null,null,null,"FE Element Fenders | FE 700 | G 2.7",null,null,null,null,null,null,null,null,null,"MV V-Fenders | MV600P | Compound A"]
[null,null,null,null,null,null,null,null,null,null,null,null,null,null,null,null,null,null,null,"FE Element Fenders | FE 700 | G 2.8",null,null,null,null,null,null,null,null,null,"MV V-Fenders | MV600P | Compound B"]
[null,null,null,null,null,null,null,null,null,null,null,null,null,null,null,null,null,null,null,"FE Element Fenders | FE 700 | G 2.9",null,null,null,null,null,null,null,null,null,"MV V-Fenders | MV750P | Compound A"]
[null,null,null,null,null,null,null,null,null,null,null,null,null,null,null,null,null,null,null,"FE Element Fenders | FE 700 | G 3.0",null,null,null,null,null,null,null,null,null,"MV V-Fenders | MV750P | Compound B"]
[null,null,null,null,null,null,null,null,null,null,null,null,null,null,null,null,null,null,null,"FE Element Fenders | FE 700 | G 3.1",null,null,null,null,null,null,null,null,null,"MV V-Fenders | MV800P | Compound A"]
[null,null,null,null,null,null,null,null,null,null,null,null,null,null,null,null,null,null,null,"FE Element Fenders | FE 750 | G 0.9",null,null,null,null,null,null,null,null,null,"MV V-Fenders | MV800P | Compound B"]
[null,null,null,null,null,null,null,null,null,null,null,null,null,null,null,null,null,null,null,"FE Element Fenders | FE 750 | G 1.0",null,null,null,null,null,null,null,null,null,"MV V-Fenders | MV1000P | Compound A"]
[null,null,null,null,null,null,null,null,null,null,null,null,null,null,null,null,null,null,null,"FE Element Fenders | FE 750 | G 1.1",null,null,null,null,null,null,null,null,null,"MV V-Fenders | MV1000P | Compound B"]
[null,null,null,null,null,null,null,null,null,null,null,null,null,null,null,null,null,null,null,"FE Element Fenders | FE 750 | G 1.2",null,null,null,null,null,null,null,null,null,"MV V-Fenders | MV1250P | Compound A"]
[null,null,null,null,null,null,null,null,null,null,null,null,null,null,null,null,null,null,null,"FE Element Fenders | FE 750 | G 1.3",null,null,null,null,null,null,null,null,null,"MV V-Fenders | MV1250P | Compound B"]
[null,null,null,null,null,null,null,null,null,null,null,null,null,null,null,null,null,null,null,"FE Element Fenders | FE 750 | G 1.4",null,null,null,null,null,null,null,null,null,"SAN/SANP Super Arch Fenders | SAN/SANP 150 | E 1.0"]
[null,null,null,null,null,null,null,null,null,null,null,null,null,null,null,null,null,null,null,"FE Element Fenders | FE 750 | G 1.5",null,null,null,null,null,null,null,null,null,"SAN/SANP Super Arch Fenders | SAN/SANP 150 | E 1.1"]
[null,null,null,null,null,null,null,null,null,null,null,null,null,null,null,null,null,null,null,"FE Element Fenders | FE 750 | G 1.6",null,null,null,null,null,null,null,null,null,"SAN/SANP Super Arch Fenders | SAN/SANP 150 | E 1.2"]
[null,null,null,null,null,null,null,null,null,null,null,null,null,null,null,null,null,null,null,"FE Element Fenders | FE 750 | G 1.7",null,null,null,null,null,null,null,null,null,"SAN/SANP Super Arch Fenders | SAN/SANP 150 | E 1.3"]
[null,null,null,null,null,null,null,null,null,null,null,null,null,null,null,null,null,null,null,"FE Element Fenders | FE 750 | G 1.8",null,null,null,null,null,null,null,null,null,"SAN/SANP Super Arch Fenders | SAN/SANP 150 | E 1.4"]
[null,null,null,null,null,null,null,null,null,null,null,null,null,null,null,null,null,null,null,"FE Element Fenders | FE 750 | G 1.9",null,null,null,null,null,null,null,null,null,"SAN/SANP Super Arch Fenders | SAN/SANP 150 | E 1.5"]
[null,null,null,null,null,null,null,null,null,null,null,null,null,null,null,null,null,null,null,"FE Element Fenders | FE 750 | G 2.0",null,null,null,null,null,null,null,null,null,"SAN/SANP Super Arch Fenders | SAN/SANP 150 | E 1.6"]
[null,null,null,null,null,null,null,null,null,null,null,null,null,null,null,null,null,null,null,"FE Element Fenders | FE 750 | G 2.1",null,null,null,null,null,null,null,null,null,"SAN/SANP Super Arch Fenders | SAN/SANP 150 | E 1.7"]
[null,null,null,null,null,null,null,null,null,null,null,null,null,null,null,null,null,null,null,"FE Element Fenders | FE 750 | G 2.2",null,null,null,null,null,null,null,null,null,"SAN/SANP Super Arch Fenders | SAN/SANP 150 | E 1.8"]
[null,null,null,null,null,null,null,null,null,null,null,null,null,null,null,null,null,null,null,"FE Element Fenders | FE 750 | G 2.3",null,null,null,null,null,null,null,null,null,"SAN/SANP Super Arch Fenders | SAN/SANP 150 | E 1.9"]
[null,null,null,null,null,null,null,null,null,null,null,null,null,null,null,null,null,null,null,"FE Element Fenders | FE 750 | G 2.4",null,null,null,null,null,null,null,null,null,"SAN/SANP Super Arch Fenders | SAN/SANP 150 | E 2.0"]
[null,null,null,null,null,null,null,null,null,null,null,null,null,null,null,null,null,null,null,"FE Element Fenders | FE 750 | G 2.5",null,null,null,null,null,null,null,null,null,"SAN/SANP Super Arch Fenders | SAN/SANP 150 | E 2.1"]
[null,null,null,null,null,null,null,null,null,null,null,null,null,null,null,null,null,null,null,"FE Element Fenders | FE 750 | G 2.6",null,null,null,null,null,null,null,null,null,"SAN/SANP Super Arch Fenders | SAN/SANP 150 | E 2.2"]
[null,null,null,null,null,null,null,null,null,null,null,null,null,null,null,null,null,null,null,"FE Element Fenders | FE 750 | G 2.7",null,null,null,null,null,null,null,null,null,"SAN/SANP Super Arch Fenders | SAN/SANP 150 | E 2.3"]
[null,null,null,null,null,null,null,null,null,null,null,null,null,null,null,null,null,null,null,"FE Element Fenders | FE 750 | G 2.8",null,null,null,null,null,null,null,null,null,"SAN/SANP Super Arch Fenders | SAN/SANP 150 | E 2.4"]
[null,null,null,null,null,null,null,null,null,null,null,null,null,null,null,null,null,null,null,"FE Element Fenders | FE 750 | G 2.9",null,null,null,null,null,null,null,null,null,"SAN/SANP Super Arch Fenders | SAN/SANP 150 | E 2.5"]
[null,null,null,null,null,null,null,null,null,null,null,null,null,null,null,null,null,null,null,"FE Element Fenders | FE 750 | G 3.0",null,null,null,null,null,null,null,null,null,"SAN/SANP Super Arch Fenders | SAN/SANP 150 | E 2.6"]
[null,null,null,null,null,null,null,null,null,null,null,null,null,null,null,null,null,null,null,"FE Element Fenders | FE 750 | G 3.1",null,null,null,null,null,null,null,null,null,"SAN/SANP Super Arch Fenders | SAN/SANP 150 | E 2.7"]
[null,null,null,null,null,null,null,null,null,null,null,null,null,null,null,null,null,null,null,"FE Element Fenders | FE 800 | G 0.9",null,null,null,null,null,null,null,null,null,"SAN/SANP Super Arch Fenders | SAN/SANP 150 | E 2.8"]
[null,null,null,null,null,null,null,null,null,null,null,null,null,null,null,null,null,null,null,"FE Element Fenders | FE 800 | G 1.0",null,null,null,null,null,null,null,null,null,"SAN/SANP Super Arch Fenders | SAN/SANP 150 | E 2.9"]
[null,null,null,null,null,null,null,null,null,null,null,null,null,null,null,null,null,null,null,"FE Element Fenders | FE 800 | G 1.1",null,null,null,null,null,null,null,null,null,"SAN/SANP Super Arch Fenders | SAN/SANP 150 | E 3.0"]
[null,null,null,null,null,null,null,null,null,null,null,null,null,null,null,null,null,null,null,"FE Element Fenders | FE 800 | G 1.2",null,null,null,null,null,null,null,null,null,"SAN/SANP Super Arch Fenders | SAN/SANP 200 | E 1.0"]
[null,null,null,null,null,null,null,null,null,null,null,null,null,null,null,null,null,null,null,"FE Element Fenders | FE 800 | G 1.3",null,null,null,null,null,null,null,null,null,"SAN/SANP Super Arch Fenders | SAN/SANP 200 | E 1.1"]
[null,null,null,null,null,null,null,null,null,null,null,null,null,null,null,null,null,null,null,"FE Element Fenders | FE 800 | G 1.4",null,null,null,null,null,null,null,null,null,"SAN/SANP Super Arch Fenders | SAN/SANP 200 | E 1.2"]
[null,null,null,null,null,null,null,null,null,null,null,null,null,null,null,null,null,null,null,"FE Element Fenders | FE 800 | G 1.5",null,null,null,null,null,null,null,null,null,"SAN/SANP Super Arch Fenders | SAN/SANP 200 | E 1.3"]
[null,null,null,null,null,null,null,null,null,null,null,null,null,null,null,null,null,null,null,"FE Element Fenders | FE 800 | G 1.6",null,null,null,null,null,null,null,null,null,"SAN/SANP Super Arch Fenders | SAN/SANP 200 | E 1.4"]
[null,null,null,null,null,null,null,null,null,null,null,null,null,null,null,null,null,null,null,"FE Element Fenders | FE 800 | G 1.7",null,null,null,null,null,null,null,null,null,"SAN/SANP Super Arch Fenders | SAN/SANP 200 | E 1.5"]
[null,null,null,null,null,null,null,null,null,null,null,null,null,null,null,null,null,null,null,"FE Element Fenders | FE 800 | G 1.8",null,null,null,null,null,null,null,null,null,"SAN/SANP Super Arch Fenders | SAN/SANP 200 | E 1.6"]
[null,null,null,null,null,null,null,null,null,null,null,null,null,null,null,null,null,null,null,"FE Element Fenders | FE 800 | G 1.9",null,null,null,null,null,null,null,null,null,"SAN/SANP Super Arch Fenders | SAN/SANP 200 | E 1.7"]
[null,null,null,null,null,null,null,null,null,null,null,null,null,null,null,null,null,null,null,"FE Element Fenders | FE 800 | G 2.0",null,null,null,null,null,null,null,null,null,"SAN/SANP Super Arch Fenders | SAN/SANP 200 | E 1.8"]
[null,null,null,null,null,null,null,null,null,null,null,null,null,null,null,null,null,null,null,"FE Element Fenders | FE 800 | G 2.1",null,null,null,null,null,null,null,null,null,"SAN/SANP Super Arch Fenders | SAN/SANP 200 | E 1.9"]
[null,null,null,null,null,null,null,null,null,null,null,null,null,null,null,null,null,null,null,"FE Element Fenders | FE 800 | G 2.2",null,null,null,null,null,null,null,null,null,"SAN/SANP Super Arch Fenders | SAN/SANP 200 | E 2.0"]
[null,null,null,null,null,null,null,null,null,null,null,null,null,null,null,null,null,null,null,"FE Element Fenders | FE 800 | G 2.3",null,null,null,null,null,null,null,null,null,"SAN/SANP Super Arch Fenders | SAN/SANP 200 | E 2.1"]
[null,null,null,null,null,null,null,null,null,null,null,null,null,null,null,null,null,null,null,"FE Element Fenders | FE 800 | G 2.4",null,null,null,null,null,null,null,null,null,"SAN/SANP Super Arch Fenders | SAN/SANP 200 | E 2.2"]
[null,null,null,null,null,null,null,null,null,null,null,null,null,null,null,null,null,null,null,"FE Element Fenders | FE 800 | G 2.5",null,null,null,null,null,null,null,null,null,"SAN/SANP Super Arch Fenders | SAN/SANP 200 | E 2.3"]
[null,null,null,null,null,null,null,null,null,null,null,null,null,null,null,null,null,null,null,"FE Element Fenders | FE 800 | G 2.6",null,null,null,null,null,null,null,null,null,"SAN/SANP Super Arch Fenders | SAN/SANP 200 | E 2.4"]
[null,null,null,null,null,null,null,null,null,null,null,null,null,null,null,null,null,null,null,"FE Element Fenders | FE 800 | G 2.7",null,null,null,null,null,null,null,null,null,"SAN/SANP Super Arch Fenders | SAN/SANP 200 | E 2.5"]
[null,null,null,null,null,null,null,null,null,null,null,null,null,null,null,null,null,null,null,"FE Element Fenders | FE 800 | G 2.8",null,null,null,null,null,null,null,null,null,"SAN/SANP Super Arch Fenders | SAN/SANP 200 | E 2.6"]
[null,null,null,null,null,null,null,null,null,null,null,null,null,null,null,null,null,null,null,"FE Element Fenders | FE 800 | G 2.9",null,null,null,null,null,null,null,null,null,"SAN/SANP Super Arch Fenders | SAN/SANP 200 | E 2.7"]
[null,null,null,null,null,null,null,null,null,null,null,null,null,null,null,null,null,null,null,"FE Element Fenders | FE 800 | G 3.0",null,null,null,null,null,null,null,null,null,"SAN/SANP Super Arch Fenders | SAN/SANP 200 | E 2.8"]
[null,null,null,null,null,null,null,null,null,null,null,null,null,null,null,null,null,null,null,"FE Element Fenders | FE 800 | G 3.1",null,null,null,null,null,null,null,null,null,"SAN/SANP Super Arch Fenders | SAN/SANP 200 | E 2.9"]
[null,null,null,null,null,null,null,null,null,null,null,null,null,null,null,null,null,null,null,"FE Element Fenders | FE 900 | G 0.9",null,null,null,null,null,null,null,null,null,"SAN/SANP Super Arch Fenders | SAN/SANP 200 | E 3.0"]
[null,null,null,null,null,null,null,null,null,null,null,null,null,null,null,null,null,null,null,"FE Element Fenders | FE 900 | G 1.0",null,null,null,null,null,null,null,null,null,"SAN/SANP Super Arch Fenders | SAN/SANP 250 | E 1.0"]
[null,null,null,null,null,null,null,null,null,null,null,null,null,null,null,null,null,null,null,"FE Element Fenders | FE 900 | G 1.1",null,null,null,null,null,null,null,null,null,"SAN/SANP Super Arch Fenders | SAN/SANP 250 | E 1.1"]
[null,null,null,null,null,null,null,null,null,null,null,null,null,null,null,null,null,null,null,"FE Element Fenders | FE 900 | G 1.2",null,null,null,null,null,null,null,null,null,"SAN/SANP Super Arch Fenders | SAN/SANP 250 | E 1.2"]
[null,null,null,null,null,null,null,null,null,null,null,null,null,null,null,null,null,null,null,"FE Element Fenders | FE 900 | G 1.3",null,null,null,null,null,null,null,null,null,"SAN/SANP Super Arch Fenders | SAN/SANP 250 | E 1.3"]
[null,null,null,null,null,null,null,null,null,null,null,null,null,null,null,null,null,null,null,"FE Element Fenders | FE 900 | G 1.4",null,null,null,null,null,null,null,null,null,"SAN/SANP Super Arch Fenders | SAN/SANP 250 | E 1.4"]
[null,null,null,null,null,null,null,null,null,null,null,null,null,null,null,null,null,null,null,"FE Element Fenders | FE 900 | G 1.5",null,null,null,null,null,null,null,null,null,"SAN/SANP Super Arch Fenders | SAN/SANP 250 | E 1.5"]
[null,null,null,null,null,null,null,null,null,null,null,null,null,null,null,null,null,null,null,"FE Element Fenders | FE 900 | G 1.6",null,null,null,null,null,null,null,null,null,"SAN/SANP Super Arch Fenders | SAN/SANP 250 | E 1.6"]
[null,null,null,null,null,null,null,null,null,null,null,null,null,null,null,null,null,null,null,"FE Element Fenders | FE 900 | G 1.7",null,null,null,null,null,null,null,null,null,"SAN/SANP Super Arch Fenders | SAN/SANP 250 | E 1.7"]
[null,null,null,null,null,null,null,null,null,null,null,null,null,null,null,null,null,null,null,"FE Element Fenders | FE 900 | G 1.8",null,null,null,null,null,null,null,null,null,"SAN/SANP Super Arch Fenders | SAN/SANP 250 | E 1.8"]
[null,null,null,null,null,null,null,null,null,null,null,null,null,null,null,null,null,null,null,"FE Element Fenders | FE 900 | G 1.9",null,null,null,null,null,null,null,null,null,"SAN/SANP Super Arch Fenders | SAN/SANP 250 | E 1.9"]
[null,null,null,null,null,null,null,null,null,null,null,null,null,null,null,null,null,null,null,"FE Element Fenders | FE 900 | G 2.0",null,null,null,null,null,null,null,null,null,"SAN/SANP Super Arch Fenders | SAN/SANP 250 | E 2.0"]
[null,null,null,null,null,null,null,null,null,null,null,null,null,null,null,null,null,null,null,"FE Element Fenders | FE 900 | G 2.1",null,null,null,null,null,null,null,null,null,"SAN/SANP Super Arch Fenders | SAN/SANP 250 | E 2.1"]
[null,null,null,null,null,null,null,null,null,null,null,null,null,null,null,null,null,null,null,"FE Element Fenders | FE 900 | G 2.2",null,null,null,null,null,null,null,null,null,"SAN/SANP Super Arch Fenders | SAN/SANP 250 | E 2.2"]
[null,null,null,null,null,null,null,null,null,null,null,null,null,null,null,null,null,null,null,"FE Element Fenders | FE 900 | G 2.3",null,null,null,null,null,null,null,null,null,"SAN/SANP Super Arch Fenders | SAN/SANP 250 | E 2.3"]
[null,null,null,null,null,null,null,null,null,null,null,null,null,null,null,null,null,null,null,"FE Element Fenders | FE 900 | G 2.4",null,null,null,null,null,null,null,null,null,"SAN/SANP Super Arch Fenders | SAN/SANP 250 | E 2.4"]
[null,null,null,null,null,null,null,null,null,null,null,null,null,null,null,null,null,null,null,"FE Element Fenders | FE 900 | G 2.5",null,null,null,null,null,null,null,null,null,"SAN/SANP Super Arch Fenders | SAN/SANP 250 | E 2.5"]
[null,null,null,null,null,null,null,null,null,null,null,null,null,null,null,null,null,null,null,"FE Element Fenders | FE 900 | G 2.6",null,null,null,null,null,null,null,null,null,"SAN/SANP Super Arch Fenders | SAN/SANP 250 | E 2.6"]
[null,null,null,null,null,null,null,null,null,null,null,null,null,null,null,null,null,null,null,"FE Element Fenders | FE 900 | G 2.7",null,null,null,null,null,null,null,null,null,"SAN/SANP Super Arch Fenders | SAN/SANP 250 | E 2.7"]
[null,null,null,null,null,null,null,null,null,null,null,null,null,null,null,null,null,null,null,"FE Element Fenders | FE 900 | G 2.8",null,null,null,null,null,null,null,null,null,"SAN/SANP Super Arch Fenders | SAN/SANP 250 | E 2.8"]
[null,null,null,null,null,null,null,null,null,null,null,null,null,null,null,null,null,null,null,"FE Element Fenders | FE 900 | G 2.9",null,null,null,null,null,null,null,null,null,"SAN/SANP Super Arch Fenders | SAN/SANP 250 | E 2.9"]
[null,null,null,null,null,null,null,null,null,null,null,null,null,null,null,null,null,null,null,"FE Element Fenders | FE 900 | G 3.0",null,null,null,null,null,null,null,null,null,"SAN/SANP Super Arch Fenders | SAN/SANP 250 | E 3.0"]
[null,null,null,null,null,null,null,null,null,null,null,null,null,null,null,null,null,null,null,"FE Element Fenders | FE 900 | G 3.1",null,null,null,null,null,null,null,null,null,"SAN/SANP Super Arch Fenders | SAN/SANP 300 | E 1.0"]
[null,null,null,null,null,null,null,null,null,null,null,null,null,null,null,null,null,null,null,"FE Element Fenders | FE 1000 | G 0.9",null,null,null,null,null,null,null,null,null,"SAN/SANP Super Arch Fenders | SAN/SANP 300 | E 1.1"]
[null,null,null,null,null,null,null,null,null,null,null,null,null,null,null,null,null,null,null,"FE Element Fenders | FE 1000 | G 1.0",null,null,null,null,null,null,null,null,null,"SAN/SANP Super Arch Fenders | SAN/SANP 300 | E 1.2"]
[null,null,null,null,null,null,null,null,null,null,null,null,null,null,null,null,null,null,null,"FE Element Fenders | FE 1000 | G 1.1",null,null,null,null,null,null,null,null,null,"SAN/SANP Super Arch Fenders | SAN/SANP 300 | E 1.3"]
[null,null,null,null,null,null,null,null,null,null,null,null,null,null,null,null,null,null,null,"FE Element Fenders | FE 1000 | G 1.2",null,null,null,null,null,null,null,null,null,"SAN/SANP Super Arch Fenders | SAN/SANP 300 | E 1.4"]
[null,null,null,null,null,null,null,null,null,null,null,null,null,null,null,null,null,null,null,"FE Element Fenders | FE 1000 | G 1.3",null,null,null,null,null,null,null,null,null,"SAN/SANP Super Arch Fenders | SAN/SANP 300 | E 1.5"]
[null,null,null,null,null,null,null,null,null,null,null,null,null,null,null,null,null,null,null,"FE Element Fenders | FE 1000 | G 1.4",null,null,null,null,null,null,null,null,null,"SAN/SANP Super Arch Fenders | SAN/SANP 300 | E 1.6"]
[null,null,null,null,null,null,null,null,null,null,null,null,null,null,null,null,null,null,null,"FE Element Fenders | FE 1000 | G 1.5",null,null,null,null,null,null,null,null,null,"SAN/SANP Super Arch Fenders | SAN/SANP 300 | E 1.7"]
[null,null,null,null,null,null,null,null,null,null,null,null,null,null,null,null,null,null,null,"FE Element Fenders | FE 1000 | G 1.6",null,null,null,null,null,null,null,null,null,"SAN/SANP Super Arch Fenders | SAN/SANP 300 | E 1.8"]
[null,null,null,null,null,null,null,null,null,null,null,null,null,null,null,null,null,null,null,"FE Element Fenders | FE 1000 | G 1.7",null,null,null,null,null,null,null,null,null,"SAN/SANP Super Arch Fenders | SAN/SANP 300 | E 1.9"]
[null,null,null,null,null,null,null,null,null,null,null,null,null,null,null,null,null,null,null,"FE Element Fenders | FE 1000 | G 1.8",null,null,null,null,null,null,null,null,null,"SAN/SANP Super Arch Fenders | SAN/SANP 300 | E 2.0"]
[null,null,null,null,null,null,null,null,null,null,null,null,null,null,null,null,null,null,null,"FE Element Fenders | FE 1000 | G 1.9",null,null,null,null,null,null,null,null,null,"SAN/SANP Super Arch Fenders | SAN/SANP 300 | E 2.1"]
[null,null,null,null,null,null,null,null,null,null,null,null,null,null,null,null,null,null,null,"FE Element Fenders | FE 1000 | G 2.0",null,null,null,null,null,null,null,null,null,"SAN/SANP Super Arch Fenders | SAN/SANP 300 | E 2.2"]
[null,null,null,null,null,null,null,null,null,null,null,null,null,null,null,null,null,null,null,"FE Element Fenders | FE 1000 | G 2.1",null,null,null,null,null,null,null,null,null,"SAN/SANP Super Arch Fenders | SAN/SANP 300 | E 2.3"]
[null,null,null,null,null,null,null,null,null,null,null,null,null,null,null,null,null,null,null,"FE Element Fenders | FE 1000 | G 2.2",null,null,null,null,null,null,null,null,null,"SAN/SANP Super Arch Fenders | SAN/SANP 300 | E 2.4"]
[null,null,null,null,null,null,null,null,null,null,null,null,null,null,null,null,null,null,null,"FE Element Fenders | FE 1000 | G 2.3",null,null,null,null,null,null,null,null,null,"SAN/SANP Super Arch Fenders | SAN/SANP 300 | E 2.5"]
[null,null,null,null,null,null,null,null,null,null,null,null,null,null,null,null,null,null,null,"FE Element Fenders | FE 1000 | G 2.4",null,null,null,null,null,null,null,null,null,"SAN/SANP Super Arch Fenders | SAN/SANP 300 | E 2.6"]
[null,null,null,null,null,null,null,null,null,null,null,null,null,null,null,null,null,null,null,"FE Element Fenders | FE 1000 | G 2.5",null,null,null,null,null,null,null,null,null,"SAN/SANP Super Arch Fenders | SAN/SANP 300 | E 2.7"]
[null,null,null,null,null,null,null,null,null,null,null,null,null,null,null,null,null,null,null,"FE Element Fenders | FE 1000 | G 2.6",null,null,null,null,null,null,null,null,null,"SAN/SANP Super Arch Fenders | SAN/SANP 300 | E 2.8"]
[null,null,null,null,null,null,null,null,null,null,null,null,null,null,null,null,null,null,null,"FE Element Fenders | FE 1000 | G 2.7",null,null,null,null,null,null,null,null,null,"SAN/SANP Super Arch Fenders | SAN/SANP 300 | E 2.9"]
[null,null,null,null,null,null,null,null,null,null,null,null,null,null,null,null,null,null,null,"FE Element Fenders | FE 1000 | G 2.8",null,null,null,null,null,null,null,null,null,"SAN/SANP Super Arch Fenders | SAN/SANP 300 | E 3.0"]
[null,null,null,null,null,null,null,null,null,null,null,null,null,null,null,null,null,null,null,"FE Element Fenders | FE 1000 | G 2.9",null,null,null,null,null,null,null,null,null,"SAN/SANP Super Arch Fenders | SAN/SANP 400 | E 1.0"]
[null,null,null,null,null,null,null,null,null,null,null,null,null,null,null,null,null,null,null,"FE Element Fenders | FE 1000 | G 3.0",null,null,null,null,null,null,null,null,null,"SAN/SANP Super Arch Fenders | SAN/SANP 400 | E 1.1"]
[null,null,null,null,null,null,null,null,null,null,null,null,null,null,null,null,null,null,null,"FE Element Fenders | FE 1000 | G 3.1",null,null,null,null,null,null,null,null,null,"SAN/SANP Super Arch Fenders | SAN/SANP 400 | E 1.2"]
[null,null,null,null,null,null,null,null,null,null,null,null,null,null,null,null,null,null,null,"FE Element Fenders | FE 1200 | G 0.9",null,null,null,null,null,null,null,null,null,"SAN/SANP Super Arch Fenders | SAN/SANP 400 | E 1.3"]
[null,null,null,null,null,null,null,null,null,null,null,null,null,null,null,null,null,null,null,"FE Element Fenders | FE 1200 | G 1.0",null,null,null,null,null,null,null,null,null,"SAN/SANP Super Arch Fenders | SAN/SANP 400 | E 1.4"]
[null,null,null,null,null,null,null,null,null,null,null,null,null,null,null,null,null,null,null,"FE Element Fenders | FE 1200 | G 1.1",null,null,null,null,null,null,null,null,null,"SAN/SANP Super Arch Fenders | SAN/SANP 400 | E 1.5"]
[null,null,null,null,null,null,null,null,null,null,null,null,null,null,null,null,null,null,null,"FE Element Fenders | FE 1200 | G 1.2",null,null,null,null,null,null,null,null,null,"SAN/SANP Super Arch Fenders | SAN/SANP 400 | E 1.6"]
[null,null,null,null,null,null,null,null,null,null,null,null,null,null,null,null,null,null,null,"FE Element Fenders | FE 1200 | G 1.3",null,null,null,null,null,null,null,null,null,"SAN/SANP Super Arch Fenders | SAN/SANP 400 | E 1.7"]
[null,null,null,null,null,null,null,null,null,null,null,null,null,null,null,null,null,null,null,"FE Element Fenders | FE 1200 | G 1.4",null,null,null,null,null,null,null,null,null,"SAN/SANP Super Arch Fenders | SAN/SANP 400 | E 1.8"]
[null,null,null,null,null,null,null,null,null,null,null,null,null,null,null,null,null,null,null,"FE Element Fenders | FE 1200 | G 1.5",null,null,null,null,null,null,null,null,null,"SAN/SANP Super Arch Fenders | SAN/SANP 400 | E 1.9"]
[null,null,null,null,null,null,null,null,null,null,null,null,null,null,null,null,null,null,null,"FE Element Fenders | FE 1200 | G 1.6",null,null,null,null,null,null,null,null,null,"SAN/SANP Super Arch Fenders | SAN/SANP 400 | E 2.0"]
[null,null,null,null,null,null,null,null,null,null,null,null,null,null,null,null,null,null,null,"FE Element Fenders | FE 1200 | G 1.7",null,null,null,null,null,null,null,null,null,"SAN/SANP Super Arch Fenders | SAN/SANP 400 | E 2.1"]
[null,null,null,null,null,null,null,null,null,null,null,null,null,null,null,null,null,null,null,"FE Element Fenders | FE 1200 | G 1.8",null,null,null,null,null,null,null,null,null,"SAN/SANP Super Arch Fenders | SAN/SANP 400 | E 2.2"]
[null,null,null,null,null,null,null,null,null,null,null,null,null,null,null,null,null,null,null,"FE Element Fenders | FE 1200 | G 1.9",null,null,null,null,null,null,null,null,null,"SAN/SANP Super Arch Fenders | SAN/SANP 400 | E 2.3"]
[null,null,null,null,null,null,null,null,null,null,null,null,null,null,null,null,null,null,null,"FE Element Fenders | FE 1200 | G 2.0",null,null,null,null,null,null,null,null,null,"SAN/SANP Super Arch Fenders | SAN/SANP 400 | E 2.4"]
[null,null,null,null,null,null,null,null,null,null,null,null,null,null,null,null,null,null,null,"FE Element Fenders | FE 1200 | G 2.1",null,null,null,null,null,null,null,null,null,"SAN/SANP Super Arch Fenders | SAN/SANP 400 | E 2.5"]
[null,null,null,null,null,null,null,null,null,null,null,null,null,null,null,null,null,null,null,"FE Element Fenders | FE 1200 | G 2.2",null,null,null,null,null,null,null,null,null,"SAN/SANP Super Arch Fenders | SAN/SANP 400 | E 2.6"]
[null,null,null,null,null,null,null,null,null,null,null,null,null,null,null,null,null,null,null,"FE Element Fenders | FE 1200 | G 2.3",null,null,null,null,null,null,null,null,null,"SAN/SANP Super Arch Fenders | SAN/SANP 400 | E 2.7"]
[null,null,null,null,null,null,null,null,null,null,null,null,null,null,null,null,null,null,null,"FE Element Fenders | FE 1200 | G 2.4",null,null,null,null,null,null,null,null,null,"SAN/SANP Super Arch Fenders | SAN/SANP 400 | E 2.8"]
[null,null,null,null,null,null,null,null,null,null,null,null,null,null,null,null,null,null,null,"FE Element Fenders | FE 1200 | G 2.5",null,null,null,null,null,null,null,null,null,"SAN/SANP Super Arch Fenders | SAN/SANP 400 | E 2.9"]
[null,null,null,null,null,null,null,null,null,null,null,null,null,null,null,null,null,null,null,"FE Element Fenders | FE 1200 | G 2.6",null,null,null,null,null,null,null,null,null,"SAN/SANP Super Arch Fenders | SAN/SANP 400 | E 3.0"]
[null,null,null,null,null,null,null,null,null,null,null,null,null,null,null,null,null,null,null,"FE Element Fenders | FE 1200 | G 2.7",null,null,null,null,null,null,null,null,null,"SAN/SANP Super Arch Fenders | SAN/SANP 500 | E 1.0"]
[null,null,null,null,null,null,null,null,null,null,null,null,null,null,null,null,null,null,null,"FE Element Fenders | FE 1200 | G 2.8",null,null,null,null,null,null,null,null,null,"SAN/SANP Super Arch Fenders | SAN/SANP 500 | E 1.1"]
[null,null,null,null,null,null,null,null,null,null,null,null,null,null,null,null,null,null,null,"FE Element Fenders | FE 1200 | G 2.9",null,null,null,null,null,null,null,null,null,"SAN/SANP Super Arch Fenders | SAN/SANP 500 | E 1.2"]
[null,null,null,null,null,null,null,null,null,null,null,null,null,null,null,null,null,null,null,"FE Element Fenders | FE 1200 | G 3.0",null,null,null,null,null,null,null,null,null,"SAN/SANP Super Arch Fenders | SAN/SANP 500 | E 1.3"]
[null,null,null,null,null,null,null,null,null,null,null,null,null,null,null,null,null,null,null,"FE Element Fenders | FE 1200 | G 3.1",null,null,null,null,null,null,null,null,null,"SAN/SANP Super Arch Fenders | SAN/SANP 500 | E 1.4"]
[null,null,null,null,null,null,null,null,null,null,null,null,null,null,null,null,null,null,null,"FE Element Fenders | FE 1250 | G 0.9",null,null,null,null,null,null,null,null,null,"SAN/SANP Super Arch Fenders | SAN/SANP 500 | E 1.5"]
[null,null,null,null,null,null,null,null,null,null,null,null,null,null,null,null,null,null,null,"FE Element Fenders | FE 1250 | G 1.0",null,null,null,null,null,null,null,null,null,"SAN/SANP Super Arch Fenders | SAN/SANP 500 | E 1.6"]
[null,null,null,null,null,null,null,null,null,null,null,null,null,null,null,null,null,null,null,"FE Element Fenders | FE 1250 | G 1.1",null,null,null,null,null,null,null,null,null,"SAN/SANP Super Arch Fenders | SAN/SANP 500 | E 1.7"]
[null,null,null,null,null,null,null,null,null,null,null,null,null,null,null,null,null,null,null,"FE Element Fenders | FE 1250 | G 1.2",null,null,null,null,null,null,null,null,null,"SAN/SANP Super Arch Fenders | SAN/SANP 500 | E 1.8"]
[null,null,null,null,null,null,null,null,null,null,null,null,null,null,null,null,null,null,null,"FE Element Fenders | FE 1250 | G 1.3",null,null,null,null,null,null,null,null,null,"SAN/SANP Super Arch Fenders | SAN/SANP 500 | E 1.9"]
[null,null,null,null,null,null,null,null,null,null,null,null,null,null,null,null,null,null,null,"FE Element Fenders | FE 1250 | G 1.4",null,null,null,null,null,null,null,null,null,"SAN/SANP Super Arch Fenders | SAN/SANP 500 | E 2.0"]
[null,null,null,null,null,null,null,null,null,null,null,null,null,null,null,null,null,null,null,"FE Element Fenders | FE 1250 | G 1.5",null,null,null,null,null,null,null,null,null,"SAN/SANP Super Arch Fenders | SAN/SANP 500 | E 2.1"]
[null,null,null,null,null,null,null,null,null,null,null,null,null,null,null,null,null,null,null,"FE Element Fenders | FE 1250 | G 1.6",null,null,null,null,null,null,null,null,null,"SAN/SANP Super Arch Fenders | SAN/SANP 500 | E 2.2"]
[null,null,null,null,null,null,null,null,null,null,null,null,null,null,null,null,null,null,null,"FE Element Fenders | FE 1250 | G 1.7",null,null,null,null,null,null,null,null,null,"SAN/SANP Super Arch Fenders | SAN/SANP 500 | E 2.3"]
[null,null,null,null,null,null,null,null,null,null,null,null,null,null,null,null,null,null,null,"FE Element Fenders | FE 1250 | G 1.8",null,null,null,null,null,null,null,null,null,"SAN/SANP Super Arch Fenders | SAN/SANP 500 | E 2.4"]
[null,null,null,null,null,null,null,null,null,null,null,null,null,null,null,null,null,null,null,"FE Element Fenders | FE 1250 | G 1.9",null,null,null,null,null,null,null,null,null,"SAN/SANP Super Arch Fenders | SAN/SANP 500 | E 2.5"]
[null,null,null,null,null,null,null,null,null,null,null,null,null,null,null,null,null,null,null,"FE Element Fenders | FE 1250 | G 2.0",null,null,null,null,null,null,null,null,null,"SAN/SANP Super Arch Fenders | SAN/SANP 500 | E 2.6"]
[null,null,null,null,null,null,null,null,null,null,null,null,null,null,null,null,null,null,null,"FE Element Fenders | FE 1250 | G 2.1",null,null,null,null,null,null,null,null,null,"SAN/SANP Super Arch Fenders | SAN/SANP 500 | E 2.7"]
[null,null,null,null,null,null,null,null,null,null,null,null,null,null,null,null,null,null,null,"FE Element Fenders | FE 1250 | G 2.2",null,null,null,null,null,null,null,null,null,"SAN/SANP Super Arch Fenders | SAN/SANP 500 | E 2.8"]
[null,null,null,null,null,null,null,null,null,null,null,null,null,null,null,null,null,null,null,"FE Element Fenders | FE 1250 | G 2.3",null,null,null,null,null,null,null,null,null,"SAN/SANP Super Arch Fenders | SAN/SANP 500 | E 2.9"]
[null,null,null,null,null,null,null,null,null,null,null,null,null,null,null,null,null,null,null,"FE Element Fenders | FE 1250 | G 2.4",null,null,null,null,null,null,null,null,null,"SAN/SANP Super Arch Fenders | SAN/SANP 500 | E 3.0"]
[null,null,null,null,null,null,null,null,null,null,null,null,null,null,null,null,null,null,null,"FE Element Fenders | FE 1250 | G 2.5",null,null,null,null,null,null,null,null,null,"SAN/SANP Super Arch Fenders | SAN/SANP 600 | E 1.0"]
[null,null,null,null,null,null,null,null,null,null,null,null,null,null,null,null,null,null,null,"FE Element Fenders | FE 1250 | G 2.6",null,null,null,null,null,null,null,null,null,"SAN/SANP Super Arch Fenders | SAN/SANP 600 | E 1.1"]
[null,null,null,null,null,null,null,null,null,null,null,null,null,null,null,null,null,null,null,"FE Element Fenders | FE 1250 | G 2.7",null,null,null,null,null,null,null,null,null,"SAN/SANP Super Arch Fenders | SAN/SANP 600 | E 1.2"]
[null,null,null,null,null,null,null,null,null,null,null,null,null,null,null,null,null,null,null,"FE Element Fenders | FE 1250 | G 2.8",null,null,null,null,null,null,null,null,null,"SAN/SANP Super Arch Fenders | SAN/SANP 600 | E 1.3"]
[null,null,null,null,null,null,null,null,null,null,null,null,null,null,null,null,null,null,null,"FE Element Fenders | FE 1250 | G 2.9",null,null,null,null,null,null,null,null,null,"SAN/SANP Super Arch Fenders | SAN/SANP 600 | E 1.4"]
[null,null,null,null,null,null,null,null,null,null,null,null,null,null,null,null,null,null,null,"FE Element Fenders | FE 1250 | G 3.0",null,null,null,null,null,null,null,null,null,"SAN/SANP Super Arch Fenders | SAN/SANP 600 | E 1.5"]
[null,null,null,null,null,null,null,null,null,null,null,null,null,null,null,null,null,null,null,"FE Element Fenders | FE 1250 | G 3.1",null,null,null,null,null,null,null,null,null,"SAN/SANP Super Arch Fenders | SAN/SANP 600 | E 1.6"]
[null,null,null,null,null,null,null,null,null,null,null,null,null,null,null,null,null,null,null,"FE Element Fenders | FE 1400 | G 0.9",null,null,null,null,null,null,null,null,null,"SAN/SANP Super Arch Fenders | SAN/SANP 600 | E 1.7"]
[null,null,null,null,null,null,null,null,null,null,null,null,null,null,null,null,null,null,null,"FE Element Fenders | FE 1400 | G 1.0",null,null,null,null,null,null,null,null,null,"SAN/SANP Super Arch Fenders | SAN/SANP 600 | E 1.8"]
[null,null,null,null,null,null,null,null,null,null,null,null,null,null,null,null,null,null,null,"FE Element Fenders | FE 1400 | G 1.1",null,null,null,null,null,null,null,null,null,"SAN/SANP Super Arch Fenders | SAN/SANP 600 | E 1.9"]
[null,null,null,null,null,null,null,null,null,null,null,null,null,null,null,null,null,null,null,"FE Element Fenders | FE 1400 | G 1.2",null,null,null,null,null,null,null,null,null,"SAN/SANP Super Arch Fenders | SAN/SANP 600 | E 2.0"]
[null,null,null,null,null,null,null,null,null,null,null,null,null,null,null,null,null,null,null,"FE Element Fenders | FE 1400 | G 1.3",null,null,null,null,null,null,null,null,null,"SAN/SANP Super Arch Fenders | SAN/SANP 600 | E 2.1"]
[null,null,null,null,null,null,null,null,null,null,null,null,null,null,null,null,null,null,null,"FE Element Fenders | FE 1400 | G 1.4",null,null,null,null,null,null,null,null,null,"SAN/SANP Super Arch Fenders | SAN/SANP 600 | E 2.2"]
[null,null,null,null,null,null,null,null,null,null,null,null,null,null,null,null,null,null,null,"FE Element Fenders | FE 1400 | G 1.5",null,null,null,null,null,null,null,null,null,"SAN/SANP Super Arch Fenders | SAN/SANP 600 | E 2.3"]
[null,null,null,null,null,null,null,null,null,null,null,null,null,null,null,null,null,null,null,"FE Element Fenders | FE 1400 | G 1.6",null,null,null,null,null,null,null,null,null,"SAN/SANP Super Arch Fenders | SAN/SANP 600 | E 2.4"]
[null,null,null,null,null,null,null,null,null,null,null,null,null,null,null,null,null,null,null,"FE Element Fenders | FE 1400 | G 1.7",null,null,null,null,null,null,null,null,null,"SAN/SANP Super Arch Fenders | SAN/SANP 600 | E 2.5"]
[null,null,null,null,null,null,null,null,null,null,null,null,null,null,null,null,null,null,null,"FE Element Fenders | FE 1400 | G 1.8",null,null,null,null,null,null,null,null,null,"SAN/SANP Super Arch Fenders | SAN/SANP 600 | E 2.6"]
[null,null,null,null,null,null,null,null,null,null,null,null,null,null,null,null,null,null,null,"FE Element Fenders | FE 1400 | G 1.9",null,null,null,null,null,null,null,null,null,"SAN/SANP Super Arch Fenders | SAN/SANP 600 | E 2.7"]
[null,null,null,null,null,null,null,null,null,null,null,null,null,null,null,null,null,null,null,"FE Element Fenders | FE 1400 | G 2.0",null,null,null,null,null,null,null,null,null,"SAN/SANP Super Arch Fenders | SAN/SANP 600 | E 2.8"]
[null,null,null,null,null,null,null,null,null,null,null,null,null,null,null,null,null,null,null,"FE Element Fenders | FE 1400 | G 2.1",null,null,null,null,null,null,null,null,null,"SAN/SANP Super Arch Fenders | SAN/SANP 600 | E 2.9"]
[null,null,null,null,null,null,null,null,null,null,null,null,null,null,null,null,null,null,null,"FE Element Fenders | FE 1400 | G 2.2",null,null,null,null,null,null,null,null,null,"SAN/SANP Super Arch Fenders | SAN/SANP 600 | E 3.0"]
[null,null,null,null,null,null,null,null,null,null,null,null,null,null,null,null,null,null,null,"FE Element Fenders | FE 1400 | G 2.3",null,null,null,null,null,null,null,null,null,"SAN/SANP Super Arch Fenders | SAN/SANP 800 | E 1.0"]
[null,null,null,null,null,null,null,null,null,null,null,null,null,null,null,null,null,null,null,"FE Element Fenders | FE 1400 | G 2.4",null,null,null,null,null,null,null,null,null,"SAN/SANP Super Arch Fenders | SAN/SANP 800 | E 1.1"]
[null,null,null,null,null,null,null,null,null,null,null,null,null,null,null,null,null,null,null,"FE Element Fenders | FE 1400 | G 2.5",null,null,null,null,null,null,null,null,null,"SAN/SANP Super Arch Fenders | SAN/SANP 800 | E 1.2"]
[null,null,null,null,null,null,null,null,null,null,null,null,null,null,null,null,null,null,null,"FE Element Fenders | FE 1400 | G 2.6",null,null,null,null,null,null,null,null,null,"SAN/SANP Super Arch Fenders | SAN/SANP 800 | E 1.3"]
[null,null,null,null,null,null,null,null,null,null,null,null,null,null,null,null,null,null,null,"FE Element Fenders | FE 1400 | G 2.7",null,null,null,null,null,null,null,null,null,"SAN/SANP Super Arch Fenders | SAN/SANP 800 | E 1.4"]
[null,null,null,null,null,null,null,null,null,null,null,null,null,null,null,null,null,null,null,"FE Element Fenders | FE 1400 | G 2.8",null,null,null,null,null,null,null,null,null,"SAN/SANP Super Arch Fenders | SAN/SANP 800 | E 1.5"]
[null,null,null,null,null,null,null,null,null,null,null,null,null,null,null,null,null,null,null,"FE Element Fenders | FE 1400 | G 2.9",null,null,null,null,null,null,null,null,null,"SAN/SANP Super Arch Fenders | SAN/SANP 800 | E 1.6"]
[null,null,null,null,null,null,null,null,null,null,null,null,null,null,null,null,null,null,null,"FE Element Fenders | FE 1400 | G 3.0",null,null,null,null,null,null,null,null,null,"SAN/SANP Super Arch Fenders | SAN/SANP 800 | E 1.7"]
[null,null,null,null,null,null,null,null,null,null,null,null,null,null,null,null,null,null,null,"FE Element Fenders | FE 1400 | G 3.1",null,null,null,null,null,null,null,null,null,"SAN/SANP Super Arch Fenders | SAN/SANP 800 | E 1.8"]
[null,null,null,null,null,null,null,null,null,null,null,null,null,null,null,null,null,null,null,"FE Element Fenders | FE 1450 | G 0.9",null,null,null,null,null,null,null,null,null,"SAN/SANP Super Arch Fenders | SAN/SANP 800 | E 1.9"]
[null,null,null,null,null,null,null,null,null,null,null,null,null,null,null,null,null,null,null,"FE Element Fenders | FE 1450 | G 1.0",null,null,null,null,null,null,null,null,null,"SAN/SANP Super Arch Fenders | SAN/SANP 800 | E 2.0"]
[null,null,null,null,null,null,null,null,null,null,null,null,null,null,null,null,null,null,null,"FE Element Fenders | FE 1450 | G 1.1",null,null,null,null,null,null,null,null,null,"SAN/SANP Super Arch Fenders | SAN/SANP 800 | E 2.1"]
[null,null,null,null,null,null,null,null,null,null,null,null,null,null,null,null,null,null,null,"FE Element Fenders | FE 1450 | G 1.2",null,null,null,null,null,null,null,null,null,"SAN/SANP Super Arch Fenders | SAN/SANP 800 | E 2.2"]
[null,null,null,null,null,null,null,null,null,null,null,null,null,null,null,null,null,null,null,"FE Element Fenders | FE 1450 | G 1.3",null,null,null,null,null,null,null,null,null,"SAN/SANP Super Arch Fenders | SAN/SANP 800 | E 2.3"]
[null,null,null,null,null,null,null,null,null,null,null,null,null,null,null,null,null,null,null,"FE Element Fenders | FE 1450 | G 1.4",null,null,null,null,null,null,null,null,null,"SAN/SANP Super Arch Fenders | SAN/SANP 800 | E 2.4"]
[null,null,null,null,null,null,null,null,null,null,null,null,null,null,null,null,null,null,null,"FE Element Fenders | FE 1450 | G 1.5",null,null,null,null,null,null,null,null,null,"SAN/SANP Super Arch Fenders | SAN/SANP 800 | E 2.5"]
[null,null,null,null,null,null,null,null,null,null,null,null,null,null,null,null,null,null,null,"FE Element Fenders | FE 1450 | G 1.6",null,null,null,null,null,null,null,null,null,"SAN/SANP Super Arch Fenders | SAN/SANP 800 | E 2.6"]
[null,null,null,null,null,null,null,null,null,null,null,null,null,null,null,null,null,null,null,"FE Element Fenders | FE 1450 | G 1.7",null,null,null,null,null,null,null,null,null,"SAN/SANP Super Arch Fenders | SAN/SANP 800 | E 2.7"]
[null,null,null,null,null,null,null,null,null,null,null,null,null,null,null,null,null,null,null,"FE Element Fenders | FE 1450 | G 1.8",null,null,null,null,null,null,null,null,null,"SAN/SANP Super Arch Fenders | SAN/SANP 800 | E 2.8"]
[null,null,null,null,null,null,null,null,null,null,null,null,null,null,null,null,null,null,null,"FE Element Fenders | FE 1450 | G 1.9",null,null,null,null,null,null,null,null,null,"SAN/SANP Super Arch Fenders | SAN/SANP 800 | E 2.9"]
[null,null,null,null,null,null,null,null,null,null,null,null,null,null,null,null,null,null,null,"FE Element Fenders | FE 1450 | G 2.0",null,null,null,null,null,null,null,null,null,"SAN/SANP Super Arch Fenders | SAN/SANP 800 | E 3.0"]
[null,null,null,null,null,null,null,null,null,null,null,null,null,null,null,null,null,null,null,"FE Element Fenders | FE 1450 | G 2.1",null,null,null,null,null,null,null,null,null,"SAN/SANP Super Arch Fenders | SAN/SANP 1000 | E 1.0"]
[null,null,null,null,null,null,null,null,null,null,null,null,null,null,null,null,null,null,null,"FE Element Fenders | FE 1450 | G 2.2",null,null,null,null,null,null,null,null,null,"SAN/SANP Super Arch Fenders | SAN/SANP 1000 | E 1.1"]
[null,null,null,null,null,null,null,null,null,null,null,null,null,null,null,null,null,null,null,"FE Element Fenders | FE 1450 | G 2.3",null,null,null,null,null,null,null,null,null,"SAN/SANP Super Arch Fenders | SAN/SANP 1000 | E 1.2"]
[null,null,null,null,null,null,null,null,null,null,null,null,null,null,null,null,null,null,null,"FE Element Fenders | FE 1450 | G 2.4",null,null,null,null,null,null,null,null,null,"SAN/SANP Super Arch Fenders | SAN/SANP 1000 | E 1.3"]
[null,null,null,null,null,null,null,null,null,null,null,null,null,null,null,null,null,null,null,"FE Element Fenders | FE 1450 | G 2.5",null,null,null,null,null,null,null,null,null,"SAN/SANP Super Arch Fenders | SAN/SANP 1000 | E 1.4"]
[null,null,null,null,null,null,null,null,null,null,null,null,null,null,null,null,null,null,null,"FE Element Fenders | FE 1450 | G 2.6",null,null,null,null,null,null,null,null,null,"SAN/SANP Super Arch Fenders | SAN/SANP 1000 | E 1.5"]
[null,null,null,null,null,null,null,null,null,null,null,null,null,null,null,null,null,null,null,"FE Element Fenders | FE 1450 | G 2.7",null,null,null,null,null,null,null,null,null,"SAN/SANP Super Arch Fenders | SAN/SANP 1000 | E 1.6"]
[null,null,null,null,null,null,null,null,null,null,null,null,null,null,null,null,null,null,null,"FE Element Fenders | FE 1450 | G 2.8",null,null,null,null,null,null,null,null,null,"SAN/SANP Super Arch Fenders | SAN/SANP 1000 | E 1.7"]
[null,null,null,null,null,null,null,null,null,null,null,null,null,null,null,null,null,null,null,"FE Element Fenders | FE 1450 | G 2.9",null,null,null,null,null,null,null,null,null,"SAN/SANP Super Arch Fenders | SAN/SANP 1000 | E 1.8"]
[null,null,null,null,null,null,null,null,null,null,null,null,null,null,null,null,null,null,null,"FE Element Fenders | FE 1450 | G 3.0",null,null,null,null,null,null,null,null,null,"SAN/SANP Super Arch Fenders | SAN/SANP 1000 | E 1.9"]
[null,null,null,null,null,null,null,null,null,null,null,null,null,null,null,null,null,null,null,"FE Element Fenders | FE 1450 | G 3.1",null,null,null,null,null,null,null,null,null,"SAN/SANP Super Arch Fenders | SAN/SANP 1000 | E 2.0"]
[null,null,null,null,null,null,null,null,null,null,null,null,null,null,null,null,null,null,null,"FE Element Fenders | FE 1600 | G 0.9",null,null,null,null,null,null,null,null,null,"SAN/SANP Super Arch Fenders | SAN/SANP 1000 | E 2.1"]
[null,null,null,null,null,null,null,null,null,null,null,null,null,null,null,null,null,null,null,"FE Element Fenders | FE 1600 | G 1.0",null,null,null,null,null,null,null,null,null,"SAN/SANP Super Arch Fenders | SAN/SANP 1000 | E 2.2"]
[null,null,null,null,null,null,null,null,null,null,null,null,null,null,null,null,null,null,null,"FE Element Fenders | FE 1600 | G 1.1",null,null,null,null,null,null,null,null,null,"SAN/SANP Super Arch Fenders | SAN/SANP 1000 | E 2.3"]
[null,null,null,null,null,null,null,null,null,null,null,null,null,null,null,null,null,null,null,"FE Element Fenders | FE 1600 | G 1.2",null,null,null,null,null,null,null,null,null,"SAN/SANP Super Arch Fenders | SAN/SANP 1000 | E 2.4"]
[null,null,null,null,null,null,null,null,null,null,null,null,null,null,null,null,null,null,null,"FE Element Fenders | FE 1600 | G 1.3",null,null,null,null,null,null,null,null,null,"SAN/SANP Super Arch Fenders | SAN/SANP 1000 | E 2.5"]
[null,null,null,null,null,null,null,null,null,null,null,null,null,null,null,null,null,null,null,"FE Element Fenders | FE 1600 | G 1.4",null,null,null,null,null,null,null,null,null,"SAN/SANP Super Arch Fenders | SAN/SANP 1000 | E 2.6"]
[null,null,null,null,null,null,null,null,null,null,null,null,null,null,null,null,null,null,null,"FE Element Fenders | FE 1600 | G 1.5",null,null,null,null,null,null,null,null,null,"SAN/SANP Super Arch Fenders | SAN/SANP 1000 | E 2.7"]
[null,null,null,null,null,null,null,null,null,null,null,null,null,null,null,null,null,null,null,"FE Element Fenders | FE 1600 | G 1.6",null,null,null,null,null,null,null,null,null,"SAN/SANP Super Arch Fenders | SAN/SANP 1000 | E 2.8"]
[null,null,null,null,null,null,null,null,null,null,null,null,null,null,null,null,null,null,null,"FE Element Fenders | FE 1600 | G 1.7",null,null,null,null,null,null,null,null,null,"SAN/SANP Super Arch Fenders | SAN/SANP 1000 | E 2.9"]
[null,null,null,null,null,null,null,null,null,null,null,null,null,null,null,null,null,null,null,"FE Element Fenders | FE 1600 | G 1.8",null,null,null,null,null,null,null,null,null,"SAN/SANP Super Arch Fenders | SAN/SANP 1000 | E 3.0"]
[null,null,null,null,null,null,null,null,null,null,null,null,null,null,null,null,null,null,null,"FE Element Fenders | FE 1600 | G 1.9",null,null,null,null,null,null,null,null,null,"SCK Cell Fenders | SCK 400 | E 0.9"]
[null,null,null,null,null,null,null,null,null,null,null,null,null,null,null,null,null,null,null,"FE Element Fenders | FE 1600 | G 2.0",null,null,null,null,null,null,null,null,null,"SCK Cell Fenders | SCK 400 | E 1.0"]
[null,null,null,null,null,null,null,null,null,null,null,null,null,null,null,null,null,null,null,"FE Element Fenders | FE 1600 | G 2.1",null,null,null,null,null,null,null,null,null,"SCK Cell Fenders | SCK 400 | E 1.1"]
[null,null,null,null,null,null,null,null,null,null,null,null,null,null,null,null,null,null,null,"FE Element Fenders | FE 1600 | G 2.2",null,null,null,null,null,null,null,null,null,"SCK Cell Fenders | SCK 400 | E 1.2"]
[null,null,null,null,null,null,null,null,null,null,null,null,null,null,null,null,null,null,null,"FE Element Fenders | FE 1600 | G 2.3",null,null,null,null,null,null,null,null,null,"SCK Cell Fenders | SCK 400 | E 1.3"]
[null,null,null,null,null,null,null,null,null,null,null,null,null,null,null,null,null,null,null,"FE Element Fenders | FE 1600 | G 2.4",null,null,null,null,null,null,null,null,null,"SCK Cell Fenders | SCK 400 | E 1.4"]
[null,null,null,null,null,null,null,null,null,null,null,null,null,null,null,null,null,null,null,"FE Element Fenders | FE 1600 | G 2.5",null,null,null,null,null,null,null,null,null,"SCK Cell Fenders | SCK 400 | E 1.5"]
[null,null,null,null,null,null,null,null,null,null,null,null,null,null,null,null,null,null,null,"FE Element Fenders | FE 1600 | G 2.6",null,null,null,null,null,null,null,null,null,"SCK Cell Fenders | SCK 400 | E 1.6"]
[null,null,null,null,null,null,null,null,null,null,null,null,null,null,null,null,null,null,null,"FE Element Fenders | FE 1600 | G 2.7",null,null,null,null,null,null,null,null,null,"SCK Cell Fenders | SCK 400 | E 1.7"]
[null,null,null,null,null,null,null,null,null,null,null,null,null,null,null,null,null,null,null,"FE Element Fenders | FE 1600 | G 2.8",null,null,null,null,null,null,null,null,null,"SCK Cell Fenders | SCK 400 | E 1.8"]
[null,null,null,null,null,null,null,null,null,null,null,null,null,null,null,null,null,null,null,"FE Element Fenders | FE 1600 | G 2.9",null,null,null,null,null,null,null,null,null,"SCK Cell Fenders | SCK 400 | E 1.9"]
[null,null,null,null,null,null,null,null,null,null,null,null,null,null,null,null,null,null,null,"FE Element Fenders | FE 1600 | G 3.0",null,null,null,null,null,null,null,null,null,"SCK Cell Fenders | SCK 400 | E 2.0"]
[null,null,null,null,null,null,null,null,null,null,null,null,null,null,null,null,null,null,null,"FE Element Fenders | FE 1600 | G 3.1",null,null,null,null,null,null,null,null,null,"SCK Cell Fenders | SCK 400 | E 2.1"]
[null,null,null,null,null,null,null,null,null,null,null,null,null,null,null,null,null,null,null,"FE Element Fenders | FE 2000 | G 0.9",null,null,null,null,null,null,null,null,null,"SCK Cell Fenders | SCK 400 | E 2.2"]
[null,null,null,null,null,null,null,null,null,null,null,null,null,null,null,null,null,null,null,"FE Element Fenders | FE 2000 | G 1.0",null,null,null,null,null,null,null,null,null,"SCK Cell Fenders | SCK 400 | E 2.3"]
[null,null,null,null,null,null,null,null,null,null,null,null,null,null,null,null,null,null,null,"FE Element Fenders | FE 2000 | G 1.1",null,null,null,null,null,null,null,null,null,"SCK Cell Fenders | SCK 400 | E 2.4"]
[null,null,null,null,null,null,null,null,null,null,null,null,null,null,null,null,null,null,null,"FE Element Fenders | FE 2000 | G 1.2",null,null,null,null,null,null,null,null,null,"SCK Cell Fenders | SCK 400 | E 2.5"]
[null,null,null,null,null,null,null,null,null,null,null,null,null,null,null,null,null,null,null,"FE Element Fenders | FE 2000 | G 1.3",null,null,null,null,null,null,null,null,null,"SCK Cell Fenders | SCK 400 | E 2.6"]
[null,null,null,null,null,null,null,null,null,null,null,null,null,null,null,null,null,null,null,"FE Element Fenders | FE 2000 | G 1.4",null,null,null,null,null,null,null,null,null,"SCK Cell Fenders | SCK 400 | E 2.7"]
[null,null,null,null,null,null,null,null,null,null,null,null,null,null,null,null,null,null,null,"FE Element Fenders | FE 2000 | G 1.5",null,null,null,null,null,null,null,null,null,"SCK Cell Fenders | SCK 400 | E 2.8"]
[null,null,null,null,null,null,null,null,null,null,null,null,null,null,null,null,null,null,null,"FE Element Fenders | FE 2000 | G 1.6",null,null,null,null,null,null,null,null,null,"SCK Cell Fenders | SCK 400 | E 2.9"]
[null,null,null,null,null,null,null,null,null,null,null,null,null,null,null,null,null,null,null,"FE Element Fenders | FE 2000 | G 1.7",null,null,null,null,null,null,null,null,null,"SCK Cell Fenders | SCK 400 | E 3.0"]
[null,null,null,null,null,null,null,null,null,null,null,null,null,null,null,null,null,null,null,"FE Element Fenders | FE 2000 | G 1.8",null,null,null,null,null,null,null,null,null,"SCK Cell Fenders | SCK 400 | E 3.1"]
[null,null,null,null,null,null,null,null,null,null,null,null,null,null,null,null,null,null,null,"FE Element Fenders | FE 2000 | G 1.9",null,null,null,null,null,null,null,null,null,"SCK Cell Fenders | SCK 500 | E 0.9"]
[null,null,null,null,null,null,null,null,null,null,null,null,null,null,null,null,null,null,null,"FE Element Fenders | FE 2000 | G 2.0",null,null,null,null,null,null,null,null,null,"SCK Cell Fenders | SCK 500 | E 1.0"]
[null,null,null,null,null,null,null,null,null,null,null,null,null,null,null,null,null,null,null,"FE Element Fenders | FE 2000 | G 2.1",null,null,null,null,null,null,null,null,null,"SCK Cell Fenders | SCK 500 | E 1.1"]
[null,null,null,null,null,null,null,null,null,null,null,null,null,null,null,null,null,null,null,"FE Element Fenders | FE 2000 | G 2.2",null,null,null,null,null,null,null,null,null,"SCK Cell Fenders | SCK 500 | E 1.2"]
[null,null,null,null,null,null,null,null,null,null,null,null,null,null,null,null,null,null,null,"FE Element Fenders | FE 2000 | G 2.3",null,null,null,null,null,null,null,null,null,"SCK Cell Fenders | SCK 500 | E 1.3"]
[null,null,null,null,null,null,null,null,null,null,null,null,null,null,null,null,null,null,null,"FE Element Fenders | FE 2000 | G 2.4",null,null,null,null,null,null,null,null,null,"SCK Cell Fenders | SCK 500 | E 1.4"]
[null,null,null,null,null,null,null,null,null,null,null,null,null,null,null,null,null,null,null,"FE Element Fenders | FE 2000 | G 2.5",null,null,null,null,null,null,null,null,null,"SCK Cell Fenders | SCK 500 | E 1.5"]
[null,null,null,null,null,null,null,null,null,null,null,null,null,null,null,null,null,null,null,"FE Element Fenders | FE 2000 | G 2.6",null,null,null,null,null,null,null,null,null,"SCK Cell Fenders | SCK 500 | E 1.6"]
[null,null,null,null,null,null,null,null,null,null,null,null,null,null,null,null,null,null,null,"FE Element Fenders | FE 2000 | G 2.7",null,null,null,null,null,null,null,null,null,"SCK Cell Fenders | SCK 500 | E 1.7"]
[null,null,null,null,null,null,null,null,null,null,null,null,null,null,null,null,null,null,null,"FE Element Fenders | FE 2000 | G 2.8",null,null,null,null,null,null,null,null,null,"SCK Cell Fenders | SCK 500 | E 1.8"]
[null,null,null,null,null,null,null,null,null,null,null,null,null,null,null,null,null,null,null,"FE Element Fenders | FE 2000 | G 2.9",null,null,null,null,null,null,null,null,null,"SCK Cell Fenders | SCK 500 | E 1.9"]
[null,null,null,null,null,null,null,null,null,null,null,null,null,null,null,null,null,null,null,"FE Element Fenders | FE 2000 | G 3.0",null,null,null,null,null,null,null,null,null,"SCK Cell Fenders | SCK 500 | E 2.0"]
[null,null,null,null,null,null,null,null,null,null,null,null,null,null,null,null,null,null,null,"FE Element Fenders | FE 2000 | G 3.1",null,null,null,null,null,null,null,null,null,"SCK Cell Fenders | SCK 500 | E 2.1"]
[null,null,null,null,null,null,null,null,null,null,null,null,null,null,null,null,null,null,null,"SPC Cone Fenders | SPC 300 | G 0.9",null,null,null,null,null,null,null,null,null,"SCK Cell Fenders | SCK 500 | E 2.2"]
[null,null,null,null,null,null,null,null,null,null,null,null,null,null,null,null,null,null,null,"SPC Cone Fenders | SPC 300 | G 1.0",null,null,null,null,null,null,null,null,null,"SCK Cell Fenders | SCK 500 | E 2.3"]
[null,null,null,null,null,null,null,null,null,null,null,null,null,null,null,null,null,null,null,"SPC Cone Fenders | SPC 300 | G 1.1",null,null,null,null,null,null,null,null,null,"SCK Cell Fenders | SCK 500 | E 2.4"]
[null,null,null,null,null,null,null,null,null,null,null,null,null,null,null,null,null,null,null,"SPC Cone Fenders | SPC 300 | G 1.2",null,null,null,null,null,null,null,null,null,"SCK Cell Fenders | SCK 500 | E 2.5"]
[null,null,null,null,null,null,null,null,null,null,null,null,null,null,null,null,null,null,null,"SPC Cone Fenders | SPC 300 | G 1.3",null,null,null,null,null,null,null,null,null,"SCK Cell Fenders | SCK 500 | E 2.6"]
[null,null,null,null,null,null,null,null,null,null,null,null,null,null,null,null,null,null,null,"SPC Cone Fenders | SPC 300 | G 1.4",null,null,null,null,null,null,null,null,null,"SCK Cell Fenders | SCK 500 | E 2.7"]
[null,null,null,null,null,null,null,null,null,null,null,null,null,null,null,null,null,null,null,"SPC Cone Fenders | SPC 300 | G 1.5",null,null,null,null,null,null,null,null,null,"SCK Cell Fenders | SCK 500 | E 2.8"]
[null,null,null,null,null,null,null,null,null,null,null,null,null,null,null,null,null,null,null,"SPC Cone Fenders | SPC 300 | G 1.6",null,null,null,null,null,null,null,null,null,"SCK Cell Fenders | SCK 500 | E 2.9"]
[null,null,null,null,null,null,null,null,null,null,null,null,null,null,null,null,null,null,null,"SPC Cone Fenders | SPC 300 | G 1.7",null,null,null,null,null,null,null,null,null,"SCK Cell Fenders | SCK 500 | E 3.0"]
[null,null,null,null,null,null,null,null,null,null,null,null,null,null,null,null,null,null,null,"SPC Cone Fenders | SPC 300 | G 1.8",null,null,null,null,null,null,null,null,null,"SCK Cell Fenders | SCK 500 | E 3.1"]
[null,null,null,null,null,null,null,null,null,null,null,null,null,null,null,null,null,null,null,"SPC Cone Fenders | SPC 300 | G 1.9",null,null,null,null,null,null,null,null,null,"SCK Cell Fenders | SCK 630 | E 0.9"]
[null,null,null,null,null,null,null,null,null,null,null,null,null,null,null,null,null,null,null,"SPC Cone Fenders | SPC 300 | G 2.0",null,null,null,null,null,null,null,null,null,"SCK Cell Fenders | SCK 630 | E 1.0"]
[null,null,null,null,null,null,null,null,null,null,null,null,null,null,null,null,null,null,null,"SPC Cone Fenders | SPC 300 | G 2.1",null,null,null,null,null,null,null,null,null,"SCK Cell Fenders | SCK 630 | E 1.1"]
[null,null,null,null,null,null,null,null,null,null,null,null,null,null,null,null,null,null,null,"SPC Cone Fenders | SPC 300 | G 2.2",null,null,null,null,null,null,null,null,null,"SCK Cell Fenders | SCK 630 | E 1.2"]
[null,null,null,null,null,null,null,null,null,null,null,null,null,null,null,null,null,null,null,"SPC Cone Fenders | SPC 300 | G 2.3",null,null,null,null,null,null,null,null,null,"SCK Cell Fenders | SCK 630 | E 1.3"]
[null,null,null,null,null,null,null,null,null,null,null,null,null,null,null,null,null,null,null,"SPC Cone Fenders | SPC 300 | G 2.4",null,null,null,null,null,null,null,null,null,"SCK Cell Fenders | SCK 630 | E 1.4"]
[null,null,null,null,null,null,null,null,null,null,null,null,null,null,null,null,null,null,null,"SPC Cone Fenders | SPC 300 | G 2.5",null,null,null,null,null,null,null,null,null,"SCK Cell Fenders | SCK 630 | E 1.5"]
[null,null,null,null,null,null,null,null,null,null,null,null,null,null,null,null,null,null,null,"SPC Cone Fenders | SPC 300 | G 2.6",null,null,null,null,null,null,null,null,null,"SCK Cell Fenders | SCK 630 | E 1.6"]
[null,null,null,null,null,null,null,null,null,null,null,null,null,null,null,null,null,null,null,"SPC Cone Fenders | SPC 300 | G 2.7",null,null,null,null,null,null,null,null,null,"SCK Cell Fenders | SCK 630 | E 1.7"]
[null,null,null,null,null,null,null,null,null,null,null,null,null,null,null,null,null,null,null,"SPC Cone Fenders | SPC 300 | G 2.8",null,null,null,null,null,null,null,null,null,"SCK Cell Fenders | SCK 630 | E 1.8"]
[null,null,null,null,null,null,null,null,null,null,null,null,null,null,null,null,null,null,null,"SPC Cone Fenders | SPC 300 | G 2.9",null,null,null,null,null,null,null,null,null,"SCK Cell Fenders | SCK 630 | E 1.9"]
[null,null,null,null,null,null,null,null,null,null,null,null,null,null,null,null,null,null,null,"SPC Cone Fenders | SPC 300 | G 3.0",null,null,null,null,null,null,null,null,null,"SCK Cell Fenders | SCK 630 | E 2.0"]
[null,null,null,null,null,null,null,null,null,null,null,null,null,null,null,null,null,null,null,"SPC Cone Fenders | SPC 300 | G 3.1",null,null,null,null,null,null,null,null,null,"SCK Cell Fenders | SCK 630 | E 2.1"]
[null,null,null,null,null,null,null,null,null,null,null,null,null,null,null,null,null,null,null,"SPC Cone Fenders | SPC 350 | G 0.9",null,null,null,null,null,null,null,null,null,"SCK Cell Fenders | SCK 630 | E 2.2"]
[null,null,null,null,null,null,null,null,null,null,null,null,null,null,null,null,null,null,null,"SPC Cone Fenders | SPC 350 | G 1.0",null,null,null,null,null,null,null,null,null,"SCK Cell Fenders | SCK 630 | E 2.3"]
[null,null,null,null,null,null,null,null,null,null,null,null,null,null,null,null,null,null,null,"SPC Cone Fenders | SPC 350 | G 1.1",null,null,null,null,null,null,null,null,null,"SCK Cell Fenders | SCK 630 | E 2.4"]
[null,null,null,null,null,null,null,null,null,null,null,null,null,null,null,null,null,null,null,"SPC Cone Fenders | SPC 350 | G 1.2",null,null,null,null,null,null,null,null,null,"SCK Cell Fenders | SCK 630 | E 2.5"]
[null,null,null,null,null,null,null,null,null,null,null,null,null,null,null,null,null,null,null,"SPC Cone Fenders | SPC 350 | G 1.3",null,null,null,null,null,null,null,null,null,"SCK Cell Fenders | SCK 630 | E 2.6"]
[null,null,null,null,null,null,null,null,null,null,null,null,null,null,null,null,null,null,null,"SPC Cone Fenders | SPC 350 | G 1.4",null,null,null,null,null,null,null,null,null,"SCK Cell Fenders | SCK 630 | E 2.7"]
[null,null,null,null,null,null,null,null,null,null,null,null,null,null,null,null,null,null,null,"SPC Cone Fenders | SPC 350 | G 1.5",null,null,null,null,null,null,null,null,null,"SCK Cell Fenders | SCK 630 | E 2.8"]
[null,null,null,null,null,null,null,null,null,null,null,null,null,null,null,null,null,null,null,"SPC Cone Fenders | SPC 350 | G 1.6",null,null,null,null,null,null,null,null,null,"SCK Cell Fenders | SCK 630 | E 2.9"]
[null,null,null,null,null,null,null,null,null,null,null,null,null,null,null,null,null,null,null,"SPC Cone Fenders | SPC 350 | G 1.7",null,null,null,null,null,null,null,null,null,"SCK Cell Fenders | SCK 630 | E 3.0"]
[null,null,null,null,null,null,null,null,null,null,null,null,null,null,null,null,null,null,null,"SPC Cone Fenders | SPC 350 | G 1.8",null,null,null,null,null,null,null,null,null,"SCK Cell Fenders | SCK 630 | E 3.1"]
[null,null,null,null,null,null,null,null,null,null,null,null,null,null,null,null,null,null,null,"SPC Cone Fenders | SPC 350 | G 1.9",null,null,null,null,null,null,null,null,null,"SCK Cell Fenders | SCK 800 | E 0.9"]
[null,null,null,null,null,null,null,null,null,null,null,null,null,null,null,null,null,null,null,"SPC Cone Fenders | SPC 350 | G 2.0",null,null,null,null,null,null,null,null,null,"SCK Cell Fenders | SCK 800 | E 1.0"]
[null,null,null,null,null,null,null,null,null,null,null,null,null,null,null,null,null,null,null,"SPC Cone Fenders | SPC 350 | G 2.1",null,null,null,null,null,null,null,null,null,"SCK Cell Fenders | SCK 800 | E 1.1"]
[null,null,null,null,null,null,null,null,null,null,null,null,null,null,null,null,null,null,null,"SPC Cone Fenders | SPC 350 | G 2.2",null,null,null,null,null,null,null,null,null,"SCK Cell Fenders | SCK 800 | E 1.2"]
[null,null,null,null,null,null,null,null,null,null,null,null,null,null,null,null,null,null,null,"SPC Cone Fenders | SPC 350 | G 2.3",null,null,null,null,null,null,null,null,null,"SCK Cell Fenders | SCK 800 | E 1.3"]
[null,null,null,null,null,null,null,null,null,null,null,null,null,null,null,null,null,null,null,"SPC Cone Fenders | SPC 350 | G 2.4",null,null,null,null,null,null,null,null,null,"SCK Cell Fenders | SCK 800 | E 1.4"]
[null,null,null,null,null,null,null,null,null,null,null,null,null,null,null,null,null,null,null,"SPC Cone Fenders | SPC 350 | G 2.5",null,null,null,null,null,null,null,null,null,"SCK Cell Fenders | SCK 800 | E 1.5"]
[null,null,null,null,null,null,null,null,null,null,null,null,null,null,null,null,null,null,null,"SPC Cone Fenders | SPC 350 | G 2.6",null,null,null,null,null,null,null,null,null,"SCK Cell Fenders | SCK 800 | E 1.6"]
[null,null,null,null,null,null,null,null,null,null,null,null,null,null,null,null,null,null,null,"SPC Cone Fenders | SPC 350 | G 2.7",null,null,null,null,null,null,null,null,null,"SCK Cell Fenders | SCK 800 | E 1.7"]
[null,null,null,null,null,null,null,null,null,null,null,null,null,null,null,null,null,null,null,"SPC Cone Fenders | SPC 350 | G 2.8",null,null,null,null,null,null,null,null,null,"SCK Cell Fenders | SCK 800 | E 1.8"]
[null,null,null,null,null,null,null,null,null,null,null,null,null,null,null,null,null,null,null,"SPC Cone Fenders | SPC 350 | G 2.9",null,null,null,null,null,null,null,null,null,"SCK Cell Fenders | SCK 800 | E 1.9"]
[null,null,null,null,null,null,null,null,null,null,null,null,null,null,null,null,null,null,null,"SPC Cone Fenders | SPC 350 | G 3.0",null,null,null,null,null,null,null,null,null,"SCK Cell Fenders | SCK 800 | E 2.0"]
[null,null,null,null,null,null,null,null,null,null,null,null,null,null,null,null,null,null,null,"SPC Cone Fenders | SPC 350 | G 3.1",null,null,null,null,null,null,null,null,null,"SCK Cell Fenders | SCK 800 | E 2.1"]
[null,null,null,null,null,null,null,null,null,null,null,null,null,null,null,null,null,null,null,"SPC Cone Fenders | SPC 400 | G 0.9",null,null,null,null,null,null,null,null,null,"SCK Cell Fenders | SCK 800 | E 2.2"]
[null,null,null,null,null,null,null,null,null,null,null,null,null,null,null,null,null,null,null,"SPC Cone Fenders | SPC 400 | G 1.0",null,null,null,null,null,null,null,null,null,"SCK Cell Fenders | SCK 800 | E 2.3"]
[null,null,null,null,null,null,null,null,null,null,null,null,null,null,null,null,null,null,null,"SPC Cone Fenders | SPC 400 | G 1.1",null,null,null,null,null,null,null,null,null,"SCK Cell Fenders | SCK 800 | E 2.4"]
[null,null,null,null,null,null,null,null,null,null,null,null,null,null,null,null,null,null,null,"SPC Cone Fenders | SPC 400 | G 1.2",null,null,null,null,null,null,null,null,null,"SCK Cell Fenders | SCK 800 | E 2.5"]
[null,null,null,null,null,null,null,null,null,null,null,null,null,null,null,null,null,null,null,"SPC Cone Fenders | SPC 400 | G 1.3",null,null,null,null,null,null,null,null,null,"SCK Cell Fenders | SCK 800 | E 2.6"]
[null,null,null,null,null,null,null,null,null,null,null,null,null,null,null,null,null,null,null,"SPC Cone Fenders | SPC 400 | G 1.4",null,null,null,null,null,null,null,null,null,"SCK Cell Fenders | SCK 800 | E 2.7"]
[null,null,null,null,null,null,null,null,null,null,null,null,null,null,null,null,null,null,null,"SPC Cone Fenders | SPC 400 | G 1.5",null,null,null,null,null,null,null,null,null,"SCK Cell Fenders | SCK 800 | E 2.8"]
[null,null,null,null,null,null,null,null,null,null,null,null,null,null,null,null,null,null,null,"SPC Cone Fenders | SPC 400 | G 1.6",null,null,null,null,null,null,null,null,null,"SCK Cell Fenders | SCK 800 | E 2.9"]
[null,null,null,null,null,null,null,null,null,null,null,null,null,null,null,null,null,null,null,"SPC Cone Fenders | SPC 400 | G 1.7",null,null,null,null,null,null,null,null,null,"SCK Cell Fenders | SCK 800 | E 3.0"]
[null,null,null,null,null,null,null,null,null,null,null,null,null,null,null,null,null,null,null,"SPC Cone Fenders | SPC 400 | G 1.8",null,null,null,null,null,null,null,null,null,"SCK Cell Fenders | SCK 800 | E 3.1"]
[null,null,null,null,null,null,null,null,null,null,null,null,null,null,null,null,null,null,null,"SPC Cone Fenders | SPC 400 | G 1.9",null,null,null,null,null,null,null,null,null,"SCK Cell Fenders | SCK 1000 | E 0.9"]
[null,null,null,null,null,null,null,null,null,null,null,null,null,null,null,null,null,null,null,"SPC Cone Fenders | SPC 400 | G 2.0",null,null,null,null,null,null,null,null,null,"SCK Cell Fenders | SCK 1000 | E 1.0"]
[null,null,null,null,null,null,null,null,null,null,null,null,null,null,null,null,null,null,null,"SPC Cone Fenders | SPC 400 | G 2.1",null,null,null,null,null,null,null,null,null,"SCK Cell Fenders | SCK 1000 | E 1.1"]
[null,null,null,null,null,null,null,null,null,null,null,null,null,null,null,null,null,null,null,"SPC Cone Fenders | SPC 400 | G 2.2",null,null,null,null,null,null,null,null,null,"SCK Cell Fenders | SCK 1000 | E 1.2"]
[null,null,null,null,null,null,null,null,null,null,null,null,null,null,null,null,null,null,null,"SPC Cone Fenders | SPC 400 | G 2.3",null,null,null,null,null,null,null,null,null,"SCK Cell Fenders | SCK 1000 | E 1.3"]
[null,null,null,null,null,null,null,null,null,null,null,null,null,null,null,null,null,null,null,"SPC Cone Fenders | SPC 400 | G 2.4",null,null,null,null,null,null,null,null,null,"SCK Cell Fenders | SCK 1000 | E 1.4"]
[null,null,null,null,null,null,null,null,null,null,null,null,null,null,null,null,null,null,null,"SPC Cone Fenders | SPC 400 | G 2.5",null,null,null,null,null,null,null,null,null,"SCK Cell Fenders | SCK 1000 | E 1.5"]
[null,null,null,null,null,null,null,null,null,null,null,null,null,null,null,null,null,null,null,"SPC Cone Fenders | SPC 400 | G 2.6",null,null,null,null,null,null,null,null,null,"SCK Cell Fenders | SCK 1000 | E 1.6"]
[null,null,null,null,null,null,null,null,null,null,null,null,null,null,null,null,null,null,null,"SPC Cone Fenders | SPC 400 | G 2.7",null,null,null,null,null,null,null,null,null,"SCK Cell Fenders | SCK 1000 | E 1.7"]
[null,null,null,null,null,null,null,null,null,null,null,null,null,null,null,null,null,null,null,"SPC Cone Fenders | SPC 400 | G 2.8",null,null,null,null,null,null,null,null,null,"SCK Cell Fenders | SCK 1000 | E 1.8"]
[null,null,null,null,null,null,null,null,null,null,null,null,null,null,null,null,null,null,null,"SPC Cone Fenders | SPC 400 | G 2.9",null,null,null,null,null,null,null,null,null,"SCK Cell Fenders | SCK 1000 | E 1.9"]
[null,null,null,null,null,null,null,null,null,null,null,null,null,null,null,null,null,null,null,"SPC Cone Fenders | SPC 400 | G 3.0",null,null,null,null,null,null,null,null,null,"SCK Cell Fenders | SCK 1000 | E 2.0"]
[null,null,null,null,null,null,null,null,null,null,null,null,null,null,null,null,null,null,null,"SPC Cone Fenders | SPC 400 | G 3.1",null,null,null,null,null,null,null,null,null,"SCK Cell Fenders | SCK 1000 | E 2.1"]
[null,null,null,null,null,null,null,null,null,null,null,null,null,null,null,null,null,null,null,"SPC Cone Fenders | SPC 500 | G 0.9",null,null,null,null,null,null,null,null,null,"SCK Cell Fenders | SCK 1000 | E 2.2"]
[null,null,null,null,null,null,null,null,null,null,null,null,null,null,null,null,null,null,null,"SPC Cone Fenders | SPC 500 | G 1.0",null,null,null,null,null,null,null,null,null,"SCK Cell Fenders | SCK 1000 | E 2.3"]
[null,null,null,null,null,null,null,null,null,null,null,null,null,null,null,null,null,null,null,"SPC Cone Fenders | SPC 500 | G 1.1",null,null,null,null,null,null,null,null,null,"SCK Cell Fenders | SCK 1000 | E 2.4"]
[null,null,null,null,null,null,null,null,null,null,null,null,null,null,null,null,null,null,null,"SPC Cone Fenders | SPC 500 | G 1.2",null,null,null,null,null,null,null,null,null,"SCK Cell Fenders | SCK 1000 | E 2.5"]
[null,null,null,null,null,null,null,null,null,null,null,null,null,null,null,null,null,null,null,"SPC Cone Fenders | SPC 500 | G 1.3",null,null,null,null,null,null,null,null,null,"SCK Cell Fenders | SCK 1000 | E 2.6"]
[null,null,null,null,null,null,null,null,null,null,null,null,null,null,null,null,null,null,null,"SPC Cone Fenders | SPC 500 | G 1.4",null,null,null,null,null,null,null,null,null,"SCK Cell Fenders | SCK 1000 | E 2.7"]
[null,null,null,null,null,null,null,null,null,null,null,null,null,null,null,null,null,null,null,"SPC Cone Fenders | SPC 500 | G 1.5",null,null,null,null,null,null,null,null,null,"SCK Cell Fenders | SCK 1000 | E 2.8"]
[null,null,null,null,null,null,null,null,null,null,null,null,null,null,null,null,null,null,null,"SPC Cone Fenders | SPC 500 | G 1.6",null,null,null,null,null,null,null,null,null,"SCK Cell Fenders | SCK 1000 | E 2.9"]
[null,null,null,null,null,null,null,null,null,null,null,null,null,null,null,null,null,null,null,"SPC Cone Fenders | SPC 500 | G 1.7",null,null,null,null,null,null,null,null,null,"SCK Cell Fenders | SCK 1000 | E 3.0"]
[null,null,null,null,null,null,null,null,null,null,null,null,null,null,null,null,null,null,null,"SPC Cone Fenders | SPC 500 | G 1.8",null,null,null,null,null,null,null,null,null,"SCK Cell Fenders | SCK 1000 | E 3.1"]
[null,null,null,null,null,null,null,null,null,null,null,null,null,null,null,null,null,null,null,"SPC Cone Fenders | SPC 500 | G 1.9",null,null,null,null,null,null,null,null,null,"SCK Cell Fenders | SCK 1150 | E 0.9"]
[null,null,null,null,null,null,null,null,null,null,null,null,null,null,null,null,null,null,null,"SPC Cone Fenders | SPC 500 | G 2.0",null,null,null,null,null,null,null,null,null,"SCK Cell Fenders | SCK 1150 | E 1.0"]
[null,null,null,null,null,null,null,null,null,null,null,null,null,null,null,null,null,null,null,"SPC Cone Fenders | SPC 500 | G 2.1",null,null,null,null,null,null,null,null,null,"SCK Cell Fenders | SCK 1150 | E 1.1"]
[null,null,null,null,null,null,null,null,null,null,null,null,null,null,null,null,null,null,null,"SPC Cone Fenders | SPC 500 | G 2.2",null,null,null,null,null,null,null,null,null,"SCK Cell Fenders | SCK 1150 | E 1.2"]
[null,null,null,null,null,null,null,null,null,null,null,null,null,null,null,null,null,null,null,"SPC Cone Fenders | SPC 500 | G 2.3",null,null,null,null,null,null,null,null,null,"SCK Cell Fenders | SCK 1150 | E 1.3"]
[null,null,null,null,null,null,null,null,null,null,null,null,null,null,null,null,null,null,null,"SPC Cone Fenders | SPC 500 | G 2.4",null,null,null,null,null,null,null,null,null,"SCK Cell Fenders | SCK 1150 | E 1.4"]
[null,null,null,null,null,null,null,null,null,null,null,null,null,null,null,null,null,null,null,"SPC Cone Fenders | SPC 500 | G 2.5",null,null,null,null,null,null,null,null,null,"SCK Cell Fenders | SCK 1150 | E 1.5"]
[null,null,null,null,null,null,null,null,null,null,null,null,null,null,null,null,null,null,null,"SPC Cone Fenders | SPC 500 | G 2.6",null,null,null,null,null,null,null,null,null,"SCK Cell Fenders | SCK 1150 | E 1.6"]
[null,null,null,null,null,null,null,null,null,null,null,null,null,null,null,null,null,null,null,"SPC Cone Fenders | SPC 500 | G 2.7",null,null,null,null,null,null,null,null,null,"SCK Cell Fenders | SCK 1150 | E 1.7"]
[null,null,null,null,null,null,null,null,null,null,null,null,null,null,null,null,null,null,null,"SPC Cone Fenders | SPC 500 | G 2.8",null,null,null,null,null,null,null,null,null,"SCK Cell Fenders | SCK 1150 | E 1.8"]
[null,null,null,null,null,null,null,null,null,null,null,null,null,null,null,null,null,null,null,"SPC Cone Fenders | SPC 500 | G 2.9",null,null,null,null,null,null,null,null,null,"SCK Cell Fenders | SCK 1150 | E 1.9"]
[null,null,null,null,null,null,null,null,null,null,null,null,null,null,null,null,null,null,null,"SPC Cone Fenders | SPC 500 | G 3.0",null,null,null,null,null,null,null,null,null,"SCK Cell Fenders | SCK 1150 | E 2.0"]
[null,null,null,null,null,null,null,null,null,null,null,null,null,null,null,null,null,null,null,"SPC Cone Fenders | SPC 500 | G 3.1",null,null,null,null,null,null,null,null,null,"SCK Cell Fenders | SCK 1150 | E 2.1"]
[null,null,null,null,null,null,null,null,null,null,null,null,null,null,null,null,null,null,null,"SPC Cone Fenders | SPC 600 | G 0.9",null,null,null,null,null,null,null,null,null,"SCK Cell Fenders | SCK 1150 | E 2.2"]
[null,null,null,null,null,null,null,null,null,null,null,null,null,null,null,null,null,null,null,"SPC Cone Fenders | SPC 600 | G 1.0",null,null,null,null,null,null,null,null,null,"SCK Cell Fenders | SCK 1150 | E 2.3"]
[null,null,null,null,null,null,null,null,null,null,null,null,null,null,null,null,null,null,null,"SPC Cone Fenders | SPC 600 | G 1.1",null,null,null,null,null,null,null,null,null,"SCK Cell Fenders | SCK 1150 | E 2.4"]
[null,null,null,null,null,null,null,null,null,null,null,null,null,null,null,null,null,null,null,"SPC Cone Fenders | SPC 600 | G 1.2",null,null,null,null,null,null,null,null,null,"SCK Cell Fenders | SCK 1150 | E 2.5"]
[null,null,null,null,null,null,null,null,null,null,null,null,null,null,null,null,null,null,null,"SPC Cone Fenders | SPC 600 | G 1.3",null,null,null,null,null,null,null,null,null,"SCK Cell Fenders | SCK 1150 | E 2.6"]
[null,null,null,null,null,null,null,null,null,null,null,null,null,null,null,null,null,null,null,"SPC Cone Fenders | SPC 600 | G 1.4",null,null,null,null,null,null,null,null,null,"SCK Cell Fenders | SCK 1150 | E 2.7"]
[null,null,null,null,null,null,null,null,null,null,null,null,null,null,null,null,null,null,null,"SPC Cone Fenders | SPC 600 | G 1.5",null,null,null,null,null,null,null,null,null,"SCK Cell Fenders | SCK 1150 | E 2.8"]
[null,null,null,null,null,null,null,null,null,null,null,null,null,null,null,null,null,null,null,"SPC Cone Fenders | SPC 600 | G 1.6",null,null,null,null,null,null,null,null,null,"SCK Cell Fenders | SCK 1150 | E 2.9"]
[null,null,null,null,null,null,null,null,null,null,null,null,null,null,null,null,null,null,null,"SPC Cone Fenders | SPC 600 | G 1.7",null,null,null,null,null,null,null,null,null,"SCK Cell Fenders | SCK 1150 | E 3.0"]
[null,null,null,null,null,null,null,null,null,null,null,null,null,null,null,null,null,null,null,"SPC Cone Fenders | SPC 600 | G 1.8",null,null,null,null,null,null,null,null,null,"SCK Cell Fenders | SCK 1150 | E 3.1"]
[null,null,null,null,null,null,null,null,null,null,null,null,null,null,null,null,null,null,null,"SPC Cone Fenders | SPC 600 | G 1.9",null,null,null,null,null,null,null,null,null,"SCK Cell Fenders | SCK 1250 | E 0.9"]
[null,null,null,null,null,null,null,null,null,null,null,null,null,null,null,null,null,null,null,"SPC Cone Fenders | SPC 600 | G 2.0",null,null,null,null,null,null,null,null,null,"SCK Cell Fenders | SCK 1250 | E 1.0"]
[null,null,null,null,null,null,null,null,null,null,null,null,null,null,null,null,null,null,null,"SPC Cone Fenders | SPC 600 | G 2.1",null,null,null,null,null,null,null,null,null,"SCK Cell Fenders | SCK 1250 | E 1.1"]
[null,null,null,null,null,null,null,null,null,null,null,null,null,null,null,null,null,null,null,"SPC Cone Fenders | SPC 600 | G 2.2",null,null,null,null,null,null,null,null,null,"SCK Cell Fenders | SCK 1250 | E 1.2"]
[null,null,null,null,null,null,null,null,null,null,null,null,null,null,null,null,null,null,null,"SPC Cone Fenders | SPC 600 | G 2.3",null,null,null,null,null,null,null,null,null,"SCK Cell Fenders | SCK 1250 | E 1.3"]
[null,null,null,null,null,null,null,null,null,null,null,null,null,null,null,null,null,null,null,"SPC Cone Fenders | SPC 600 | G 2.4",null,null,null,null,null,null,null,null,null,"SCK Cell Fenders | SCK 1250 | E 1.4"]
[null,null,null,null,null,null,null,null,null,null,null,null,null,null,null,null,null,null,null,"SPC Cone Fenders | SPC 600 | G 2.5",null,null,null,null,null,null,null,null,null,"SCK Cell Fenders | SCK 1250 | E 1.5"]
[null,null,null,null,null,null,null,null,null,null,null,null,null,null,null,null,null,null,null,"SPC Cone Fenders | SPC 600 | G 2.6",null,null,null,null,null,null,null,null,null,"SCK Cell Fenders | SCK 1250 | E 1.6"]
[null,null,null,null,null,null,null,null,null,null,null,null,null,null,null,null,null,null,null,"SPC Cone Fenders | SPC 600 | G 2.7",null,null,null,null,null,null,null,null,null,"SCK Cell Fenders | SCK 1250 | E 1.7"]
[null,null,null,null,null,null,null,null,null,null,null,null,null,null,null,null,null,null,null,"SPC Cone Fenders | SPC 600 | G 2.8",null,null,null,null,null,null,null,null,null,"SCK Cell Fenders | SCK 1250 | E 1.8"]
[null,null,null,null,null,null,null,null,null,null,null,null,null,null,null,null,null,null,null,"SPC Cone Fenders | SPC 600 | G 2.9",null,null,null,null,null,null,null,null,null,"SCK Cell Fenders | SCK 1250 | E 1.9"]
[null,null,null,null,null,null,null,null,null,null,null,null,null,null,null,null,null,null,null,"SPC Cone Fenders | SPC 600 | G 3.0",null,null,null,null,null,null,null,null,null,"SCK Cell Fenders | SCK 1250 | E 2.0"]
[null,null,null,null,null,null,null,null,null,null,null,null,null,null,null,null,null,null,null,"SPC Cone Fenders | SPC 600 | G 3.1",null,null,null,null,null,null,null,null,null,"SCK Cell Fenders | SCK 1250 | E 2.1"]
[null,null,null,null,null,null,null,null,null,null,null,null,null,null,null,null,null,null,null,"SPC Cone Fenders | SPC 700 | G 0.9",null,null,null,null,null,null,null,null,null,"SCK Cell Fenders | SCK 1250 | E 2.2"]
[null,null,null,null,null,null,null,null,null,null,null,null,null,null,null,null,null,null,null,"SPC Cone Fenders | SPC 700 | G 1.0",null,null,null,null,null,null,null,null,null,"SCK Cell Fenders | SCK 1250 | E 2.3"]
[null,null,null,null,null,null,null,null,null,null,null,null,null,null,null,null,null,null,null,"SPC Cone Fenders | SPC 700 | G 1.1",null,null,null,null,null,null,null,null,null,"SCK Cell Fenders | SCK 1250 | E 2.4"]
[null,null,null,null,null,null,null,null,null,null,null,null,null,null,null,null,null,null,null,"SPC Cone Fenders | SPC 700 | G 1.2",null,null,null,null,null,null,null,null,null,"SCK Cell Fenders | SCK 1250 | E 2.5"]
[null,null,null,null,null,null,null,null,null,null,null,null,null,null,null,null,null,null,null,"SPC Cone Fenders | SPC 700 | G 1.3",null,null,null,null,null,null,null,null,null,"SCK Cell Fenders | SCK 1250 | E 2.6"]
[null,null,null,null,null,null,null,null,null,null,null,null,null,null,null,null,null,null,null,"SPC Cone Fenders | SPC 700 | G 1.4",null,null,null,null,null,null,null,null,null,"SCK Cell Fenders | SCK 1250 | E 2.7"]
[null,null,null,null,null,null,null,null,null,null,null,null,null,null,null,null,null,null,null,"SPC Cone Fenders | SPC 700 | G 1.5",null,null,null,null,null,null,null,null,null,"SCK Cell Fenders | SCK 1250 | E 2.8"]
[null,null,null,null,null,null,null,null,null,null,null,null,null,null,null,null,null,null,null,"SPC Cone Fenders | SPC 700 | G 1.6",null,null,null,null,null,null,null,null,null,"SCK Cell Fenders | SCK 1250 | E 2.9"]
[null,null,null,null,null,null,null,null,null,null,null,null,null,null,null,null,null,null,null,"SPC Cone Fenders | SPC 700 | G 1.7",null,null,null,null,null,null,null,null,null,"SCK Cell Fenders | SCK 1250 | E 3.0"]
[null,null,null,null,null,null,null,null,null,null,null,null,null,null,null,null,null,null,null,"SPC Cone Fenders | SPC 700 | G 1.8",null,null,null,null,null,null,null,null,null,"SCK Cell Fenders | SCK 1250 | E 3.1"]
[null,null,null,null,null,null,null,null,null,null,null,null,null,null,null,null,null,null,null,"SPC Cone Fenders | SPC 700 | G 1.9",null,null,null,null,null,null,null,null,null,"SCK Cell Fenders | SCK 1450 | E 0.9"]
[null,null,null,null,null,null,null,null,null,null,null,null,null,null,null,null,null,null,null,"SPC Cone Fenders | SPC 700 | G 2.0",null,null,null,null,null,null,null,null,null,"SCK Cell Fenders | SCK 1450 | E 1.0"]
[null,null,null,null,null,null,null,null,null,null,null,null,null,null,null,null,null,null,null,"SPC Cone Fenders | SPC 700 | G 2.1",null,null,null,null,null,null,null,null,null,"SCK Cell Fenders | SCK 1450 | E 1.1"]
[null,null,null,null,null,null,null,null,null,null,null,null,null,null,null,null,null,null,null,"SPC Cone Fenders | SPC 700 | G 2.2",null,null,null,null,null,null,null,null,null,"SCK Cell Fenders | SCK 1450 | E 1.2"]
[null,null,null,null,null,null,null,null,null,null,null,null,null,null,null,null,null,null,null,"SPC Cone Fenders | SPC 700 | G 2.3",null,null,null,null,null,null,null,null,null,"SCK Cell Fenders | SCK 1450 | E 1.3"]
[null,null,null,null,null,null,null,null,null,null,null,null,null,null,null,null,null,null,null,"SPC Cone Fenders | SPC 700 | G 2.4",null,null,null,null,null,null,null,null,null,"SCK Cell Fenders | SCK 1450 | E 1.4"]
[null,null,null,null,null,null,null,null,null,null,null,null,null,null,null,null,null,null,null,"SPC Cone Fenders | SPC 700 | G 2.5",null,null,null,null,null,null,null,null,null,"SCK Cell Fenders | SCK 1450 | E 1.5"]
[null,null,null,null,null,null,null,null,null,null,null,null,null,null,null,null,null,null,null,"SPC Cone Fenders | SPC 700 | G 2.6",null,null,null,null,null,null,null,null,null,"SCK Cell Fenders | SCK 1450 | E 1.6"]
[null,null,null,null,null,null,null,null,null,null,null,null,null,null,null,null,null,null,null,"SPC Cone Fenders | SPC 700 | G 2.7",null,null,null,null,null,null,null,null,null,"SCK Cell Fenders | SCK 1450 | E 1.7"]
[null,null,null,null,null,null,null,null,null,null,null,null,null,null,null,null,null,null,null,"SPC Cone Fenders | SPC 700 | G 2.8",null,null,null,null,null,null,null,null,null,"SCK Cell Fenders | SCK 1450 | E 1.8"]
[null,null,null,null,null,null,null,null,null,null,null,null,null,null,null,null,null,null,null,"SPC Cone Fenders | SPC 700 | G 2.9",null,null,null,null,null,null,null,null,null,"SCK Cell Fenders | SCK 1450 | E 1.9"]
[null,null,null,null,null,null,null,null,null,null,null,null,null,null,null,null,null,null,null,"SPC Cone Fenders | SPC 700 | G 3.0",null,null,null,null,null,null,null,null,null,"SCK Cell Fenders | SCK 1450 | E 2.0"]
[null,null,null,null,null,null,null,null,null,null,null,null,null,null,null,null,null,null,null,"SPC Cone Fenders | SPC 700 | G 3.1",null,null,null,null,null,null,null,null,null,"SCK Cell Fenders | SCK 1450 | E 2.1"]
[null,null,null,null,null,null,null,null,null,null,null,null,null,null,null,null,null,null,null,"SPC Cone Fenders | SPC 800 | G 0.9",null,null,null,null,null,null,null,null,null,"SCK Cell Fenders | SCK 1450 | E 2.2"]
[null,null,null,null,null,null,null,null,null,null,null,null,null,null,null,null,null,null,null,"SPC Cone Fenders | SPC 800 | G 1.0",null,null,null,null,null,null,null,null,null,"SCK Cell Fenders | SCK 1450 | E 2.3"]
[null,null,null,null,null,null,null,null,null,null,null,null,null,null,null,null,null,null,null,"SPC Cone Fenders | SPC 800 | G 1.1",null,null,null,null,null,null,null,null,null,"SCK Cell Fenders | SCK 1450 | E 2.4"]
[null,null,null,null,null,null,null,null,null,null,null,null,null,null,null,null,null,null,null,"SPC Cone Fenders | SPC 800 | G 1.2",null,null,null,null,null,null,null,null,null,"SCK Cell Fenders | SCK 1450 | E 2.5"]
[null,null,null,null,null,null,null,null,null,null,null,null,null,null,null,null,null,null,null,"SPC Cone Fenders | SPC 800 | G 1.3",null,null,null,null,null,null,null,null,null,"SCK Cell Fenders | SCK 1450 | E 2.6"]
[null,null,null,null,null,null,null,null,null,null,null,null,null,null,null,null,null,null,null,"SPC Cone Fenders | SPC 800 | G 1.4",null,null,null,null,null,null,null,null,null,"SCK Cell Fenders | SCK 1450 | E 2.7"]
[null,null,null,null,null,null,null,null,null,null,null,null,null,null,null,null,null,null,null,"SPC Cone Fenders | SPC 800 | G 1.5",null,null,null,null,null,null,null,null,null,"SCK Cell Fenders | SCK 1450 | E 2.8"]
[null,null,null,null,null,null,null,null,null,null,null,null,null,null,null,null,null,null,null,"SPC Cone Fenders | SPC 800 | G 1.6",null,null,null,null,null,null,null,null,null,"SCK Cell Fenders | SCK 1450 | E 2.9"]
[null,null,null,null,null,null,null,null,null,null,null,null,null,null,null,null,null,null,null,"SPC Cone Fenders | SPC 800 | G 1.7",null,null,null,null,null,null,null,null,null,"SCK Cell Fenders | SCK 1450 | E 3.0"]
[null,null,null,null,null,null,null,null,null,null,null,null,null,null,null,null,null,null,null,"SPC Cone Fenders | SPC 800 | G 1.8",null,null,null,null,null,null,null,null,null,"SCK Cell Fenders | SCK 1450 | E 3.1"]
[null,null,null,null,null,null,null,null,null,null,null,null,null,null,null,null,null,null,null,"SPC Cone Fenders | SPC 800 | G 1.9",null,null,null,null,null,null,null,null,null,"SCK Cell Fenders | SCK 1600 | E 0.9"]
[null,null,null,null,null,null,null,null,null,null,null,null,null,null,null,null,null,null,null,"SPC Cone Fenders | SPC 800 | G 2.0",null,null,null,null,null,null,null,null,null,"SCK Cell Fenders | SCK 1600 | E 1.0"]
[null,null,null,null,null,null,null,null,null,null,null,null,null,null,null,null,null,null,null,"SPC Cone Fenders | SPC 800 | G 2.1",null,null,null,null,null,null,null,null,null,"SCK Cell Fenders | SCK 1600 | E 1.1"]
[null,null,null,null,null,null,null,null,null,null,null,null,null,null,null,null,null,null,null,"SPC Cone Fenders | SPC 800 | G 2.2",null,null,null,null,null,null,null,null,null,"SCK Cell Fenders | SCK 1600 | E 1.2"]
[null,null,null,null,null,null,null,null,null,null,null,null,null,null,null,null,null,null,null,"SPC Cone Fenders | SPC 800 | G 2.3",null,null,null,null,null,null,null,null,null,"SCK Cell Fenders | SCK 1600 | E 1.3"]
[null,null,null,null,null,null,null,null,null,null,null,null,null,null,null,null,null,null,null,"SPC Cone Fenders | SPC 800 | G 2.4",null,null,null,null,null,null,null,null,null,"SCK Cell Fenders | SCK 1600 | E 1.4"]
[null,null,null,null,null,null,null,null,null,null,null,null,null,null,null,null,null,null,null,"SPC Cone Fenders | SPC 800 | G 2.5",null,null,null,null,null,null,null,null,null,"SCK Cell Fenders | SCK 1600 | E 1.5"]
[null,null,null,null,null,null,null,null,null,null,null,null,null,null,null,null,null,null,null,"SPC Cone Fenders | SPC 800 | G 2.6",null,null,null,null,null,null,null,null,null,"SCK Cell Fenders | SCK 1600 | E 1.6"]
[null,null,null,null,null,null,null,null,null,null,null,null,null,null,null,null,null,null,null,"SPC Cone Fenders | SPC 800 | G 2.7",null,null,null,null,null,null,null,null,null,"SCK Cell Fenders | SCK 1600 | E 1.7"]
[null,null,null,null,null,null,null,null,null,null,null,null,null,null,null,null,null,null,null,"SPC Cone Fenders | SPC 800 | G 2.8",null,null,null,null,null,null,null,null,null,"SCK Cell Fenders | SCK 1600 | E 1.8"]
[null,null,null,null,null,null,null,null,null,null,null,null,null,null,null,null,null,null,null,"SPC Cone Fenders | SPC 800 | G 2.9",null,null,null,null,null,null,null,null,null,"SCK Cell Fenders | SCK 1600 | E 1.9"]
[null,null,null,null,null,null,null,null,null,null,null,null,null,null,null,null,null,null,null,"SPC Cone Fenders | SPC 800 | G 3.0",null,null,null,null,null,null,null,null,null,"SCK Cell Fenders | SCK 1600 | E 2.0"]
[null,null,null,null,null,null,null,null,null,null,null,null,null,null,null,null,null,null,null,"SPC Cone Fenders | SPC 800 | G 3.1",null,null,null,null,null,null,null,null,null,"SCK Cell Fenders | SCK 1600 | E 2.1"]
[null,null,null,null,null,null,null,null,null,null,null,null,null,null,null,null,null,null,null,"SPC Cone Fenders | SPC 900 | G 0.9",null,null,null,null,null,null,null,null,null,"SCK Cell Fenders | SCK 1600 | E 2.2"]
[null,null,null,null,null,null,null,null,null,null,null,null,null,null,null,null,null,null,null,"SPC Cone Fenders | SPC 900 | G 1.0",null,null,null,null,null,null,null,null,null,"SCK Cell Fenders | SCK 1600 | E 2.3"]
[null,null,null,null,null,null,null,null,null,null,null,null,null,null,null,null,null,null,null,"SPC Cone Fenders | SPC 900 | G 1.1",null,null,null,null,null,null,null,null,null,"SCK Cell Fenders | SCK 1600 | E 2.4"]
[null,null,null,null,null,null,null,null,null,null,null,null,null,null,null,null,null,null,null,"SPC Cone Fenders | SPC 900 | G 1.2",null,null,null,null,null,null,null,null,null,"SCK Cell Fenders | SCK 1600 | E 2.5"]
[null,null,null,null,null,null,null,null,null,null,null,null,null,null,null,null,null,null,null,"SPC Cone Fenders | SPC 900 | G 1.3",null,null,null,null,null,null,null,null,null,"SCK Cell Fenders | SCK 1600 | E 2.6"]
[null,null,null,null,null,null,null,null,null,null,null,null,null,null,null,null,null,null,null,"SPC Cone Fenders | SPC 900 | G 1.4",null,null,null,null,null,null,null,null,null,"SCK Cell Fenders | SCK 1600 | E 2.7"]
[null,null,null,null,null,null,null,null,null,null,null,null,null,null,null,null,null,null,null,"SPC Cone Fenders | SPC 900 | G 1.5",null,null,null,null,null,null,null,null,null,"SCK Cell Fenders | SCK 1600 | E 2.8"]
[null,null,null,null,null,null,null,null,null,null,null,null,null,null,null,null,null,null,null,"SPC Cone Fenders | SPC 900 | G 1.6",null,null,null,null,null,null,null,null,null,"SCK Cell Fenders | SCK 1600 | E 2.9"]
[null,null,null,null,null,null,null,null,null,null,null,null,null,null,null,null,null,null,null,"SPC Cone Fenders | SPC 900 | G 1.7",null,null,null,null,null,null,null,null,null,"SCK Cell Fenders | SCK 1600 | E 3.0"]
[null,null,null,null,null,null,null,null,null,null,null,null,null,null,null,null,null,null,null,"SPC Cone Fenders | SPC 900 | G 1.8",null,null,null,null,null,null,null,null,null,"SCK Cell Fenders | SCK 1600 | E 3.1"]
[null,null,null,null,null,null,null,null,null,null,null,null,null,null,null,null,null,null,null,"SPC Cone Fenders | SPC 900 | G 1.9",null,null,null,null,null,null,null,null,null,"SCK Cell Fenders | SCK 1700 | E 0.9"]
[null,null,null,null,null,null,null,null,null,null,null,null,null,null,null,null,null,null,null,"SPC Cone Fenders | SPC 900 | G 2.0",null,null,null,null,null,null,null,null,null,"SCK Cell Fenders | SCK 1700 | E 1.0"]
[null,null,null,null,null,null,null,null,null,null,null,null,null,null,null,null,null,null,null,"SPC Cone Fenders | SPC 900 | G 2.1",null,null,null,null,null,null,null,null,null,"SCK Cell Fenders | SCK 1700 | E 1.1"]
[null,null,null,null,null,null,null,null,null,null,null,null,null,null,null,null,null,null,null,"SPC Cone Fenders | SPC 900 | G 2.2",null,null,null,null,null,null,null,null,null,"SCK Cell Fenders | SCK 1700 | E 1.2"]
[null,null,null,null,null,null,null,null,null,null,null,null,null,null,null,null,null,null,null,"SPC Cone Fenders | SPC 900 | G 2.3",null,null,null,null,null,null,null,null,null,"SCK Cell Fenders | SCK 1700 | E 1.3"]
[null,null,null,null,null,null,null,null,null,null,null,null,null,null,null,null,null,null,null,"SPC Cone Fenders | SPC 900 | G 2.4",null,null,null,null,null,null,null,null,null,"SCK Cell Fenders | SCK 1700 | E 1.4"]
[null,null,null,null,null,null,null,null,null,null,null,null,null,null,null,null,null,null,null,"SPC Cone Fenders | SPC 900 | G 2.5",null,null,null,null,null,null,null,null,null,"SCK Cell Fenders | SCK 1700 | E 1.5"]
[null,null,null,null,null,null,null,null,null,null,null,null,null,null,null,null,null,null,null,"SPC Cone Fenders | SPC 900 | G 2.6",null,null,null,null,null,null,null,null,null,"SCK Cell Fenders | SCK 1700 | E 1.6"]
[null,null,null,null,null,null,null,null,null,null,null,null,null,null,null,null,null,null,null,"SPC Cone Fenders | SPC 900 | G 2.7",null,null,null,null,null,null,null,null,null,"SCK Cell Fenders | SCK 1700 | E 1.7"]
[null,null,null,null,null,null,null,null,null,null,null,null,null,null,null,null,null,null,null,"SPC Cone Fenders | SPC 900 | G 2.8",null,null,null,null,null,null,null,null,null,"SCK Cell Fenders | SCK 1700 | E 1.8"]
[null,null,null,null,null,null,null,null,null,null,null,null,null,null,null,null,null,null,null,"SPC Cone Fenders | SPC 900 | G 2.9",null,null,null,null,null,null,null,null,null,"SCK Cell Fenders | SCK 1700 | E 1.9"]
[null,null,null,null,null,null,null,null,null,null,null,null,null,null,null,null,null,null,null,"SPC Cone Fenders | SPC 900 | G 3.0",null,null,null,null,null,null,null,null,null,"SCK Cell Fenders | SCK 1700 | E 2.0"]
[null,null,null,null,null,null,null,null,null,null,null,null,null,null,null,null,null,null,null,"SPC Cone Fenders | SPC 900 | G 3.1",null,null,null,null,null,null,null,null,null,"SCK Cell Fenders | SCK 1700 | E 2.1"]
[null,null,null,null,null,null,null,null,null,null,null,null,null,null,null,null,null,null,null,"SPC Cone Fenders | SPC 1000 | G 0.9",null,null,null,null,null,null,null,null,null,"SCK Cell Fenders | SCK 1700 | E 2.2"]
[null,null,null,null,null,null,null,null,null,null,null,null,null,null,null,null,null,null,null,"SPC Cone Fenders | SPC 1000 | G 1.0",null,null,null,null,null,null,null,null,null,"SCK Cell Fenders | SCK 1700 | E 2.3"]
[null,null,null,null,null,null,null,null,null,null,null,null,null,null,null,null,null,null,null,"SPC Cone Fenders | SPC 1000 | G 1.1",null,null,null,null,null,null,null,null,null,"SCK Cell Fenders | SCK 1700 | E 2.4"]
[null,null,null,null,null,null,null,null,null,null,null,null,null,null,null,null,null,null,null,"SPC Cone Fenders | SPC 1000 | G 1.2",null,null,null,null,null,null,null,null,null,"SCK Cell Fenders | SCK 1700 | E 2.5"]
[null,null,null,null,null,null,null,null,null,null,null,null,null,null,null,null,null,null,null,"SPC Cone Fenders | SPC 1000 | G 1.3",null,null,null,null,null,null,null,null,null,"SCK Cell Fenders | SCK 1700 | E 2.6"]
[null,null,null,null,null,null,null,null,null,null,null,null,null,null,null,null,null,null,null,"SPC Cone Fenders | SPC 1000 | G 1.4",null,null,null,null,null,null,null,null,null,"SCK Cell Fenders | SCK 1700 | E 2.7"]
[null,null,null,null,null,null,null,null,null,null,null,null,null,null,null,null,null,null,null,"SPC Cone Fenders | SPC 1000 | G 1.5",null,null,null,null,null,null,null,null,null,"SCK Cell Fenders | SCK 1700 | E 2.8"]
[null,null,null,null,null,null,null,null,null,null,null,null,null,null,null,null,null,null,null,"SPC Cone Fenders | SPC 1000 | G 1.6",null,null,null,null,null,null,null,null,null,"SCK Cell Fenders | SCK 1700 | E 2.9"]
[null,null,null,null,null,null,null,null,null,null,null,null,null,null,null,null,null,null,null,"SPC Cone Fenders | SPC 1000 | G 1.7",null,null,null,null,null,null,null,null,null,"SCK Cell Fenders | SCK 1700 | E 3.0"]
[null,null,null,null,null,null,null,null,null,null,null,null,null,null,null,null,null,null,null,"SPC Cone Fenders | SPC 1000 | G 1.8",null,null,null,null,null,null,null,null,null,"SCK Cell Fenders | SCK 1700 | E 3.1"]
[null,null,null,null,null,null,null,null,null,null,null,null,null,null,null,null,null,null,null,"SPC Cone Fenders | SPC 1000 | G 1.9",null,null,null,null,null,null,null,null,null,"SCK Cell Fenders | SCK 2000 | E 0.9"]
[null,null,null,null,null,null,null,null,null,null,null,null,null,null,null,null,null,null,null,"SPC Cone Fenders | SPC 1000 | G 2.0",null,null,null,null,null,null,null,null,null,"SCK Cell Fenders | SCK 2000 | E 1.0"]
[null,null,null,null,null,null,null,null,null,null,null,null,null,null,null,null,null,null,null,"SPC Cone Fenders | SPC 1000 | G 2.1",null,null,null,null,null,null,null,null,null,"SCK Cell Fenders | SCK 2000 | E 1.1"]
[null,null,null,null,null,null,null,null,null,null,null,null,null,null,null,null,null,null,null,"SPC Cone Fenders | SPC 1000 | G 2.2",null,null,null,null,null,null,null,null,null,"SCK Cell Fenders | SCK 2000 | E 1.2"]
[null,null,null,null,null,null,null,null,null,null,null,null,null,null,null,null,null,null,null,"SPC Cone Fenders | SPC 1000 | G 2.3",null,null,null,null,null,null,null,null,null,"SCK Cell Fenders | SCK 2000 | E 1.3"]
[null,null,null,null,null,null,null,null,null,null,null,null,null,null,null,null,null,null,null,"SPC Cone Fenders | SPC 1000 | G 2.4",null,null,null,null,null,null,null,null,null,"SCK Cell Fenders | SCK 2000 | E 1.4"]
[null,null,null,null,null,null,null,null,null,null,null,null,null,null,null,null,null,null,null,"SPC Cone Fenders | SPC 1000 | G 2.5",null,null,null,null,null,null,null,null,null,"SCK Cell Fenders | SCK 2000 | E 1.5"]
[null,null,null,null,null,null,null,null,null,null,null,null,null,null,null,null,null,null,null,"SPC Cone Fenders | SPC 1000 | G 2.6",null,null,null,null,null,null,null,null,null,"SCK Cell Fenders | SCK 2000 | E 1.6"]
[null,null,null,null,null,null,null,null,null,null,null,null,null,null,null,null,null,null,null,"SPC Cone Fenders | SPC 1000 | G 2.7",null,null,null,null,null,null,null,null,null,"SCK Cell Fenders | SCK 2000 | E 1.7"]
[null,null,null,null,null,null,null,null,null,null,null,null,null,null,null,null,null,null,null,"SPC Cone Fenders | SPC 1000 | G 2.8",null,null,null,null,null,null,null,null,null,"SCK Cell Fenders | SCK 2000 | E 1.8"]
[null,null,null,null,null,null,null,null,null,null,null,null,null,null,null,null,null,null,null,"SPC Cone Fenders | SPC 1000 | G 2.9",null,null,null,null,null,null,null,null,null,"SCK Cell Fenders | SCK 2000 | E 1.9"]
[null,null,null,null,null,null,null,null,null,null,null,null,null,null,null,null,null,null,null,"SPC Cone Fenders | SPC 1000 | G 3.0",null,null,null,null,null,null,null,null,null,"SCK Cell Fenders | SCK 2000 | E 2.0"]
[null,null,null,null,null,null,null,null,null,null,null,null,null,null,null,null,null,null,null,"SPC Cone Fenders | SPC 1000 | G 3.1",null,null,null,null,null,null,null,null,null,"SCK Cell Fenders | SCK 2000 | E 2.1"]
[null,null,null,null,null,null,null,null,null,null,null,null,null,null,null,null,null,null,null,"SPC Cone Fenders | SPC 1100 | G 0.9",null,null,null,null,null,null,null,null,null,"SCK Cell Fenders | SCK 2000 | E 2.2"]
[null,null,null,null,null,null,null,null,null,null,null,null,null,null,null,null,null,null,null,"SPC Cone Fenders | SPC 1100 | G 1.0",null,null,null,null,null,null,null,null,null,"SCK Cell Fenders | SCK 2000 | E 2.3"]
[null,null,null,null,null,null,null,null,null,null,null,null,null,null,null,null,null,null,null,"SPC Cone Fenders | SPC 1100 | G 1.1",null,null,null,null,null,null,null,null,null,"SCK Cell Fenders | SCK 2000 | E 2.4"]
[null,null,null,null,null,null,null,null,null,null,null,null,null,null,null,null,null,null,null,"SPC Cone Fenders | SPC 1100 | G 1.2",null,null,null,null,null,null,null,null,null,"SCK Cell Fenders | SCK 2000 | E 2.5"]
[null,null,null,null,null,null,null,null,null,null,null,null,null,null,null,null,null,null,null,"SPC Cone Fenders | SPC 1100 | G 1.3",null,null,null,null,null,null,null,null,null,"SCK Cell Fenders | SCK 2000 | E 2.6"]
[null,null,null,null,null,null,null,null,null,null,null,null,null,null,null,null,null,null,null,"SPC Cone Fenders | SPC 1100 | G 1.4",null,null,null,null,null,null,null,null,null,"SCK Cell Fenders | SCK 2000 | E 2.7"]
[null,null,null,null,null,null,null,null,null,null,null,null,null,null,null,null,null,null,null,"SPC Cone Fenders | SPC 1100 | G 1.5",null,null,null,null,null,null,null,null,null,"SCK Cell Fenders | SCK 2000 | E 2.8"]
[null,null,null,null,null,null,null,null,null,null,null,null,null,null,null,null,null,null,null,"SPC Cone Fenders | SPC 1100 | G 1.6",null,null,null,null,null,null,null,null,null,"SCK Cell Fenders | SCK 2000 | E 2.9"]
[null,null,null,null,null,null,null,null,null,null,null,null,null,null,null,null,null,null,null,"SPC Cone Fenders | SPC 1100 | G 1.7",null,null,null,null,null,null,null,null,null,"SCK Cell Fenders | SCK 2000 | E 3.0"]
[null,null,null,null,null,null,null,null,null,null,null,null,null,null,null,null,null,null,null,"SPC Cone Fenders | SPC 1100 | G 1.8",null,null,null,null,null,null,null,null,null,"SCK Cell Fenders | SCK 2000 | E 3.1"]
[null,null,null,null,null,null,null,null,null,null,null,null,null,null,null,null,null,null,null,"SPC Cone Fenders | SPC 1100 | G 1.9",null,null,null,null,null,null,null,null,null,"SCK Cell Fenders | SCK 2250 | E 0.9"]
[null,null,null,null,null,null,null,null,null,null,null,null,null,null,null,null,null,null,null,"SPC Cone Fenders | SPC 1100 | G 2.0",null,null,null,null,null,null,null,null,null,"SCK Cell Fenders | SCK 2250 | E 1.0"]
[null,null,null,null,null,null,null,null,null,null,null,null,null,null,null,null,null,null,null,"SPC Cone Fenders | SPC 1100 | G 2.1",null,null,null,null,null,null,null,null,null,"SCK Cell Fenders | SCK 2250 | E 1.1"]
[null,null,null,null,null,null,null,null,null,null,null,null,null,null,null,null,null,null,null,"SPC Cone Fenders | SPC 1100 | G 2.2",null,null,null,null,null,null,null,null,null,"SCK Cell Fenders | SCK 2250 | E 1.2"]
[null,null,null,null,null,null,null,null,null,null,null,null,null,null,null,null,null,null,null,"SPC Cone Fenders | SPC 1100 | G 2.3",null,null,null,null,null,null,null,null,null,"SCK Cell Fenders | SCK 2250 | E 1.3"]
[null,null,null,null,null,null,null,null,null,null,null,null,null,null,null,null,null,null,null,"SPC Cone Fenders | SPC 1100 | G 2.4",null,null,null,null,null,null,null,null,null,"SCK Cell Fenders | SCK 2250 | E 1.4"]
[null,null,null,null,null,null,null,null,null,null,null,null,null,null,null,null,null,null,null,"SPC Cone Fenders | SPC 1100 | G 2.5",null,null,null,null,null,null,null,null,null,"SCK Cell Fenders | SCK 2250 | E 1.5"]
[null,null,null,null,null,null,null,null,null,null,null,null,null,null,null,null,null,null,null,"SPC Cone Fenders | SPC 1100 | G 2.6",null,null,null,null,null,null,null,null,null,"SCK Cell Fenders | SCK 2250 | E 1.6"]
[null,null,null,null,null,null,null,null,null,null,null,null,null,null,null,null,null,null,null,"SPC Cone Fenders | SPC 1100 | G 2.7",null,null,null,null,null,null,null,null,null,"SCK Cell Fenders | SCK 2250 | E 1.7"]
[null,null,null,null,null,null,null,null,null,null,null,null,null,null,null,null,null,null,null,"SPC Cone Fenders | SPC 1100 | G 2.8",null,null,null,null,null,null,null,null,null,"SCK Cell Fenders | SCK 2250 | E 1.8"]
[null,null,null,null,null,null,null,null,null,null,null,null,null,null,null,null,null,null,null,"SPC Cone Fenders | SPC 1100 | G 2.9",null,null,null,null,null,null,null,null,null,"SCK Cell Fenders | SCK 2250 | E 1.9"]
[null,null,null,null,null,null,null,null,null,null,null,null,null,null,null,null,null,null,null,"SPC Cone Fenders | SPC 1100 | G 3.0",null,null,null,null,null,null,null,null,null,"SCK Cell Fenders | SCK 2250 | E 2.0"]
[null,null,null,null,null,null,null,null,null,null,null,null,null,null,null,null,null,null,null,"SPC Cone Fenders | SPC 1100 | G 3.1",null,null,null,null,null,null,null,null,null,"SCK Cell Fenders | SCK 2250 | E 2.1"]
[null,null,null,null,null,null,null,null,null,null,null,null,null,null,null,null,null,null,null,"SPC Cone Fenders | SPC 1150 | G 0.9",null,null,null,null,null,null,null,null,null,"SCK Cell Fenders | SCK 2250 | E 2.2"]
[null,null,null,null,null,null,null,null,null,null,null,null,null,null,null,null,null,null,null,"SPC Cone Fenders | SPC 1150 | G 1.0",null,null,null,null,null,null,null,null,null,"SCK Cell Fenders | SCK 2250 | E 2.3"]
[null,null,null,null,null,null,null,null,null,null,null,null,null,null,null,null,null,null,null,"SPC Cone Fenders | SPC 1150 | G 1.1",null,null,null,null,null,null,null,null,null,"SCK Cell Fenders | SCK 2250 | E 2.4"]
[null,null,null,null,null,null,null,null,null,null,null,null,null,null,null,null,null,null,null,"SPC Cone Fenders | SPC 1150 | G 1.2",null,null,null,null,null,null,null,null,null,"SCK Cell Fenders | SCK 2250 | E 2.5"]
[null,null,null,null,null,null,null,null,null,null,null,null,null,null,null,null,null,null,null,"SPC Cone Fenders | SPC 1150 | G 1.3",null,null,null,null,null,null,null,null,null,"SCK Cell Fenders | SCK 2250 | E 2.6"]
[null,null,null,null,null,null,null,null,null,null,null,null,null,null,null,null,null,null,null,"SPC Cone Fenders | SPC 1150 | G 1.4",null,null,null,null,null,null,null,null,null,"SCK Cell Fenders | SCK 2250 | E 2.7"]
[null,null,null,null,null,null,null,null,null,null,null,null,null,null,null,null,null,null,null,"SPC Cone Fenders | SPC 1150 | G 1.5",null,null,null,null,null,null,null,null,null,"SCK Cell Fenders | SCK 2250 | E 2.8"]
[null,null,null,null,null,null,null,null,null,null,null,null,null,null,null,null,null,null,null,"SPC Cone Fenders | SPC 1150 | G 1.6",null,null,null,null,null,null,null,null,null,"SCK Cell Fenders | SCK 2250 | E 2.9"]
[null,null,null,null,null,null,null,null,null,null,null,null,null,null,null,null,null,null,null,"SPC Cone Fenders | SPC 1150 | G 1.7",null,null,null,null,null,null,null,null,null,"SCK Cell Fenders | SCK 2250 | E 3.0"]
[null,null,null,null,null,null,null,null,null,null,null,null,null,null,null,null,null,null,null,"SPC Cone Fenders | SPC 1150 | G 1.8",null,null,null,null,null,null,null,null,null,"SCK Cell Fenders | SCK 2250 | E 3.1"]
[null,null,null,null,null,null,null,null,null,null,null,null,null,null,null,null,null,null,null,"SPC Cone Fenders | SPC 1150 | G 1.9",null,null,null,null,null,null,null,null,null,"SCK Cell Fenders | SCK 2500 | E 0.9"]
[null,null,null,null,null,null,null,null,null,null,null,null,null,null,null,null,null,null,null,"SPC Cone Fenders | SPC 1150 | G 2.0",null,null,null,null,null,null,null,null,null,"SCK Cell Fenders | SCK 2500 | E 1.0"]
[null,null,null,null,null,null,null,null,null,null,null,null,null,null,null,null,null,null,null,"SPC Cone Fenders | SPC 1150 | G 2.1",null,null,null,null,null,null,null,null,null,"SCK Cell Fenders | SCK 2500 | E 1.1"]
[null,null,null,null,null,null,null,null,null,null,null,null,null,null,null,null,null,null,null,"SPC Cone Fenders | SPC 1150 | G 2.2",null,null,null,null,null,null,null,null,null,"SCK Cell Fenders | SCK 2500 | E 1.2"]
[null,null,null,null,null,null,null,null,null,null,null,null,null,null,null,null,null,null,null,"SPC Cone Fenders | SPC 1150 | G 2.3",null,null,null,null,null,null,null,null,null,"SCK Cell Fenders | SCK 2500 | E 1.3"]
[null,null,null,null,null,null,null,null,null,null,null,null,null,null,null,null,null,null,null,"SPC Cone Fenders | SPC 1150 | G 2.4",null,null,null,null,null,null,null,null,null,"SCK Cell Fenders | SCK 2500 | E 1.4"]
[null,null,null,null,null,null,null,null,null,null,null,null,null,null,null,null,null,null,null,"SPC Cone Fenders | SPC 1150 | G 2.5",null,null,null,null,null,null,null,null,null,"SCK Cell Fenders | SCK 2500 | E 1.5"]
[null,null,null,null,null,null,null,null,null,null,null,null,null,null,null,null,null,null,null,"SPC Cone Fenders | SPC 1150 | G 2.6",null,null,null,null,null,null,null,null,null,"SCK Cell Fenders | SCK 2500 | E 1.6"]
[null,null,null,null,null,null,null,null,null,null,null,null,null,null,null,null,null,null,null,"SPC Cone Fenders | SPC 1150 | G 2.7",null,null,null,null,null,null,null,null,null,"SCK Cell Fenders | SCK 2500 | E 1.7"]
[null,null,null,null,null,null,null,null,null,null,null,null,null,null,null,null,null,null,null,"SPC Cone Fenders | SPC 1150 | G 2.8",null,null,null,null,null,null,null,null,null,"SCK Cell Fenders | SCK 2500 | E 1.8"]
[null,null,null,null,null,null,null,null,null,null,null,null,null,null,null,null,null,null,null,"SPC Cone Fenders | SPC 1150 | G 2.9",null,null,null,null,null,null,null,null,null,"SCK Cell Fenders | SCK 2500 | E 1.9"]
[null,null,null,null,null,null,null,null,null,null,null,null,null,null,null,null,null,null,null,"SPC Cone Fenders | SPC 1150 | G 3.0",null,null,null,null,null,null,null,null,null,"SCK Cell Fenders | SCK 2500 | E 2.0"]
[null,null,null,null,null,null,null,null,null,null,null,null,null,null,null,null,null,null,null,"SPC Cone Fenders | SPC 1150 | G 3.1",null,null,null,null,null,null,null,null,null,"SCK Cell Fenders | SCK 2500 | E 2.1"]
[null,null,null,null,null,null,null,null,null,null,null,null,null,null,null,null,null,null,null,"SPC Cone Fenders | SPC 1200 | G 0.9",null,null,null,null,null,null,null,null,null,"SCK Cell Fenders | SCK 2500 | E 2.2"]
[null,null,null,null,null,null,null,null,null,null,null,null,null,null,null,null,null,null,null,"SPC Cone Fenders | SPC 1200 | G 1.0",null,null,null,null,null,null,null,null,null,"SCK Cell Fenders | SCK 2500 | E 2.3"]
[null,null,null,null,null,null,null,null,null,null,null,null,null,null,null,null,null,null,null,"SPC Cone Fenders | SPC 1200 | G 1.1",null,null,null,null,null,null,null,null,null,"SCK Cell Fenders | SCK 2500 | E 2.4"]
[null,null,null,null,null,null,null,null,null,null,null,null,null,null,null,null,null,null,null,"SPC Cone Fenders | SPC 1200 | G 1.2",null,null,null,null,null,null,null,null,null,"SCK Cell Fenders | SCK 2500 | E 2.5"]
[null,null,null,null,null,null,null,null,null,null,null,null,null,null,null,null,null,null,null,"SPC Cone Fenders | SPC 1200 | G 1.3",null,null,null,null,null,null,null,null,null,"SCK Cell Fenders | SCK 2500 | E 2.6"]
[null,null,null,null,null,null,null,null,null,null,null,null,null,null,null,null,null,null,null,"SPC Cone Fenders | SPC 1200 | G 1.4",null,null,null,null,null,null,null,null,null,"SCK Cell Fenders | SCK 2500 | E 2.7"]
[null,null,null,null,null,null,null,null,null,null,null,null,null,null,null,null,null,null,null,"SPC Cone Fenders | SPC 1200 | G 1.5",null,null,null,null,null,null,null,null,null,"SCK Cell Fenders | SCK 2500 | E 2.8"]
[null,null,null,null,null,null,null,null,null,null,null,null,null,null,null,null,null,null,null,"SPC Cone Fenders | SPC 1200 | G 1.6",null,null,null,null,null,null,null,null,null,"SCK Cell Fenders | SCK 2500 | E 2.9"]
[null,null,null,null,null,null,null,null,null,null,null,null,null,null,null,null,null,null,null,"SPC Cone Fenders | SPC 1200 | G 1.7",null,null,null,null,null,null,null,null,null,"SCK Cell Fenders | SCK 2500 | E 3.0"]
[null,null,null,null,null,null,null,null,null,null,null,null,null,null,null,null,null,null,null,"SPC Cone Fenders | SPC 1200 | G 1.8",null,null,null,null,null,null,null,null,null,"SCK Cell Fenders | SCK 2500 | E 3.1"]
[null,null,null,null,null,null,null,null,null,null,null,null,null,null,null,null,null,null,null,"SPC Cone Fenders | SPC 1200 | G 1.9",null,null,null,null,null,null,null,null,null,"SCK Cell Fenders | SCK 3000 | E 0.9"]
[null,null,null,null,null,null,null,null,null,null,null,null,null,null,null,null,null,null,null,"SPC Cone Fenders | SPC 1200 | G 2.0",null,null,null,null,null,null,null,null,null,"SCK Cell Fenders | SCK 3000 | E 1.0"]
[null,null,null,null,null,null,null,null,null,null,null,null,null,null,null,null,null,null,null,"SPC Cone Fenders | SPC 1200 | G 2.1",null,null,null,null,null,null,null,null,null,"SCK Cell Fenders | SCK 3000 | E 1.1"]
[null,null,null,null,null,null,null,null,null,null,null,null,null,null,null,null,null,null,null,"SPC Cone Fenders | SPC 1200 | G 2.2",null,null,null,null,null,null,null,null,null,"SCK Cell Fenders | SCK 3000 | E 1.2"]
[null,null,null,null,null,null,null,null,null,null,null,null,null,null,null,null,null,null,null,"SPC Cone Fenders | SPC 1200 | G 2.3",null,null,null,null,null,null,null,null,null,"SCK Cell Fenders | SCK 3000 | E 1.3"]
[null,null,null,null,null,null,null,null,null,null,null,null,null,null,null,null,null,null,null,"SPC Cone Fenders | SPC 1200 | G 2.4",null,null,null,null,null,null,null,null,null,"SCK Cell Fenders | SCK 3000 | E 1.4"]
[null,null,null,null,null,null,null,null,null,null,null,null,null,null,null,null,null,null,null,"SPC Cone Fenders | SPC 1200 | G 2.5",null,null,null,null,null,null,null,null,null,"SCK Cell Fenders | SCK 3000 | E 1.5"]
[null,null,null,null,null,null,null,null,null,null,null,null,null,null,null,null,null,null,null,"SPC Cone Fenders | SPC 1200 | G 2.6",null,null,null,null,null,null,null,null,null,"SCK Cell Fenders | SCK 3000 | E 1.6"]
[null,null,null,null,null,null,null,null,null,null,null,null,null,null,null,null,null,null,null,"SPC Cone Fenders | SPC 1200 | G 2.7",null,null,null,null,null,null,null,null,null,"SCK Cell Fenders | SCK 3000 | E 1.7"]
[null,null,null,null,null,null,null,null,null,null,null,null,null,null,null,null,null,null,null,"SPC Cone Fenders | SPC 1200 | G 2.8",null,null,null,null,null,null,null,null,null,"SCK Cell Fenders | SCK 3000 | E 1.8"]
[null,null,null,null,null,null,null,null,null,null,null,null,null,null,null,null,null,null,null,"SPC Cone Fenders | SPC 1200 | G 2.9",null,null,null,null,null,null,null,null,null,"SCK Cell Fenders | SCK 3000 | E 1.9"]
[null,null,null,null,null,null,null,null,null,null,null,null,null,null,null,null,null,null,null,"SPC Cone Fenders | SPC 1200 | G 3.0",null,null,null,null,null,null,null,null,null,"SCK Cell Fenders | SCK 3000 | E 2.0"]
[null,null,null,null,null,null,null,null,null,null,null,null,null,null,null,null,null,null,null,"SPC Cone Fenders | SPC 1200 | G 3.1",null,null,null,null,null,null,null,null,null,"SCK Cell Fenders | SCK 3000 | E 2.1"]
[null,null,null,null,null,null,null,null,null,null,null,null,null,null,null,null,null,null,null,"SPC Cone Fenders | SPC 1300 | G 0.9",null,null,null,null,null,null,null,null,null,"SCK Cell Fenders | SCK 3000 | E 2.2"]
[null,null,null,null,null,null,null,null,null,null,null,null,null,null,null,null,null,null,null,"SPC Cone Fenders | SPC 1300 | G 1.0",null,null,null,null,null,null,null,null,null,"SCK Cell Fenders | SCK 3000 | E 2.3"]
[null,null,null,null,null,null,null,null,null,null,null,null,null,null,null,null,null,null,null,"SPC Cone Fenders | SPC 1300 | G 1.1",null,null,null,null,null,null,null,null,null,"SCK Cell Fenders | SCK 3000 | E 2.4"]
[null,null,null,null,null,null,null,null,null,null,null,null,null,null,null,null,null,null,null,"SPC Cone Fenders | SPC 1300 | G 1.2",null,null,null,null,null,null,null,null,null,"SCK Cell Fenders | SCK 3000 | E 2.5"]
[null,null,null,null,null,null,null,null,null,null,null,null,null,null,null,null,null,null,null,"SPC Cone Fenders | SPC 1300 | G 1.3",null,null,null,null,null,null,null,null,null,"SCK Cell Fenders | SCK 3000 | E 2.6"]
[null,null,null,null,null,null,null,null,null,null,null,null,null,null,null,null,null,null,null,"SPC Cone Fenders | SPC 1300 | G 1.4",null,null,null,null,null,null,null,null,null,"SCK Cell Fenders | SCK 3000 | E 2.7"]
[null,null,null,null,null,null,null,null,null,null,null,null,null,null,null,null,null,null,null,"SPC Cone Fenders | SPC 1300 | G 1.5",null,null,null,null,null,null,null,null,null,"SCK Cell Fenders | SCK 3000 | E 2.8"]
[null,null,null,null,null,null,null,null,null,null,null,null,null,null,null,null,null,null,null,"SPC Cone Fenders | SPC 1300 | G 1.6",null,null,null,null,null,null,null,null,null,"SCK Cell Fenders | SCK 3000 | E 2.9"]
[null,null,null,null,null,null,null,null,null,null,null,null,null,null,null,null,null,null,null,"SPC Cone Fenders | SPC 1300 | G 1.7",null,null,null,null,null,null,null,null,null,"SCK Cell Fenders | SCK 3000 | E 3.0"]
[null,null,null,null,null,null,null,null,null,null,null,null,null,null,null,null,null,null,null,"SPC Cone Fenders | SPC 1300 | G 1.8",null,null,null,null,null,null,null,null,null,"SCK Cell Fenders | SCK 3000 | E 3.1"]
[null,null,null,null,null,null,null,null,null,null,null,null,null,null,null,null,null,null,null,"SPC Cone Fenders | SPC 1300 | G 1.9",null,null,null,null,null,null,null,null,null,"Super Cone Fender | SCN 300 | F0.9"]
[null,null,null,null,null,null,null,null,null,null,null,null,null,null,null,null,null,null,null,"SPC Cone Fenders | SPC 1300 | G 2.0",null,null,null,null,null,null,null,null,null,"Super Cone Fender | SCN 300 | F1.0"]
[null,null,null,null,null,null,null,null,null,null,null,null,null,null,null,null,null,null,null,"SPC Cone Fenders | SPC 1300 | G 2.1",null,null,null,null,null,null,null,null,null,"Super Cone Fender | SCN 300 | F1.1"]
[null,null,null,null,null,null,null,null,null,null,null,null,null,null,null,null,null,null,null,"SPC Cone Fenders | SPC 1300 | G 2.2",null,null,null,null,null,null,null,null,null,"Super Cone Fender | SCN 300 | F1.2"]
[null,null,null,null,null,null,null,null,null,null,null,null,null,null,null,null,null,null,null,"SPC Cone Fenders | SPC 1300 | G 2.3",null,null,null,null,null,null,null,null,null,"Super Cone Fender | SCN 300 | F1.3"]
[null,null,null,null,null,null,null,null,null,null,null,null,null,null,null,null,null,null,null,"SPC Cone Fenders | SPC 1300 | G 2.4",null,null,null,null,null,null,null,null,null,"Super Cone Fender | SCN 300 | F1.4"]
[null,null,null,null,null,null,null,null,null,null,null,null,null,null,null,null,null,null,null,"SPC Cone Fenders | SPC 1300 | G 2.5",null,null,null,null,null,null,null,null,null,"Super Cone Fender | SCN 300 | F1.5"]
[null,null,null,null,null,null,null,null,null,null,null,null,null,null,null,null,null,null,null,"SPC Cone Fenders | SPC 1300 | G 2.6",null,null,null,null,null,null,null,null,null,"Super Cone Fender | SCN 300 | F1.6"]
[null,null,null,null,null,null,null,null,null,null,null,null,null,null,null,null,null,null,null,"SPC Cone Fenders | SPC 1300 | G 2.7",null,null,null,null,null,null,null,null,null,"Super Cone Fender | SCN 300 | F1.7"]
[null,null,null,null,null,null,null,null,null,null,null,null,null,null,null,null,null,null,null,"SPC Cone Fenders | SPC 1300 | G 2.8",null,null,null,null,null,null,null,null,null,"Super Cone Fender | SCN 300 | F1.8"]
[null,null,null,null,null,null,null,null,null,null,null,null,null,null,null,null,null,null,null,"SPC Cone Fenders | SPC 1300 | G 2.9",null,null,null,null,null,null,null,null,null,"Super Cone Fender | SCN 300 | F1.9"]
[null,null,null,null,null,null,null,null,null,null,null,null,null,null,null,null,null,null,null,"SPC Cone Fenders | SPC 1300 | G 3.0",null,null,null,null,null,null,null,null,null,"Super Cone Fender | SCN 300 | F2.0"]
[null,null,null,null,null,null,null,null,null,null,null,null,null,null,null,null,null,null,null,"SPC Cone Fenders | SPC 1300 | G 3.1",null,null,null,null,null,null,null,null,null,"Super Cone Fender | SCN 300 | F2.1"]
[null,null,null,null,null,null,null,null,null,null,null,null,null,null,null,null,null,null,null,"SPC Cone Fenders | SPC 1400 | G 0.9",null,null,null,null,null,null,null,null,null,"Super Cone Fender | SCN 300 | F2.2"]
[null,null,null,null,null,null,null,null,null,null,null,null,null,null,null,null,null,null,null,"SPC Cone Fenders | SPC 1400 | G 1.0",null,null,null,null,null,null,null,null,null,"Super Cone Fender | SCN 300 | F2.3"]
[null,null,null,null,null,null,null,null,null,null,null,null,null,null,null,null,null,null,null,"SPC Cone Fenders | SPC 1400 | G 1.1",null,null,null,null,null,null,null,null,null,"Super Cone Fender | SCN 300 | F2.4"]
[null,null,null,null,null,null,null,null,null,null,null,null,null,null,null,null,null,null,null,"SPC Cone Fenders | SPC 1400 | G 1.2",null,null,null,null,null,null,null,null,null,"Super Cone Fender | SCN 300 | F2.5"]
[null,null,null,null,null,null,null,null,null,null,null,null,null,null,null,null,null,null,null,"SPC Cone Fenders | SPC 1400 | G 1.3",null,null,null,null,null,null,null,null,null,"Super Cone Fender | SCN 300 | F2.6"]
[null,null,null,null,null,null,null,null,null,null,null,null,null,null,null,null,null,null,null,"SPC Cone Fenders | SPC 1400 | G 1.4",null,null,null,null,null,null,null,null,null,"Super Cone Fender | SCN 300 | F2.7"]
[null,null,null,null,null,null,null,null,null,null,null,null,null,null,null,null,null,null,null,"SPC Cone Fenders | SPC 1400 | G 1.5",null,null,null,null,null,null,null,null,null,"Super Cone Fender | SCN 300 | F2.8"]
[null,null,null,null,null,null,null,null,null,null,null,null,null,null,null,null,null,null,null,"SPC Cone Fenders | SPC 1400 | G 1.6",null,null,null,null,null,null,null,null,null,"Super Cone Fender | SCN 300 | F2.9"]
[null,null,null,null,null,null,null,null,null,null,null,null,null,null,null,null,null,null,null,"SPC Cone Fenders | SPC 1400 | G 1.7",null,null,null,null,null,null,null,null,null,"Super Cone Fender | SCN 300 | F3.0"]
[null,null,null,null,null,null,null,null,null,null,null,null,null,null,null,null,null,null,null,"SPC Cone Fenders | SPC 1400 | G 1.8",null,null,null,null,null,null,null,null,null,"Super Cone Fender | SCN 300 | F3.1"]
[null,null,null,null,null,null,null,null,null,null,null,null,null,null,null,null,null,null,null,"SPC Cone Fenders | SPC 1400 | G 1.9",null,null,null,null,null,null,null,null,null,"Super Cone Fender | SCN 350 | F0.9"]
[null,null,null,null,null,null,null,null,null,null,null,null,null,null,null,null,null,null,null,"SPC Cone Fenders | SPC 1400 | G 2.0",null,null,null,null,null,null,null,null,null,"Super Cone Fender | SCN 350 | F1.0"]
[null,null,null,null,null,null,null,null,null,null,null,null,null,null,null,null,null,null,null,"SPC Cone Fenders | SPC 1400 | G 2.1",null,null,null,null,null,null,null,null,null,"Super Cone Fender | SCN 350 | F1.1"]
[null,null,null,null,null,null,null,null,null,null,null,null,null,null,null,null,null,null,null,"SPC Cone Fenders | SPC 1400 | G 2.2",null,null,null,null,null,null,null,null,null,"Super Cone Fender | SCN 350 | F1.2"]
[null,null,null,null,null,null,null,null,null,null,null,null,null,null,null,null,null,null,null,"SPC Cone Fenders | SPC 1400 | G 2.3",null,null,null,null,null,null,null,null,null,"Super Cone Fender | SCN 350 | F1.3"]
[null,null,null,null,null,null,null,null,null,null,null,null,null,null,null,null,null,null,null,"SPC Cone Fenders | SPC 1400 | G 2.4",null,null,null,null,null,null,null,null,null,"Super Cone Fender | SCN 350 | F1.4"]
[null,null,null,null,null,null,null,null,null,null,null,null,null,null,null,null,null,null,null,"SPC Cone Fenders | SPC 1400 | G 2.5",null,null,null,null,null,null,null,null,null,"Super Cone Fender | SCN 350 | F1.5"]
[null,null,null,null,null,null,null,null,null,null,null,null,null,null,null,null,null,null,null,"SPC Cone Fenders | SPC 1400 | G 2.6",null,null,null,null,null,null,null,null,null,"Super Cone Fender | SCN 350 | F1.6"]
[null,null,null,null,null,null,null,null,null,null,null,null,null,null,null,null,null,null,null,"SPC Cone Fenders | SPC 1400 | G 2.7",null,null,null,null,null,null,null,null,null,"Super Cone Fender | SCN 350 | F1.7"]
[null,null,null,null,null,null,null,null,null,null,null,null,null,null,null,null,null,null,null,"SPC Cone Fenders | SPC 1400 | G 2.8",null,null,null,null,null,null,null,null,null,"Super Cone Fender | SCN 350 | F1.8"]
[null,null,null,null,null,null,null,null,null,null,null,null,null,null,null,null,null,null,null,"SPC Cone Fenders | SPC 1400 | G 2.9",null,null,null,null,null,null,null,null,null,"Super Cone Fender | SCN 350 | F1.9"]
[null,null,null,null,null,null,null,null,null,null,null,null,null,null,null,null,null,null,null,"SPC Cone Fenders | SPC 1400 | G 3.0",null,null,null,null,null,null,null,null,null,"Super Cone Fender | SCN 350 | F2.0"]
[null,null,null,null,null,null,null,null,null,null,null,null,null,null,null,null,null,null,null,"SPC Cone Fenders | SPC 1400 | G 3.1",null,null,null,null,null,null,null,null,null,"Super Cone Fender | SCN 350 | F2.1"]
[null,null,null,null,null,null,null,null,null,null,null,null,null,null,null,null,null,null,null,"SPC Cone Fenders | SPC 1600 | G 0.9",null,null,null,null,null,null,null,null,null,"Super Cone Fender | SCN 350 | F2.2"]
[null,null,null,null,null,null,null,null,null,null,null,null,null,null,null,null,null,null,null,"SPC Cone Fenders | SPC 1600 | G 1.0",null,null,null,null,null,null,null,null,null,"Super Cone Fender | SCN 350 | F2.3"]
[null,null,null,null,null,null,null,null,null,null,null,null,null,null,null,null,null,null,null,"SPC Cone Fenders | SPC 1600 | G 1.1",null,null,null,null,null,null,null,null,null,"Super Cone Fender | SCN 350 | F2.4"]
[null,null,null,null,null,null,null,null,null,null,null,null,null,null,null,null,null,null,null,"SPC Cone Fenders | SPC 1600 | G 1.2",null,null,null,null,null,null,null,null,null,"Super Cone Fender | SCN 350 | F2.5"]
[null,null,null,null,null,null,null,null,null,null,null,null,null,null,null,null,null,null,null,"SPC Cone Fenders | SPC 1600 | G 1.3",null,null,null,null,null,null,null,null,null,"Super Cone Fender | SCN 350 | F2.6"]
[null,null,null,null,null,null,null,null,null,null,null,null,null,null,null,null,null,null,null,"SPC Cone Fenders | SPC 1600 | G 1.4",null,null,null,null,null,null,null,null,null,"Super Cone Fender | SCN 350 | F2.7"]
[null,null,null,null,null,null,null,null,null,null,null,null,null,null,null,null,null,null,null,"SPC Cone Fenders | SPC 1600 | G 1.5",null,null,null,null,null,null,null,null,null,"Super Cone Fender | SCN 350 | F2.8"]
[null,null,null,null,null,null,null,null,null,null,null,null,null,null,null,null,null,null,null,"SPC Cone Fenders | SPC 1600 | G 1.6",null,null,null,null,null,null,null,null,null,"Super Cone Fender | SCN 350 | F2.9"]
[null,null,null,null,null,null,null,null,null,null,null,null,null,null,null,null,null,null,null,"SPC Cone Fenders | SPC 1600 | G 1.7",null,null,null,null,null,null,null,null,null,"Super Cone Fender | SCN 350 | F3.0"]
[null,null,null,null,null,null,null,null,null,null,null,null,null,null,null,null,null,null,null,"SPC Cone Fenders | SPC 1600 | G 1.8",null,null,null,null,null,null,null,null,null,"Super Cone Fender | SCN 350 | F3.1"]
[null,null,null,null,null,null,null,null,null,null,null,null,null,null,null,null,null,null,null,"SPC Cone Fenders | SPC 1600 | G 1.9",null,null,null,null,null,null,null,null,null,"Super Cone Fender | SCN 400 | F0.9"]
[null,null,null,null,null,null,null,null,null,null,null,null,null,null,null,null,null,null,null,"SPC Cone Fenders | SPC 1600 | G 2.0",null,null,null,null,null,null,null,null,null,"Super Cone Fender | SCN 400 | F1.0"]
[null,null,null,null,null,null,null,null,null,null,null,null,null,null,null,null,null,null,null,"SPC Cone Fenders | SPC 1600 | G 2.1",null,null,null,null,null,null,null,null,null,"Super Cone Fender | SCN 400 | F1.1"]
[null,null,null,null,null,null,null,null,null,null,null,null,null,null,null,null,null,null,null,"SPC Cone Fenders | SPC 1600 | G 2.2",null,null,null,null,null,null,null,null,null,"Super Cone Fender | SCN 400 | F1.2"]
[null,null,null,null,null,null,null,null,null,null,null,null,null,null,null,null,null,null,null,"SPC Cone Fenders | SPC 1600 | G 2.3",null,null,null,null,null,null,null,null,null,"Super Cone Fender | SCN 400 | F1.3"]
[null,null,null,null,null,null,null,null,null,null,null,null,null,null,null,null,null,null,null,"SPC Cone Fenders | SPC 1600 | G 2.4",null,null,null,null,null,null,null,null,null,"Super Cone Fender | SCN 400 | F1.4"]
[null,null,null,null,null,null,null,null,null,null,null,null,null,null,null,null,null,null,null,"SPC Cone Fenders | SPC 1600 | G 2.5",null,null,null,null,null,null,null,null,null,"Super Cone Fender | SCN 400 | F1.5"]
[null,null,null,null,null,null,null,null,null,null,null,null,null,null,null,null,null,null,null,"SPC Cone Fenders | SPC 1600 | G 2.6",null,null,null,null,null,null,null,null,null,"Super Cone Fender | SCN 400 | F1.6"]
[null,null,null,null,null,null,null,null,null,null,null,null,null,null,null,null,null,null,null,"SPC Cone Fenders | SPC 1600 | G 2.7",null,null,null,null,null,null,null,null,null,"Super Cone Fender | SCN 400 | F1.7"]
[null,null,null,null,null,null,null,null,null,null,null,null,null,null,null,null,null,null,null,"SPC Cone Fenders | SPC 1600 | G 2.8",null,null,null,null,null,null,null,null,null,"Super Cone Fender | SCN 400 | F1.8"]
[null,null,null,null,null,null,null,null,null,null,null,null,null,null,null,null,null,null,null,"SPC Cone Fenders | SPC 1600 | G 2.9",null,null,null,null,null,null,null,null,null,"Super Cone Fender | SCN 400 | F1.9"]
[null,null,null,null,null,null,null,null,null,null,null,null,null,null,null,null,null,null,null,"SPC Cone Fenders | SPC 1600 | G 3.0",null,null,null,null,null,null,null,null,null,"Super Cone Fender | SCN 400 | F2.0"]
[null,null,null,null,null,null,null,null,null,null,null,null,null,null,null,null,null,null,null,"SPC Cone Fenders | SPC 1600 | G 3.1",null,null,null,null,null,null,null,null,null,"Super Cone Fender | SCN 400 | F2.1"]
[null,null,null,null,null,null,null,null,null,null,null,null,null,null,null,null,null,null,null,"SPC Cone Fenders | SPC 1800 | G 0.9",null,null,null,null,null,null,null,null,null,"Super Cone Fender | SCN 400 | F2.2"]
[null,null,null,null,null,null,null,null,null,null,null,null,null,null,null,null,null,null,null,"SPC Cone Fenders | SPC 1800 | G 1.0",null,null,null,null,null,null,null,null,null,"Super Cone Fender | SCN 400 | F2.3"]
[null,null,null,null,null,null,null,null,null,null,null,null,null,null,null,null,null,null,null,"SPC Cone Fenders | SPC 1800 | G 1.1",null,null,null,null,null,null,null,null,null,"Super Cone Fender | SCN 400 | F2.4"]
[null,null,null,null,null,null,null,null,null,null,null,null,null,null,null,null,null,null,null,"SPC Cone Fenders | SPC 1800 | G 1.2",null,null,null,null,null,null,null,null,null,"Super Cone Fender | SCN 400 | F2.5"]
[null,null,null,null,null,null,null,null,null,null,null,null,null,null,null,null,null,null,null,"SPC Cone Fenders | SPC 1800 | G 1.3",null,null,null,null,null,null,null,null,null,"Super Cone Fender | SCN 400 | F2.6"]
[null,null,null,null,null,null,null,null,null,null,null,null,null,null,null,null,null,null,null,"SPC Cone Fenders | SPC 1800 | G 1.4",null,null,null,null,null,null,null,null,null,"Super Cone Fender | SCN 400 | F2.7"]
[null,null,null,null,null,null,null,null,null,null,null,null,null,null,null,null,null,null,null,"SPC Cone Fenders | SPC 1800 | G 1.5",null,null,null,null,null,null,null,null,null,"Super Cone Fender | SCN 400 | F2.8"]
[null,null,null,null,null,null,null,null,null,null,null,null,null,null,null,null,null,null,null,"SPC Cone Fenders | SPC 1800 | G 1.6",null,null,null,null,null,null,null,null,null,"Super Cone Fender | SCN 400 | F2.9"]
[null,null,null,null,null,null,null,null,null,null,null,null,null,null,null,null,null,null,null,"SPC Cone Fenders | SPC 1800 | G 1.7",null,null,null,null,null,null,null,null,null,"Super Cone Fender | SCN 400 | F3.0"]
[null,null,null,null,null,null,null,null,null,null,null,null,null,null,null,null,null,null,null,"SPC Cone Fenders | SPC 1800 | G 1.8",null,null,null,null,null,null,null,null,null,"Super Cone Fender | SCN 400 | F3.1"]
[null,null,null,null,null,null,null,null,null,null,null,null,null,null,null,null,null,null,null,"SPC Cone Fenders | SPC 1800 | G 1.9",null,null,null,null,null,null,null,null,null,"Super Cone Fender | SCN 500 | F0.9"]
[null,null,null,null,null,null,null,null,null,null,null,null,null,null,null,null,null,null,null,"SPC Cone Fenders | SPC 1800 | G 2.0",null,null,null,null,null,null,null,null,null,"Super Cone Fender | SCN 500 | F1.0"]
[null,null,null,null,null,null,null,null,null,null,null,null,null,null,null,null,null,null,null,"SPC Cone Fenders | SPC 1800 | G 2.1",null,null,null,null,null,null,null,null,null,"Super Cone Fender | SCN 500 | F1.1"]
[null,null,null,null,null,null,null,null,null,null,null,null,null,null,null,null,null,null,null,"SPC Cone Fenders | SPC 1800 | G 2.2",null,null,null,null,null,null,null,null,null,"Super Cone Fender | SCN 500 | F1.2"]
[null,null,null,null,null,null,null,null,null,null,null,null,null,null,null,null,null,null,null,"SPC Cone Fenders | SPC 1800 | G 2.3",null,null,null,null,null,null,null,null,null,"Super Cone Fender | SCN 500 | F1.3"]
[null,null,null,null,null,null,null,null,null,null,null,null,null,null,null,null,null,null,null,"SPC Cone Fenders | SPC 1800 | G 2.4",null,null,null,null,null,null,null,null,null,"Super Cone Fender | SCN 500 | F1.4"]
[null,null,null,null,null,null,null,null,null,null,null,null,null,null,null,null,null,null,null,"SPC Cone Fenders | SPC 1800 | G 2.5",null,null,null,null,null,null,null,null,null,"Super Cone Fender | SCN 500 | F1.5"]
[null,null,null,null,null,null,null,null,null,null,null,null,null,null,null,null,null,null,null,"SPC Cone Fenders | SPC 1800 | G 2.6",null,null,null,null,null,null,null,null,null,"Super Cone Fender | SCN 500 | F1.6"]
[null,null,null,null,null,null,null,null,null,null,null,null,null,null,null,null,null,null,null,"SPC Cone Fenders | SPC 1800 | G 2.7",null,null,null,null,null,null,null,null,null,"Super Cone Fender | SCN 500 | F1.7"]
[null,null,null,null,null,null,null,null,null,null,null,null,null,null,null,null,null,null,null,"SPC Cone Fenders | SPC 1800 | G 2.8",null,null,null,null,null,null,null,null,null,"Super Cone Fender | SCN 500 | F1.8"]
[null,null,null,null,null,null,null,null,null,null,null,null,null,null,null,null,null,null,null,"SPC Cone Fenders | SPC 1800 | G 2.9",null,null,null,null,null,null,null,null,null,"Super Cone Fender | SCN 500 | F1.9"]
[null,null,null,null,null,null,null,null,null,null,null,null,null,null,null,null,null,null,null,"SPC Cone Fenders | SPC 1800 | G 3.0",null,null,null,null,null,null,null,null,null,"Super Cone Fender | SCN 500 | F2.0"]
[null,null,null,null,null,null,null,null,null,null,null,null,null,null,null,null,null,null,null,"SPC Cone Fenders | SPC 1800 | G 3.1",null,null,null,null,null,null,null,null,null,"Super Cone Fender | SCN 500 | F2.1"]
[null,null,null,null,null,null,null,null,null,null,null,null,null,null,null,null,null,null,null,"SPC Cone Fenders | SPC 2000 | G 0.9",null,null,null,null,null,null,null,null,null,"Super Cone Fender | SCN 500 | F2.2"]
[null,null,null,null,null,null,null,null,null,null,null,null,null,null,null,null,null,null,null,"SPC Cone Fenders | SPC 2000 | G 1.0",null,null,null,null,null,null,null,null,null,"Super Cone Fender | SCN 500 | F2.3"]
[null,null,null,null,null,null,null,null,null,null,null,null,null,null,null,null,null,null,null,"SPC Cone Fenders | SPC 2000 | G 1.1",null,null,null,null,null,null,null,null,null,"Super Cone Fender | SCN 500 | F2.4"]
[null,null,null,null,null,null,null,null,null,null,null,null,null,null,null,null,null,null,null,"SPC Cone Fenders | SPC 2000 | G 1.2",null,null,null,null,null,null,null,null,null,"Super Cone Fender | SCN 500 | F2.5"]
[null,null,null,null,null,null,null,null,null,null,null,null,null,null,null,null,null,null,null,"SPC Cone Fenders | SPC 2000 | G 1.3",null,null,null,null,null,null,null,null,null,"Super Cone Fender | SCN 500 | F2.6"]
[null,null,null,null,null,null,null,null,null,null,null,null,null,null,null,null,null,null,null,"SPC Cone Fenders | SPC 2000 | G 1.4",null,null,null,null,null,null,null,null,null,"Super Cone Fender | SCN 500 | F2.7"]
[null,null,null,null,null,null,null,null,null,null,null,null,null,null,null,null,null,null,null,"SPC Cone Fenders | SPC 2000 | G 1.5",null,null,null,null,null,null,null,null,null,"Super Cone Fender | SCN 500 | F2.8"]
[null,null,null,null,null,null,null,null,null,null,null,null,null,null,null,null,null,null,null,"SPC Cone Fenders | SPC 2000 | G 1.6",null,null,null,null,null,null,null,null,null,"Super Cone Fender | SCN 500 | F2.9"]
[null,null,null,null,null,null,null,null,null,null,null,null,null,null,null,null,null,null,null,"SPC Cone Fenders | SPC 2000 | G 1.7",null,null,null,null,null,null,null,null,null,"Super Cone Fender | SCN 500 | F3.0"]
[null,null,null,null,null,null,null,null,null,null,null,null,null,null,null,null,null,null,null,"SPC Cone Fenders | SPC 2000 | G 1.8",null,null,null,null,null,null,null,null,null,"Super Cone Fender | SCN 500 | F3.1"]
[null,null,null,null,null,null,null,null,null,null,null,null,null,null,null,null,null,null,null,"SPC Cone Fenders | SPC 2000 | G 1.9",null,null,null,null,null,null,null,null,null,"Super Cone Fender | SCN 550 | F0.9"]
[null,null,null,null,null,null,null,null,null,null,null,null,null,null,null,null,null,null,null,"SPC Cone Fenders | SPC 2000 | G 2.0",null,null,null,null,null,null,null,null,null,"Super Cone Fender | SCN 550 | F1.0"]
[null,null,null,null,null,null,null,null,null,null,null,null,null,null,null,null,null,null,null,"SPC Cone Fenders | SPC 2000 | G 2.1",null,null,null,null,null,null,null,null,null,"Super Cone Fender | SCN 550 | F1.1"]
[null,null,null,null,null,null,null,null,null,null,null,null,null,null,null,null,null,null,null,"SPC Cone Fenders | SPC 2000 | G 2.2",null,null,null,null,null,null,null,null,null,"Super Cone Fender | SCN 550 | F1.2"]
[null,null,null,null,null,null,null,null,null,null,null,null,null,null,null,null,null,null,null,"SPC Cone Fenders | SPC 2000 | G 2.3",null,null,null,null,null,null,null,null,null,"Super Cone Fender | SCN 550 | F1.3"]
[null,null,null,null,null,null,null,null,null,null,null,null,null,null,null,null,null,null,null,"SPC Cone Fenders | SPC 2000 | G 2.4",null,null,null,null,null,null,null,null,null,"Super Cone Fender | SCN 550 | F1.4"]
[null,null,null,null,null,null,null,null,null,null,null,null,null,null,null,null,null,null,null,"SPC Cone Fenders | SPC 2000 | G 2.5",null,null,null,null,null,null,null,null,null,"Super Cone Fender | SCN 550 | F1.5"]
[null,null,null,null,null,null,null,null,null,null,null,null,null,null,null,null,null,null,null,"SPC Cone Fenders | SPC 2000 | G 2.6",null,null,null,null,null,null,null,null,null,"Super Cone Fender | SCN 550 | F1.6"]
[null,null,null,null,null,null,null,null,null,null,null,null,null,null,null,null,null,null,null,"SPC Cone Fenders | SPC 2000 | G 2.7",null,null,null,null,null,null,null,null,null,"Super Cone Fender | SCN 550 | F1.7"]
[null,null,null,null,null,null,null,null,null,null,null,null,null,null,null,null,null,null,null,"SPC Cone Fenders | SPC 2000 | G 2.8",null,null,null,null,null,null,null,null,null,"Super Cone Fender | SCN 550 | F1.8"]
[null,null,null,null,null,null,null,null,null,null,null,null,null,null,null,null,null,null,null,"SPC Cone Fenders | SPC 2000 | G 2.9",null,null,null,null,null,null,null,null,null,"Super Cone Fender | SCN 550 | F1.9"]
[null,null,null,null,null,null,null,null,null,null,null,null,null,null,null,null,null,null,null,"SPC Cone Fenders | SPC 2000 | G 3.0",null,null,null,null,null,null,null,null,null,"Super Cone Fender | SCN 550 | F2.0"]
[null,null,null,null,null,null,null,null,null,null,null,null,null,null,null,null,null,null,null,"SPC Cone Fenders | SPC 2000 | G 3.1",null,null,null,null,null,null,null,null,null,"Super Cone Fender | SCN 550 | F2.1"]
[null,null,null,null,null,null,null,null,null,null,null,null,null,null,null,null,null,null,null,"V Fenders | V 250 | G 0.9",null,null,null,null,null,null,null,null,null,"Super Cone Fender | SCN 550 | F2.2"]
[null,null,null,null,null,null,null,null,null,null,null,null,null,null,null,null,null,null,null,"V Fenders | V 250 | G 1.0",null,null,null,null,null,null,null,null,null,"Super Cone Fender | SCN 550 | F2.3"]
[null,null,null,null,null,null,null,null,null,null,null,null,null,null,null,null,null,null,null,"V Fenders | V 250 | G 1.1",null,null,null,null,null,null,null,null,null,"Super Cone Fender | SCN 550 | F2.4"]
[null,null,null,null,null,null,null,null,null,null,null,null,null,null,null,null,null,null,null,"V Fenders | V 250 | G 1.2",null,null,null,null,null,null,null,null,null,"Super Cone Fender | SCN 550 | F2.5"]
[null,null,null,null,null,null,null,null,null,null,null,null,null,null,null,null,null,null,null,"V Fenders | V 250 | G 1.3",null,null,null,null,null,null,null,null,null,"Super Cone Fender | SCN 550 | F2.6"]
[null,null,null,null,null,null,null,null,null,null,null,null,null,null,null,null,null,null,null,"V Fenders | V 250 | G 1.4",null,null,null,null,null,null,null,null,null,"Super Cone Fender | SCN 550 | F2.7"]
[null,null,null,null,null,null,null,null,null,null,null,null,null,null,null,null,null,null,null,"V Fenders | V 250 | G 1.5",null,null,null,null,null,null,null,null,null,"Super Cone Fender | SCN 550 | F2.8"]
[null,null,null,null,null,null,null,null,null,null,null,null,null,null,null,null,null,null,null,"V Fenders | V 250 | G 1.6",null,null,null,null,null,null,null,null,null,"Super Cone Fender | SCN 550 | F2.9"]
[null,null,null,null,null,null,null,null,null,null,null,null,null,null,null,null,null,null,null,"V Fenders | V 250 | G 1.7",null,null,null,null,null,null,null,null,null,"Super Cone Fender | SCN 550 | F3.0"]
[null,null,null,null,null,null,null,null,null,null,null,null,null,null,null,null,null,null,null,"V Fenders | V 250 | G 1.8",null,null,null,null,null,null,null,null,null,"Super Cone Fender | SCN 550 | F3.1"]
[null,null,null,null,null,null,null,null,null,null,null,null,null,null,null,null,null,null,null,"V Fenders | V 250 | G 1.9",null,null,null,null,null,null,null,null,null,"Super Cone Fender | SCN 600 | F0.9"]
[null,null,null,null,null,null,null,null,null,null,null,null,null,null,null,null,null,null,null,"V Fenders | V 250 | G 2.0",null,null,null,null,null,null,null,null,null,"Super Cone Fender | SCN 600 | F1.0"]
[null,null,null,null,null,null,null,null,null,null,null,null,null,null,null,null,null,null,null,"V Fenders | V 250 | G 2.1",null,null,null,null,null,null,null,null,null,"Super Cone Fender | SCN 600 | F1.1"]
[null,null,null,null,null,null,null,null,null,null,null,null,null,null,null,null,null,null,null,"V Fenders | V 250 | G 2.2",null,null,null,null,null,null,null,null,null,"Super Cone Fender | SCN 600 | F1.2"]
[null,null,null,null,null,null,null,null,null,null,null,null,null,null,null,null,null,null,null,"V Fenders | V 250 | G 2.3",null,null,null,null,null,null,null,null,null,"Super Cone Fender | SCN 600 | F1.3"]
[null,null,null,null,null,null,null,null,null,null,null,null,null,null,null,null,null,null,null,"V Fenders | V 250 | G 2.4",null,null,null,null,null,null,null,null,null,"Super Cone Fender | SCN 600 | F1.4"]
[null,null,null,null,null,null,null,null,null,null,null,null,null,null,null,null,null,null,null,"V Fenders | V 250 | G 2.5",null,null,null,null,null,null,null,null,null,"Super Cone Fender | SCN 600 | F1.5"]
[null,null,null,null,null,null,null,null,null,null,null,null,null,null,null,null,null,null,null,"V Fenders | V 250 | G 2.6",null,null,null,null,null,null,null,null,null,"Super Cone Fender | SCN 600 | F1.6"]
[null,null,null,null,null,null,null,null,null,null,null,null,null,null,null,null,null,null,null,"V Fenders | V 250 | G 2.7",null,null,null,null,null,null,null,null,null,"Super Cone Fender | SCN 600 | F1.7"]
[null,null,null,null,null,null,null,null,null,null,null,null,null,null,null,null,null,null,null,"V Fenders | V 250 | G 2.8",null,null,null,null,null,null,null,null,null,"Super Cone Fender | SCN 600 | F1.8"]
[null,null,null,null,null,null,null,null,null,null,null,null,null,null,null,null,null,null,null,"V Fenders | V 250 | G 2.9",null,null,null,null,null,null,null,null,null,"Super Cone Fender | SCN 600 | F1.9"]
[null,null,null,null,null,null,null,null,null,null,null,null,null,null,null,null,null,null,null,"V Fenders | V 250 | G 3.0",null,null,null,null,null,null,null,null,null,"Super Cone Fender | SCN 600 | F2.0"]
[null,null,null,null,null,null,null,null,null,null,null,null,null,null,null,null,null,null,null,"V Fenders | V 250 | G 3.1",null,null,null,null,null,null,null,null,null,"Super Cone Fender | SCN 600 | F2.1"]
[null,null,null,null,null,null,null,null,null,null,null,null,null,null,null,null,null,null,null,"V Fenders | V 300 | G 0.9",null,null,null,null,null,null,null,null,null,"Super Cone Fender | SCN 600 | F2.2"]
[null,null,null,null,null,null,null,null,null,null,null,null,null,null,null,null,null,null,null,"V Fenders | V 300 | G 1.0",null,null,null,null,null,null,null,null,null,"Super Cone Fender | SCN 600 | F2.3"]
[null,null,null,null,null,null,null,null,null,null,null,null,null,null,null,null,null,null,null,"V Fenders | V 300 | G 1.1",null,null,null,null,null,null,null,null,null,"Super Cone Fender | SCN 600 | F2.4"]
[null,null,null,null,null,null,null,null,null,null,null,null,null,null,null,null,null,null,null,"V Fenders | V 300 | G 1.2",null,null,null,null,null,null,null,null,null,"Super Cone Fender | SCN 600 | F2.5"]
[null,null,null,null,null,null,null,null,null,null,null,null,null,null,null,null,null,null,null,"V Fenders | V 300 | G 1.3",null,null,null,null,null,null,null,null,null,"Super Cone Fender | SCN 600 | F2.6"]
[null,null,null,null,null,null,null,null,null,null,null,null,null,null,null,null,null,null,null,"V Fenders | V 300 | G 1.4",null,null,null,null,null,null,null,null,null,"Super Cone Fender | SCN 600 | F2.7"]
[null,null,null,null,null,null,null,null,null,null,null,null,null,null,null,null,null,null,null,"V Fenders | V 300 | G 1.5",null,null,null,null,null,null,null,null,null,"Super Cone Fender | SCN 600 | F2.8"]
[null,null,null,null,null,null,null,null,null,null,null,null,null,null,null,null,null,null,null,"V Fenders | V 300 | G 1.6",null,null,null,null,null,null,null,null,null,"Super Cone Fender | SCN 600 | F2.9"]
[null,null,null,null,null,null,null,null,null,null,null,null,null,null,null,null,null,null,null,"V Fenders | V 300 | G 1.7",null,null,null,null,null,null,null,null,null,"Super Cone Fender | SCN 600 | F3.0"]
[null,null,null,null,null,null,null,null,null,null,null,null,null,null,null,null,null,null,null,"V Fenders | V 300 | G 1.8",null,null,null,null,null,null,null,null,null,"Super Cone Fender | SCN 600 | F3.1"]
[null,null,null,null,null,null,null,null,null,null,null,null,null,null,null,null,null,null,null,"V Fenders | V 300 | G 1.9",null,null,null,null,null,null,null,null,null,"Super Cone Fender | SCN 700 | F0.9"]
[null,null,null,null,null,null,null,null,null,null,null,null,null,null,null,null,null,null,null,"V Fenders | V 300 | G 2.0",null,null,null,null,null,null,null,null,null,"Super Cone Fender | SCN 700 | F1.0"]
[null,null,null,null,null,null,null,null,null,null,null,null,null,null,null,null,null,null,null,"V Fenders | V 300 | G 2.1",null,null,null,null,null,null,null,null,null,"Super Cone Fender | SCN 700 | F1.1"]
[null,null,null,null,null,null,null,null,null,null,null,null,null,null,null,null,null,null,null,"V Fenders | V 300 | G 2.2",null,null,null,null,null,null,null,null,null,"Super Cone Fender | SCN 700 | F1.2"]
[null,null,null,null,null,null,null,null,null,null,null,null,null,null,null,null,null,null,null,"V Fenders | V 300 | G 2.3",null,null,null,null,null,null,null,null,null,"Super Cone Fender | SCN 700 | F1.3"]
[null,null,null,null,null,null,null,null,null,null,null,null,null,null,null,null,null,null,null,"V Fenders | V 300 | G 2.4",null,null,null,null,null,null,null,null,null,"Super Cone Fender | SCN 700 | F1.4"]
[null,null,null,null,null,null,null,null,null,null,null,null,null,null,null,null,null,null,null,"V Fenders | V 300 | G 2.5",null,null,null,null,null,null,null,null,null,"Super Cone Fender | SCN 700 | F1.5"]
[null,null,null,null,null,null,null,null,null,null,null,null,null,null,null,null,null,null,null,"V Fenders | V 300 | G 2.6",null,null,null,null,null,null,null,null,null,"Super Cone Fender | SCN 700 | F1.6"]
[null,null,null,null,null,null,null,null,null,null,null,null,null,null,null,null,null,null,null,"V Fenders | V 300 | G 2.7",null,null,null,null,null,null,null,null,null,"Super Cone Fender | SCN 700 | F1.7"]
[null,null,null,null,null,null,null,null,null,null,null,null,null,null,null,null,null,null,null,"V Fenders | V 300 | G 2.8",null,null,null,null,null,null,null,null,null,"Super Cone Fender | SCN 700 | F1.8"]
[null,null,null,null,null,null,null,null,null,null,null,null,null,null,null,null,null,null,null,"V Fenders | V 300 | G 2.9",null,null,null,null,null,null,null,null,null,"Super Cone Fender | SCN 700 | F1.9"]
[null,null,null,null,null,null,null,null,null,null,null,null,null,null,null,null,null,null,null,"V Fenders | V 300 | G 3.0",null,null,null,null,null,null,null,null,null,"Super Cone Fender | SCN 700 | F2.0"]
[null,null,null,null,null,null,null,null,null,null,null,null,null,null,null,null,null,null,null,"V Fenders | V 300 | G 3.1",null,null,null,null,null,null,null,null,null,"Super Cone Fender | SCN 700 | F2.1"]
[null,null,null,null,null,null,null,null,null,null,null,null,null,null,null,null,null,null,null,"V Fenders | V 400 | G 0.9",null,null,null,null,null,null,null,null,null,"Super Cone Fender | SCN 700 | F2.2"]
[null,null,null,null,null,null,null,null,null,null,null,null,null,null,null,null,null,null,null,"V Fenders | V 400 | G 1.0",null,null,null,null,null,null,null,null,null,"Super Cone Fender | SCN 700 | F2.3"]
[null,null,null,null,null,null,null,null,null,null,null,null,null,null,null,null,null,null,null,"V Fenders | V 400 | G 1.1",null,null,null,null,null,null,null,null,null,"Super Cone Fender | SCN 700 | F2.4"]
[null,null,null,null,null,null,null,null,null,null,null,null,null,null,null,null,null,null,null,"V Fenders | V 400 | G 1.2",null,null,null,null,null,null,null,null,null,"Super Cone Fender | SCN 700 | F2.5"]
[null,null,null,null,null,null,null,null,null,null,null,null,null,null,null,null,null,null,null,"V Fenders | V 400 | G 1.3",null,null,null,null,null,null,null,null,null,"Super Cone Fender | SCN 700 | F2.6"]
[null,null,null,null,null,null,null,null,null,null,null,null,null,null,null,null,null,null,null,"V Fenders | V 400 | G 1.4",null,null,null,null,null,null,null,null,null,"Super Cone Fender | SCN 700 | F2.7"]
[null,null,null,null,null,null,null,null,null,null,null,null,null,null,null,null,null,null,null,"V Fenders | V 400 | G 1.5",null,null,null,null,null,null,null,null,null,"Super Cone Fender | SCN 700 | F2.8"]
[null,null,null,null,null,null,null,null,null,null,null,null,null,null,null,null,null,null,null,"V Fenders | V 400 | G 1.6",null,null,null,null,null,null,null,null,null,"Super Cone Fender | SCN 700 | F2.9"]
[null,null,null,null,null,null,null,null,null,null,null,null,null,null,null,null,null,null,null,"V Fenders | V 400 | G 1.7",null,null,null,null,null,null,null,null,null,"Super Cone Fender | SCN 700 | F3.0"]
[null,null,null,null,null,null,null,null,null,null,null,null,null,null,null,null,null,null,null,"V Fenders | V 400 | G 1.8",null,null,null,null,null,null,null,null,null,"Super Cone Fender | SCN 700 | F3.1"]
[null,null,null,null,null,null,null,null,null,null,null,null,null,null,null,null,null,null,null,"V Fenders | V 400 | G 1.9",null,null,null,null,null,null,null,null,null,"Super Cone Fender | SCN 800 | F0.9"]
[null,null,null,null,null,null,null,null,null,null,null,null,null,null,null,null,null,null,null,"V Fenders | V 400 | G 2.0",null,null,null,null,null,null,null,null,null,"Super Cone Fender | SCN 800 | F1.0"]
[null,null,null,null,null,null,null,null,null,null,null,null,null,null,null,null,null,null,null,"V Fenders | V 400 | G 2.1",null,null,null,null,null,null,null,null,null,"Super Cone Fender | SCN 800 | F1.1"]
[null,null,null,null,null,null,null,null,null,null,null,null,null,null,null,null,null,null,null,"V Fenders | V 400 | G 2.2",null,null,null,null,null,null,null,null,null,"Super Cone Fender | SCN 800 | F1.2"]
[null,null,null,null,null,null,null,null,null,null,null,null,null,null,null,null,null,null,null,"V Fenders | V 400 | G 2.3",null,null,null,null,null,null,null,null,null,"Super Cone Fender | SCN 800 | F1.3"]
[null,null,null,null,null,null,null,null,null,null,null,null,null,null,null,null,null,null,null,"V Fenders | V 400 | G 2.4",null,null,null,null,null,null,null,null,null,"Super Cone Fender | SCN 800 | F1.4"]
[null,null,null,null,null,null,null,null,null,null,null,null,null,null,null,null,null,null,null,"V Fenders | V 400 | G 2.5",null,null,null,null,null,null,null,null,null,"Super Cone Fender | SCN 800 | F1.5"]
[null,null,null,null,null,null,null,null,null,null,null,null,null,null,null,null,null,null,null,"V Fenders | V 400 | G 2.6",null,null,null,null,null,null,null,null,null,"Super Cone Fender | SCN 800 | F1.6"]
[null,null,null,null,null,null,null,null,null,null,null,null,null,null,null,null,null,null,null,"V Fenders | V 400 | G 2.7",null,null,null,null,null,null,null,null,null,"Super Cone Fender | SCN 800 | F1.7"]
[null,null,null,null,null,null,null,null,null,null,null,null,null,null,null,null,null,null,null,"V Fenders | V 400 | G 2.8",null,null,null,null,null,null,null,null,null,"Super Cone Fender | SCN 800 | F1.8"]
[null,null,null,null,null,null,null,null,null,null,null,null,null,null,null,null,null,null,null,"V Fenders | V 400 | G 2.9",null,null,null,null,null,null,null,null,null,"Super Cone Fender | SCN 800 | F1.9"]
[null,null,null,null,null,null,null,null,null,null,null,null,null,null,null,null,null,null,null,"V Fenders | V 400 | G 3.0",null,null,null,null,null,null,null,null,null,"Super Cone Fender | SCN 800 | F2.0"]
[null,null,null,null,null,null,null,null,null,null,null,null,null,null,null,null,null,null,null,"V Fenders | V 400 | G 3.1",null,null,null,null,null,null,null,null,null,"Super Cone Fender | SCN 800 | F2.1"]
[null,null,null,null,null,null,null,null,null,null,null,null,null,null,null,null,null,null,null,"V Fenders | V 500 | G 0.9",null,null,null,null,null,null,null,null,null,"Super Cone Fender | SCN 800 | F2.2"]
[null,null,null,null,null,null,null,null,null,null,null,null,null,null,null,null,null,null,null,"V Fenders | V 500 | G 1.0",null,null,null,null,null,null,null,null,null,"Super Cone Fender | SCN 800 | F2.3"]
[null,null,null,null,null,null,null,null,null,null,null,null,null,null,null,null,null,null,null,"V Fenders | V 500 | G 1.1",null,null,null,null,null,null,null,null,null,"Super Cone Fender | SCN 800 | F2.4"]
[null,null,null,null,null,null,null,null,null,null,null,null,null,null,null,null,null,null,null,"V Fenders | V 500 | G 1.2",null,null,null,null,null,null,null,null,null,"Super Cone Fender | SCN 800 | F2.5"]
[null,null,null,null,null,null,null,null,null,null,null,null,null,null,null,null,null,null,null,"V Fenders | V 500 | G 1.3",null,null,null,null,null,null,null,null,null,"Super Cone Fender | SCN 800 | F2.6"]
[null,null,null,null,null,null,null,null,null,null,null,null,null,null,null,null,null,null,null,"V Fenders | V 500 | G 1.4",null,null,null,null,null,null,null,null,null,"Super Cone Fender | SCN 800 | F2.7"]
[null,null,null,null,null,null,null,null,null,null,null,null,null,null,null,null,null,null,null,"V Fenders | V 500 | G 1.5",null,null,null,null,null,null,null,null,null,"Super Cone Fender | SCN 800 | F2.8"]
[null,null,null,null,null,null,null,null,null,null,null,null,null,null,null,null,null,null,null,"V Fenders | V 500 | G 1.6",null,null,null,null,null,null,null,null,null,"Super Cone Fender | SCN 800 | F2.9"]
[null,null,null,null,null,null,null,null,null,null,null,null,null,null,null,null,null,null,null,"V Fenders | V 500 | G 1.7",null,null,null,null,null,null,null,null,null,"Super Cone Fender | SCN 800 | F3.0"]
[null,null,null,null,null,null,null,null,null,null,null,null,null,null,null,null,null,null,null,"V Fenders | V 500 | G 1.8",null,null,null,null,null,null,null,null,null,"Super Cone Fender | SCN 800 | F3.1"]
[null,null,null,null,null,null,null,null,null,null,null,null,null,null,null,null,null,null,null,"V Fenders | V 500 | G 1.9",null,null,null,null,null,null,null,null,null,"Super Cone Fender | SCN 860 | F0.9"]
[null,null,null,null,null,null,null,null,null,null,null,null,null,null,null,null,null,null,null,"V Fenders | V 500 | G 2.0",null,null,null,null,null,null,null,null,null,"Super Cone Fender | SCN 860 | F1.0"]
[null,null,null,null,null,null,null,null,null,null,null,null,null,null,null,null,null,null,null,"V Fenders | V 500 | G 2.1",null,null,null,null,null,null,null,null,null,"Super Cone Fender | SCN 860 | F1.1"]
[null,null,null,null,null,null,null,null,null,null,null,null,null,null,null,null,null,null,null,"V Fenders | V 500 | G 2.2",null,null,null,null,null,null,null,null,null,"Super Cone Fender | SCN 860 | F1.2"]
[null,null,null,null,null,null,null,null,null,null,null,null,null,null,null,null,null,null,null,"V Fenders | V 500 | G 2.3",null,null,null,null,null,null,null,null,null,"Super Cone Fender | SCN 860 | F1.3"]
[null,null,null,null,null,null,null,null,null,null,null,null,null,null,null,null,null,null,null,"V Fenders | V 500 | G 2.4",null,null,null,null,null,null,null,null,null,"Super Cone Fender | SCN 860 | F1.4"]
[null,null,null,null,null,null,null,null,null,null,null,null,null,null,null,null,null,null,null,"V Fenders | V 500 | G 2.5",null,null,null,null,null,null,null,null,null,"Super Cone Fender | SCN 860 | F1.5"]
[null,null,null,null,null,null,null,null,null,null,null,null,null,null,null,null,null,null,null,"V Fenders | V 500 | G 2.6",null,null,null,null,null,null,null,null,null,"Super Cone Fender | SCN 860 | F1.6"]
[null,null,null,null,null,null,null,null,null,null,null,null,null,null,null,null,null,null,null,"V Fenders | V 500 | G 2.7",null,null,null,null,null,null,null,null,null,"Super Cone Fender | SCN 860 | F1.7"]
[null,null,null,null,null,null,null,null,null,null,null,null,null,null,null,null,null,null,null,"V Fenders | V 500 | G 2.8",null,null,null,null,null,null,null,null,null,"Super Cone Fender | SCN 860 | F1.8"]
[null,null,null,null,null,null,null,null,null,null,null,null,null,null,null,null,null,null,null,"V Fenders | V 500 | G 2.9",null,null,null,null,null,null,null,null,null,"Super Cone Fender | SCN 860 | F1.9"]
[null,null,null,null,null,null,null,null,null,null,null,null,null,null,null,null,null,null,null,"V Fenders | V 500 | G 3.0",null,null,null,null,null,null,null,null,null,"Super Cone Fender | SCN 860 | F2.0"]
[null,null,null,null,null,null,null,null,null,null,null,null,null,null,null,null,null,null,null,"V Fenders | V 500 | G 3.1",null,null,null,null,null,null,null,null,null,"Super Cone Fender | SCN 860 | F2.1"]
[null,null,null,null,null,null,null,null,null,null,null,null,null,null,null,null,null,null,null,"V Fenders | V 600 | G 0.9",null,null,null,null,null,null,null,null,null,"Super Cone Fender | SCN 860 | F2.2"]
[null,null,null,null,null,null,null,null,null,null,null,null,null,null,null,null,null,null,null,"V Fenders | V 600 | G 1.0",null,null,null,null,null,null,null,null,null,"Super Cone Fender | SCN 860 | F2.3"]
[null,null,null,null,null,null,null,null,null,null,null,null,null,null,null,null,null,null,null,"V Fenders | V 600 | G 1.1",null,null,null,null,null,null,null,null,null,"Super Cone Fender | SCN 860 | F2.4"]
[null,null,null,null,null,null,null,null,null,null,null,null,null,null,null,null,null,null,null,"V Fenders | V 600 | G 1.2",null,null,null,null,null,null,null,null,null,"Super Cone Fender | SCN 860 | F2.5"]
[null,null,null,null,null,null,null,null,null,null,null,null,null,null,null,null,null,null,null,"V Fenders | V 600 | G 1.3",null,null,null,null,null,null,null,null,null,"Super Cone Fender | SCN 860 | F2.6"]
[null,null,null,null,null,null,null,null,null,null,null,null,null,null,null,null,null,null,null,"V Fenders | V 600 | G 1.4",null,null,null,null,null,null,null,null,null,"Super Cone Fender | SCN 860 | F2.7"]
[null,null,null,null,null,null,null,null,null,null,null,null,null,null,null,null,null,null,null,"V Fenders | V 600 | G 1.5",null,null,null,null,null,null,null,null,null,"Super Cone Fender | SCN 860 | F2.8"]
[null,null,null,null,null,null,null,null,null,null,null,null,null,null,null,null,null,null,null,"V Fenders | V 600 | G 1.6",null,null,null,null,null,null,null,null,null,"Super Cone Fender | SCN 860 | F2.9"]
[null,null,null,null,null,null,null,null,null,null,null,null,null,null,null,null,null,null,null,"V Fenders | V 600 | G 1.7",null,null,null,null,null,null,null,null,null,"Super Cone Fender | SCN 860 | F3.0"]
[null,null,null,null,null,null,null,null,null,null,null,null,null,null,null,null,null,null,null,"V Fenders | V 600 | G 1.8",null,null,null,null,null,null,null,null,null,"Super Cone Fender | SCN 860 | F3.1"]
[null,null,null,null,null,null,null,null,null,null,null,null,null,null,null,null,null,null,null,"V Fenders | V 600 | G 1.9",null,null,null,null,null,null,null,null,null,"Super Cone Fender | SCN 900 | F0.9"]
[null,null,null,null,null,null,null,null,null,null,null,null,null,null,null,null,null,null,null,"V Fenders | V 600 | G 2.0",null,null,null,null,null,null,null,null,null,"Super Cone Fender | SCN 900 | F1.0"]
[null,null,null,null,null,null,null,null,null,null,null,null,null,null,null,null,null,null,null,"V Fenders | V 600 | G 2.1",null,null,null,null,null,null,null,null,null,"Super Cone Fender | SCN 900 | F1.1"]
[null,null,null,null,null,null,null,null,null,null,null,null,null,null,null,null,null,null,null,"V Fenders | V 600 | G 2.2",null,null,null,null,null,null,null,null,null,"Super Cone Fender | SCN 900 | F1.2"]
[null,null,null,null,null,null,null,null,null,null,null,null,null,null,null,null,null,null,null,"V Fenders | V 600 | G 2.3",null,null,null,null,null,null,null,null,null,"Super Cone Fender | SCN 900 | F1.3"]
[null,null,null,null,null,null,null,null,null,null,null,null,null,null,null,null,null,null,null,"V Fenders | V 600 | G 2.4",null,null,null,null,null,null,null,null,null,"Super Cone Fender | SCN 900 | F1.4"]
[null,null,null,null,null,null,null,null,null,null,null,null,null,null,null,null,null,null,null,"V Fenders | V 600 | G 2.5",null,null,null,null,null,null,null,null,null,"Super Cone Fender | SCN 900 | F1.5"]
[null,null,null,null,null,null,null,null,null,null,null,null,null,null,null,null,null,null,null,"V Fenders | V 600 | G 2.6",null,null,null,null,null,null,null,null,null,"Super Cone Fender | SCN 900 | F1.6"]
[null,null,null,null,null,null,null,null,null,null,null,null,null,null,null,null,null,null,null,"V Fenders | V 600 | G 2.7",null,null,null,null,null,null,null,null,null,"Super Cone Fender | SCN 900 | F1.7"]
[null,null,null,null,null,null,null,null,null,null,null,null,null,null,null,null,null,null,null,"V Fenders | V 600 | G 2.8",null,null,null,null,null,null,null,null,null,"Super Cone Fender | SCN 900 | F1.8"]
[null,null,null,null,null,null,null,null,null,null,null,null,null,null,null,null,null,null,null,"V Fenders | V 600 | G 2.9",null,null,null,null,null,null,null,null,null,"Super Cone Fender | SCN 900 | F1.9"]
[null,null,null,null,null,null,null,null,null,null,null,null,null,null,null,null,null,null,null,"V Fenders | V 600 | G 3.0",null,null,null,null,null,null,null,null,null,"Super Cone Fender | SCN 900 | F2.0"]
[null,null,null,null,null,null,null,null,null,null,null,null,null,null,null,null,null,null,null,"V Fenders | V 600 | G 3.1",null,null,null,null,null,null,null,null,null,"Super Cone Fender | SCN 900 | F2.1"]
[null,null,null,null,null,null,null,null,null,null,null,null,null,null,null,null,null,null,null,"V Fenders | V 800 | G 0.9",null,null,null,null,null,null,null,null,null,"Super Cone Fender | SCN 900 | F2.2"]
[null,null,null,null,null,null,null,null,null,null,null,null,null,null,null,null,null,null,null,"V Fenders | V 800 | G 1.0",null,null,null,null,null,null,null,null,null,"Super Cone Fender | SCN 900 | F2.3"]
[null,null,null,null,null,null,null,null,null,null,null,null,null,null,null,null,null,null,null,"V Fenders | V 800 | G 1.1",null,null,null,null,null,null,null,null,null,"Super Cone Fender | SCN 900 | F2.4"]
[null,null,null,null,null,null,null,null,null,null,null,null,null,null,null,null,null,null,null,"V Fenders | V 800 | G 1.2",null,null,null,null,null,null,null,null,null,"Super Cone Fender | SCN 900 | F2.5"]
[null,null,null,null,null,null,null,null,null,null,null,null,null,null,null,null,null,null,null,"V Fenders | V 800 | G 1.3",null,null,null,null,null,null,null,null,null,"Super Cone Fender | SCN 900 | F2.6"]
[null,null,null,null,null,null,null,null,null,null,null,null,null,null,null,null,null,null,null,"V Fenders | V 800 | G 1.4",null,null,null,null,null,null,null,null,null,"Super Cone Fender | SCN 900 | F2.7"]
[null,null,null,null,null,null,null,null,null,null,null,null,null,null,null,null,null,null,null,"V Fenders | V 800 | G 1.5",null,null,null,null,null,null,null,null,null,"Super Cone Fender | SCN 900 | F2.8"]
[null,null,null,null,null,null,null,null,null,null,null,null,null,null,null,null,null,null,null,"V Fenders | V 800 | G 1.6",null,null,null,null,null,null,null,null,null,"Super Cone Fender | SCN 900 | F2.9"]
[null,null,null,null,null,null,null,null,null,null,null,null,null,null,null,null,null,null,null,"V Fenders | V 800 | G 1.7",null,null,null,null,null,null,null,null,null,"Super Cone Fender | SCN 900 | F3.0"]
[null,null,null,null,null,null,null,null,null,null,null,null,null,null,null,null,null,null,null,"V Fenders | V 800 | G 1.8",null,null,null,null,null,null,null,null,null,"Super Cone Fender | SCN 900 | F3.1"]
[null,null,null,null,null,null,null,null,null,null,null,null,null,null,null,null,null,null,null,"V Fenders | V 800 | G 1.9",null,null,null,null,null,null,null,null,null,"Super Cone Fender | SCN 950 | F0.9"]
[null,null,null,null,null,null,null,null,null,null,null,null,null,null,null,null,null,null,null,"V Fenders | V 800 | G 2.0",null,null,null,null,null,null,null,null,null,"Super Cone Fender | SCN 950 | F1.0"]
[null,null,null,null,null,null,null,null,null,null,null,null,null,null,null,null,null,null,null,"V Fenders | V 800 | G 2.1",null,null,null,null,null,null,null,null,null,"Super Cone Fender | SCN 950 | F1.1"]
[null,null,null,null,null,null,null,null,null,null,null,null,null,null,null,null,null,null,null,"V Fenders | V 800 | G 2.2",null,null,null,null,null,null,null,null,null,"Super Cone Fender | SCN 950 | F1.2"]
[null,null,null,null,null,null,null,null,null,null,null,null,null,null,null,null,null,null,null,"V Fenders | V 800 | G 2.3",null,null,null,null,null,null,null,null,null,"Super Cone Fender | SCN 950 | F1.3"]
[null,null,null,null,null,null,null,null,null,null,null,null,null,null,null,null,null,null,null,"V Fenders | V 800 | G 2.4",null,null,null,null,null,null,null,null,null,"Super Cone Fender | SCN 950 | F1.4"]
[null,null,null,null,null,null,null,null,null,null,null,null,null,null,null,null,null,null,null,"V Fenders | V 800 | G 2.5",null,null,null,null,null,null,null,null,null,"Super Cone Fender | SCN 950 | F1.5"]
[null,null,null,null,null,null,null,null,null,null,null,null,null,null,null,null,null,null,null,"V Fenders | V 800 | G 2.6",null,null,null,null,null,null,null,null,null,"Super Cone Fender | SCN 950 | F1.6"]
[null,null,null,null,null,null,null,null,null,null,null,null,null,null,null,null,null,null,null,"V Fenders | V 800 | G 2.7",null,null,null,null,null,null,null,null,null,"Super Cone Fender | SCN 950 | F1.7"]
[null,null,null,null,null,null,null,null,null,null,null,null,null,null,null,null,null,null,null,"V Fenders | V 800 | G 2.8",null,null,null,null,null,null,null,null,null,"Super Cone Fender | SCN 950 | F1.8"]
[null,null,null,null,null,null,null,null,null,null,null,null,null,null,null,null,null,null,null,"V Fenders | V 800 | G 2.9",null,null,null,null,null,null,null,null,null,"Super Cone Fender | SCN 950 | F1.9"]
[null,null,null,null,null,null,null,null,null,null,null,null,null,null,null,null,null,null,null,"V Fenders | V 800 | G 3.0",null,null,null,null,null,null,null,null,null,"Super Cone Fender | SCN 950 | F2.0"]
[null,null,null,null,null,null,null,null,null,null,null,null,null,null,null,null,null,null,null,"V Fenders | V 800 | G 3.1",null,null,null,null,null,null,null,null,null,"Super Cone Fender | SCN 950 | F2.1"]
[null,null,null,null,null,null,null,null,null,null,null,null,null,null,null,null,null,null,null,"V Fenders | V 1000 | G 0.9",null,null,null,null,null,null,null,null,null,"Super Cone Fender | SCN 950 | F2.2"]
[null,null,null,null,null,null,null,null,null,null,null,null,null,null,null,null,null,null,null,"V Fenders | V 1000 | G 1.0",null,null,null,null,null,null,null,null,null,"Super Cone Fender | SCN 950 | F2.3"]
[null,null,null,null,null,null,null,null,null,null,null,null,null,null,null,null,null,null,null,"V Fenders | V 1000 | G 1.1",null,null,null,null,null,null,null,null,null,"Super Cone Fender | SCN 950 | F2.4"]
[null,null,null,null,null,null,null,null,null,null,null,null,null,null,null,null,null,null,null,"V Fenders | V 1000 | G 1.2",null,null,null,null,null,null,null,null,null,"Super Cone Fender | SCN 950 | F2.5"]
[null,null,null,null,null,null,null,null,null,null,null,null,null,null,null,null,null,null,null,"V Fenders | V 1000 | G 1.3",null,null,null,null,null,null,null,null,null,"Super Cone Fender | SCN 950 | F2.6"]
[null,null,null,null,null,null,null,null,null,null,null,null,null,null,null,null,null,null,null,"V Fenders | V 1000 | G 1.4",null,null,null,null,null,null,null,null,null,"Super Cone Fender | SCN 950 | F2.7"]
[null,null,null,null,null,null,null,null,null,null,null,null,null,null,null,null,null,null,null,"V Fenders | V 1000 | G 1.5",null,null,null,null,null,null,null,null,null,"Super Cone Fender | SCN 950 | F2.8"]
[null,null,null,null,null,null,null,null,null,null,null,null,null,null,null,null,null,null,null,"V Fenders | V 1000 | G 1.6",null,null,null,null,null,null,null,null,null,"Super Cone Fender | SCN 950 | F2.9"]
[null,null,null,null,null,null,null,null,null,null,null,null,null,null,null,null,null,null,null,"V Fenders | V 1000 | G 1.7",null,null,null,null,null,null,null,null,null,"Super Cone Fender | SCN 950 | F3.0"]
[null,null,null,null,null,null,null,null,null,null,null,null,null,null,null,null,null,null,null,"V Fenders | V 1000 | G 1.8",null,null,null,null,null,null,null,null,null,"Super Cone Fender | SCN 950 | F3.1"]
[null,null,null,null,null,null,null,null,null,null,null,null,null,null,null,null,null,null,null,"V Fenders | V 1000 | G 1.9",null,null,null,null,null,null,null,null,null,"Super Cone Fender | SCN 1000 | F0.9"]
[null,null,null,null,null,null,null,null,null,null,null,null,null,null,null,null,null,null,null,"V Fenders | V 1000 | G 2.0",null,null,null,null,null,null,null,null,null,"Super Cone Fender | SCN 1000 | F1.0"]
[null,null,null,null,null,null,null,null,null,null,null,null,null,null,null,null,null,null,null,"V Fenders | V 1000 | G 2.1",null,null,null,null,null,null,null,null,null,"Super Cone Fender | SCN 1000 | F1.1"]
[null,null,null,null,null,null,null,null,null,null,null,null,null,null,null,null,null,null,null,"V Fenders | V 1000 | G 2.2",null,null,null,null,null,null,null,null,null,"Super Cone Fender | SCN 1000 | F1.2"]
[null,null,null,null,null,null,null,null,null,null,null,null,null,null,null,null,null,null,null,"V Fenders | V 1000 | G 2.3",null,null,null,null,null,null,null,null,null,"Super Cone Fender | SCN 1000 | F1.3"]
[null,null,null,null,null,null,null,null,null,null,null,null,null,null,null,null,null,null,null,"V Fenders | V 1000 | G 2.4",null,null,null,null,null,null,null,null,null,"Super Cone Fender | SCN 1000 | F1.4"]
[null,null,null,null,null,null,null,null,null,null,null,null,null,null,null,null,null,null,null,"V Fenders | V 1000 | G 2.5",null,null,null,null,null,null,null,null,null,"Super Cone Fender | SCN 1000 | F1.5"]
[null,null,null,null,null,null,null,null,null,null,null,null,null,null,null,null,null,null,null,"V Fenders | V 1000 | G 2.6",null,null,null,null,null,null,null,null,null,"Super Cone Fender | SCN 1000 | F1.6"]
[null,null,null,null,null,null,null,null,null,null,null,null,null,null,null,null,null,null,null,"V Fenders | V 1000 | G 2.7",null,null,null,null,null,null,null,null,null,"Super Cone Fender | SCN 1000 | F1.7"]
[null,null,null,null,null,null,null,null,null,null,null,null,null,null,null,null,null,null,null,"V Fenders | V 1000 | G 2.8",null,null,null,null,null,null,null,null,null,"Super Cone Fender | SCN 1000 | F1.8"]
[null,null,null,null,null,null,null,null,null,null,null,null,null,null,null,null,null,null,null,"V Fenders | V 1000 | G 2.9",null,null,null,null,null,null,null,null,null,"Super Cone Fender | SCN 1000 | F1.9"]
[null,null,null,null,null,null,null,null,null,null,null,null,null,null,null,null,null,null,null,"V Fenders | V 1000 | G 3.0",null,null,null,null,null,null,null,null,null,"Super Cone Fender | SCN 1000 | F2.0"]
[null,null,null,null,null,null,null,null,null,null,null,null,null,null,null,null,null,null,null,"V Fenders | V 1000 | G 3.1",null,null,null,null,null,null,null,null,null,"Super Cone Fender | SCN 1000 | F2.1"]
[null,null,null,null,null,null,null,null,null,null,null,null,null,null,null,null,null,null,null,null,null,null,null,null,null,null,null,null,null,"Super Cone Fender | SCN 1000 | F2.2"]

{"sheet":"Gangway","index":5,"n_rows":63,"n_cols":11,"rows_kept":63,"cut":false,"hidden":false,"merged":[[0,0,0,10]]}
["Gangway(s)"]
["tBerthGangway"]
["Name","Type","Type Comment","Distance from the spotting line (m)","Height above Vertical Datum (m)\nMinimum","Height above Vertical Datum (m)\nMaximum","Horizontal Working Range from Ship's Rail (m)\nMinimum","Horizontal Working Range from Ship's Rail (m)\nMaximum","Slew (Horizontal Extension Allowance) (m)\nForward","Slew (Horizontal Extension Allowance) (m)\nAft","Comment"]
[]
[]
[]
[]
[]
[]
[]
[]
[]
[]
[]
[]
[]
[]
[]
[]
[]
[]
[]
[]
[]
[]
[]
[]
[]
[]
[]
[]
[]
[]
[]
[]
[]
[]
[]
[]
[]
[]
[]
[]
[]
[]
[]
[]
[]
[]
[]
[]
[]
[]
[]
[]
[]
[]
[]
[]
["Options for:"]
["Type","Selflanding Telescopic Tower"]
[null,"Riding"]
[null,"Selflanding Telescopic Column"]